Workbook

Sheet Cover
A1: =RIGHT(CELL("filename", $A$1), LEN(CELL("filename", $A$1)) - SEARCH("]", CELL("filename", $A$1))) -> Cover
B3: Model name: | C3: Cost of new debt indexation model
B4: Version number: | C4: 6.3
B5: Filename: | C5: Cost-of-new-debt-indexation-model-Dec-2020-v6.3.xlsm
B6: Date: | C6: 2020-12-02
B7: Author: | C7: Ofwat
B8: Author contact information: | C8: OfwatPandO@ofwat.gov.uk
B11: Summary of model: | C11: This model implements the necessary reconciliations for the allowed return on new debt.
B17: Disclaimer: | C17: None
B19: Known limitations of the model: | C19: None
C21: Issue | E21: Details | F21: Model link
B25: Changes | C25: Below are details of changes to the model from the version 6.2 published on 4 March 2020. The changes fix issues that have been identified and implement improvements for clarity and ease of use.
C27: Category | D27: Sheet(s) in current model | E27: Description of change(s) made | F27: Model link(s)
C28: Logic Update | D28: InpC | E28: Input cell: 'Mid-point of the AMP’ hardcoded to 2.5 years to aid consistency and reduce confusion. | F28: InpC!F47
C32: Logic Update | D32: InpR | E32: Defunct range removed (‘CPIH financial year average index value’)
C36: Logic Update | D36: InpR | E36: Issuance and liquidity fees line added to inform more accurate outturn allowed cost of overall debt for input to tax reconciliation model. | F36: InpR!E38
A41: END OF SHEET

Sheet Model formatting
A1: =RIGHT(CELL("filename", $A$1), LEN(CELL("filename", $A$1)) - SEARCH("]", CELL("filename", $A$1))) -> Model formatting
A4: SHEET TABS
E6: Light Yellow | G6: Input sheets
E8: No colour (default Excel tab colour) | G8: Calculation and documentation sheets
E10: Pale Blue | G10: Key output sheets
E12: Turquoise | G12: Quality control sheets
E14: Yellow | G14: To be completed, temporary, restructured, or deleted
A17: COLOUR
B19: Font colour only
E20: Blue font | G20: Imported from another sheet
E22: Red font | G22: Exported to another sheet (except from Input sheets)
E24: Black font | G24: Within sheet link or calculation
E26: Green font | G26: Additional descriptions
B28: Font + shade combinations
E29: Black font + Light Yellow shade | G29: Inputs
E31: Black font + Light Grey shade on entire row | G31: Within-worksheet counter-flow
E33: Blue font + Light Grey shade on entire row | G33: Between-worksheet counter-flow
E35: Empty Cell with Light Grey shade | G35: Empty cells being deliberately referenced
B37: Other
E38: Black font + Pale Blue shade on entire row | G38: Section separator
E40: Light Turquoise shade | G40: Stored/dead/hard coded outputs
E42: Tan shade | G42: Pre-model time line actuals
E44: Yellow shade | G44: Work in progress / temporary
E46: Lime shade | G46: Values or logic to be reviewed
B48: Error checks & alerts
E49: Green shade | G49: OK
E51: Red shade | G51: Error
E53: Gold shade | G53: Alert
A56: ABBREVIATIONS
A62: END

Sheet ToC
A1: =RIGHT(CELL("filename", $A$1), LEN(CELL("filename", $A$1)) - SEARCH("]", CELL("filename", $A$1))) -> ToC
B3: ASSUMPTIONS: | D3: INPUTS: | F3: CALCULATIONS: | H3: OUTPUTS:
B5: Cover | D5: =InpC!$A$1 -> InpC | F5: ='RCV and post 2020 investment'!A1 -> RCV and post 2020 investment | H5: =Output!A1 -> Output
B6: Model documentation sheet | D6: Inputs - column format | F6: Calculation of RCV and notional debt balances for return | H6: Outputs to other models
B8: =$A$1 -> ToC | D8: =InpR!$A$1 -> InpR | F8: ='Cost of Debt'!A1 -> Cost of Debt
B9: Table of contents | D9: Inputs - row format | F9: Allowed cost of debt calculations
B11: Model formatting | D11: =InpIndex!A1 -> InpIndex | F11: ='Water resources'!A1 -> Water resources
B12: Explanation of different formatting types | D12: Inputs - row from index | F12: Water Resources cost of debt reconciliation
B14: =Time!A1 -> Time | F14: ='Water network +'!A1 -> Water network +
B15: Treatment of time in model | F15: Water Network plus cost of debt reconciliation
F17: ='Wastewater network +'!A1 -> Wastewater network +
F18: Wastewater Network plus cost of debt reconciliation
F20: =Bioresources!A1 -> Bioresources
F21: Bioresources cost of debt reconciliation
F23: Dummy
F24: Dummy control cost of debt reconciliation
A31: END

Sheet Time
A1: =RIGHT(CELL("filename", $A$1), LEN(CELL("filename", $A$1)) - SEARCH("]", CELL("filename", $A$1))) -> Time
J2: =Time!J$22 -> 2020-03-31 | K2: =Time!K$22 -> 2021-03-31 | L2: =Time!L$22 -> 2022-03-31 | M2: =Time!M$22 -> 2023-03-31 | N2: =Time!N$22 -> 2024-03-31 | O2: =Time!O$22 -> 2025-03-31 | P2: =Time!P$22 -> 2026-03-31
J3: =Time!J$58 -> Pre Fcst | K3: =Time!K$58 -> Forecast | L3: =Time!L$58 -> Forecast | M3: =Time!M$58 -> Forecast | N3: =Time!N$58 -> Forecast | O3: =Time!O$58 -> Forecast | P3: =Time!P$58 -> Post-Fcst
E4: =Time!E$86 -> Financial Year Ending | J4: =Time!J$86 -> 2020 | K4: =Time!K$86 -> 2021 | L4: =Time!L$86 -> 2022 | M4: =Time!M$86 -> 2023 | N4: =Time!N$86 -> 2024 | O4: =Time!O$86 -> 2025 | P4: =Time!P$86 -> 2026
E5: =Time!E$10 -> Model column counter | F5: Constant | G5: Unit | H5: Total | J5: =Time!J$10 -> 1 | K5: =Time!K$10 -> 2 | L5: =Time!L$10 -> 3 | M5: =Time!M$10 -> 4 | N5: =Time!N$10 -> 5 | O5: =Time!O$10 -> 6 | P5: =Time!P$10 -> 7
A7: MODEL PERIOD
B9: Model Column Counter
E10: Model column counter | G10: counter | J10: =I10 + 1 -> 1 | K10: 2 | L10: 3 | M10: 4 | N10: 5 | O10: 6 | P10: 7
E11: Model Column Total | F11: =MAX(J10:BX10) -> 7 | G11: column
E13: =E$10 -> Model column counter | F13: 0 | G13: counter | H13: 0 | I13: 0 | J13: 1 | K13: 2 | L13: 3 | M13: 4 | N13: 5 | O13: 6 | P13: 7
E14: First model column flag | G14: flag | H14: =SUM(J14:BX14) -> 1 | J14: =IF( J13 = 1, 1, 0) -> 1 | K14: 0 | L14: 0 | M14: 0 | N14: 0 | O14: 0 | P14: 0
E16: =InpC!E$15 -> First date of time ruler | F16: =InpC!F$15 -> 2019-04-01 | G16: =InpC!G$15 -> date
E17: First model period BEG | F17: =DATE(YEAR(F16), MONTH(F16), 1) -> 2019-04-01 | G17: month
E19: =E$17 -> First model period BEG | F19: =F$17 -> 2019-04-01 | G19: =G$17 -> month
E20: =E$14 -> First model column flag | F20: 0 | G20: flag | H20: 1 | I20: 0 | J20: 1 | K20: 0 | L20: 0 | M20: 0 | N20: 0 | O20: 0 | P20: 0
E21: Model Period BEG | G21: date | J21: =IF( J20 = 1, $F19, I22 + 1) -> 2019-04-01 | K21: 2020-04-01 | L21: 2021-04-01 | M21: 2022-04-01 | N21: 2023-04-01 | O21: 2024-04-01 | P21: 2025-04-01
E22: Model Period END | G22: date | J22: =DATE(YEAR(J21), MONTH(J21) + 12, DAY(1) - 1) -> 2020-03-31 | K22: =DATE(YEAR(K21), MONTH(K21) + 12, DAY(1) - 1) -> 2021-03-31 | L22: 2022-03-31 | M22: 2023-03-31 | N22: 2024-03-31 | O22: 2025-03-31 | P22: 2026-03-31
E24: =E$22 -> Model Period END | F24: 00:00:00 | G24: date | H24: 00:00:00 | I24: 00:00:00 | J24: 2020-03-31 | K24: 2021-03-31 | L24: 2022-03-31 | M24: 2023-03-31 | N24: 2024-03-31 | O24: 2025-03-31 | P24: 2026-03-31
E25: =E$21 -> Model Period BEG | F25: 00:00:00 | G25: date | H25: 00:00:00 | I25: 00:00:00 | J25: 2019-04-01 | K25: 2020-04-01 | L25: 2021-04-01 | M25: 2022-04-01 | N25: 2023-04-01 | O25: 2024-04-01 | P25: 2025-04-01
E26: Days in Model Period | G26: days | H26: =SUM(J26:BX26) -> 2557 | J26: =J24 - J25 + 1 -> 366 | K26: 365 | L26: 365 | M26: 365 | N26: 366 | O26: 365 | P26: 365
A29: PRE FORECAST PERIOD
E31: =InpC!E$17 -> Last Pre Forecast Date | F31: =InpC!F$17 -> 2020-03-31 | G31: =InpC!G$17 -> date
E32: =E$22 -> Model Period END | F32: 00:00:00 | G32: date | H32: 00:00:00 | I32: 00:00:00 | J32: 2020-03-31 | K32: 2021-03-31 | L32: 2022-03-31 | M32: 2023-03-31 | N32: 2024-03-31 | O32: 2025-03-31 | P32: 2026-03-31
E33: Last Pre Forecast Flag | G33: flag | H33: =SUM(J33:BX33) -> 1 | J33: =IF(J32 = $F31, 1, 0) -> 1 | K33: =IF(K32 = $F31, 1, 0) -> 0 | L33: 0 | M33: 0 | N33: 0 | O33: 0 | P33: 0
E34: Pre Forecast Period Flag | G34: flag | H34: =SUM(J34:BX34) -> 1 | J34: =IF($F31 >= J32, 1, 0) -> 1 | K34: 0 | L34: 0 | M34: 0 | N34: 0 | O34: 0 | P34: 0
E35: Pre Forecast Period Total | F35: =SUM(J34:BX34) -> 1 | G35: columns
E37: =InpC!E$19 -> Acquisition date (midnight) | F37: =InpC!F$19 -> 2020-03-31 | G37: =InpC!G$19 -> date
E38: =E$22 -> Model Period END | F38: 00:00:00 | G38: date | H38: 00:00:00 | I38: 00:00:00 | J38: 2020-03-31 | K38: 2021-03-31 | L38: 2022-03-31 | M38: 2023-03-31 | N38: 2024-03-31 | O38: 2025-03-31 | P38: 2026-03-31
E39: Acquisition / initial balance date flag | G39: flag | H39: =SUM(J39:BX39) -> 1 | J39: =IF(J38 = $F37, 1, 0) -> 1 | K39: 0 | L39: 0 | M39: 0 | N39: 0 | O39: 0 | P39: 0
A42: FORECAST PERIOD
E44: =E$33 -> Last Pre Forecast Flag | F44: 0 | G44: flag | H44: 1 | I44: 0 | J44: 1 | K44: 0 | L44: 0 | M44: 0 | N44: 0 | O44: 0 | P44: 0
E45: 1st Forecast Period Flag | G45: flag | H45: =SUM(J45:BX45) -> 1 | J45: =I44 -> 0 | K45: 1 | L45: 0 | M45: 0 | N45: 0 | O45: 0 | P45: 0
E47: =InpC!E$21 -> Last forecast date | F47: =InpC!F$21 -> 2025-03-31 | G47: =InpC!G$21 -> date
E48: =E$22 -> Model Period END | F48: 00:00:00 | G48: date | H48: 00:00:00 | I48: 00:00:00 | J48: 2020-03-31 | K48: 2021-03-31 | L48: 2022-03-31 | M48: 2023-03-31 | N48: 2024-03-31 | O48: 2025-03-31 | P48: 2026-03-31
E49: Last Forecast Period Flag | G49: flag | H49: =SUM(J49:BX49) -> 1 | J49: =IF(AND($F47 > I48, $F47 <= J48), 1, 0) -> 0 | K49: 0 | L49: 0 | M49: 0 | N49: 0 | O49: 1 | P49: 0
E51: =E$45 -> 1st Forecast Period Flag | F51: 0 | G51: flag | H51: 1 | I51: 0 | J51: 0 | K51: =K$45 -> 1 | L51: 0 | M51: 0 | N51: 0 | O51: 0 | P51: 0
E52: =E$49 -> Last Forecast Period Flag | F52: 0 | G52: flag | H52: 1 | I52: 0 | J52: 0 | K52: 0 | L52: 0 | M52: 0 | N52: 0 | O52: 1 | P52: 0
E53: Forecast Period Flag | G53: flag | H53: =SUM(J53:BX53) -> 5 | J53: =J51 - I52 + I53 -> 0 | K53: 1 | L53: 1 | M53: 1 | N53: 1 | O53: 1 | P53: 0
E54: Forecast Period Total | F54: =SUM(J53:BX53) -> 5 | G54: columns
E56: =E$34 -> Pre Forecast Period Flag | F56: 0 | G56: flag | H56: 1 | I56: 0 | J56: 1 | K56: 0 | L56: 0 | M56: 0 | N56: 0 | O56: 0 | P56: 0
E57: =E$53 -> Forecast Period Flag | F57: 0 | G57: flag | H57: 5 | I57: 0 | J57: 0 | K57: 1 | L57: 1 | M57: 1 | N57: 1 | O57: 1 | P57: 0
E58: Pre Forecast vs Forecast | G58: flag | J58: =IF(J56 = 1, "Pre Fcst", IF(J57 = 1, "Forecast", "Post-Fcst")) -> Pre Fcst | K58: Forecast | L58: Forecast | M58: Forecast | N58: Forecast | O58: Forecast | P58: Post-Fcst
A61: POST FORECAST PERIOD
E63: =E$49 -> Last Forecast Period Flag | F63: 0 | G63: flag | H63: 1 | I63: 0 | J63: 0 | K63: 0 | L63: 0 | M63: 0 | N63: 0 | O63: 1 | P63: 0
E64: 1st Post Last Forecast Period Flag | G64: flag | H64: =SUM(J64:BX64) -> 1 | J64: =I63 -> 0 | K64: 0 | L64: 0 | M64: 0 | N64: 0 | O64: 0 | P64: 1
E66: =E$64 -> 1st Post Last Forecast Period Flag | F66: 0 | G66: flag | H66: 1 | I66: 0 | J66: 0 | K66: 0 | L66: 0 | M66: 0 | N66: 0 | O66: 0 | P66: 1
E67: Post Forecast Period Flag | G67: flag | H67: =SUM(J67:BX67) -> 1 | J67: =I67 + J66 -> 0 | K67: 0 | L67: 0 | M67: 0 | N67: 0 | O67: 0 | P67: 1
E68: Post Forecast Period Total | F68: =SUM(J67:BX67) -> 1 | G68: columns
A71: MODELLING PERIOD CHECK
E73: =E$11 -> Model Column Total | F73: =F$11 -> 7 | G73: =G$11 -> column
D74: less | E74: =E$35 -> Pre Forecast Period Total | F74: =F$35 -> 1 | G74: =G$35 -> columns
D75: less | E75: =E$54 -> Forecast Period Total | F75: =F$54 -> 5 | G75: =G$54 -> columns
D76: less | E76: =E$68 -> Post Forecast Period Total | F76: =F$68 -> 1 | G76: =G$68 -> columns
E77: Modelling Period Check | F77: =IF(F73 - SUM(F74:F76) <> 0, 1, 0) -> 0 | G77: check
A80: FINANCIAL YEAR
E82: =InpC!E26 -> First Modelling Column Financial Year Number | F82: =InpC!F26 -> 2020 | G82: =InpC!G26 -> year
E83: =InpC!E27 -> Financial Year End Month Number | F83: =InpC!F27 -> 3 | G83: =InpC!G27 -> month #
E84: =E$22 -> Model Period END | F84: 00:00:00 | G84: date | H84: 00:00:00 | I84: 00:00:00 | J84: 2020-03-31 | K84: 2021-03-31 | L84: 2022-03-31 | M84: 2023-03-31 | N84: 2024-03-31 | O84: 2025-03-31 | P84: 2026-03-31
E85: =E$14 -> First model column flag | F85: 0 | G85: flag | H85: 1 | I85: 0 | J85: 1 | K85: 0 | L85: 0 | M85: 0 | N85: 0 | O85: 0 | P85: 0
E86: Financial Year Ending | G86: year # | J86: =IF(J85 = 1, $F82, IF(J84 > (DATE(I86, $F83 + 1, 1) - 1), I86 + 1, I86)) -> 2020 | K86: 2021 | L86: 2022 | M86: 2023 | N86: 2024 | O86: 2025 | P86: 2026
A88: CURRENT YEAR FLAG
E90: =InpC!E$31 -> First modelling period end year | F90: =InpC!F$31 -> 2021 | G90: =InpC!G$31 -> year
E91: =E$86 -> Financial Year Ending | F91: =F$86 -> 0 | G91: year # | H91: 0 | I91: 0 | J91: 2020 | K91: 2021 | L91: 2022 | M91: 2023 | N91: 2024 | O91: 2025 | P91: 2026
E92: First modelling period flag | F92: =F$10 -> 0 | G92: flag | H92: =H$10 -> 0 | I92: =I$10 -> 0 | J92: =IF(J91 = $F90, 1, 0) -> 0 | K92: =IF(K91 = $F90, 1, 0) -> 1 | L92: 0 | M92: 0 | N92: 0 | O92: 0 | P92: 0
E94: =InpC!E$32 -> Second modelling period end year | F94: =InpC!F$32 -> 2022 | G94: =InpC!G$32 -> year
E95: =E$86 -> Financial Year Ending | F95: =F$86 -> 0 | G95: year # | H95: 0 | I95: 0 | J95: 2020 | K95: 2021 | L95: 2022 | M95: 2023 | N95: 2024 | O95: 2025 | P95: 2026
E96: Second modelling period flag | F96: =F$10 -> 0 | G96: flag | H96: =H$10 -> 0 | I96: =I$10 -> 0 | J96: =IF(J95 = $F94, 1, 0) -> 0 | K96: 0 | L96: 1 | M96: 0 | N96: 0 | O96: 0 | P96: 0
E98: =InpC!E$33 -> Third modelling period end year | F98: =InpC!F$33 -> 2023 | G98: =InpC!G$33 -> year
E99: =E$86 -> Financial Year Ending | F99: =F$86 -> 0 | G99: year # | H99: 0 | I99: 0 | J99: 2020 | K99: 2021 | L99: 2022 | M99: 2023 | N99: 2024 | O99: 2025 | P99: 2026
E100: Third modelling period flag | F100: =F$10 -> 0 | G100: flag | H100: =H$10 -> 0 | I100: =I$10 -> 0 | J100: =IF(J99 = $F98, 1, 0) -> 0 | K100: 0 | L100: 0 | M100: 1 | N100: 0 | O100: 0 | P100: 0
E102: =InpC!E$34 -> Fourth modelling period end year | F102: =InpC!F$34 -> 2024 | G102: =InpC!G$34 -> year
E103: =E$86 -> Financial Year Ending | F103: =F$86 -> 0 | G103: year # | H103: 0 | I103: 0 | J103: 2020 | K103: 2021 | L103: 2022 | M103: 2023 | N103: 2024 | O103: 2025 | P103: 2026
E104: Fourth modelling period flag | F104: =F$10 -> 0 | G104: flag | H104: =H$10 -> 0 | I104: =I$10 -> 0 | J104: =IF(J103 = $F102, 1, 0) -> 0 | K104: 0 | L104: 0 | M104: 0 | N104: 1 | O104: 0 | P104: 0
E106: =InpC!E$35 -> Fifth modelling period end year | F106: =InpC!F$35 -> 2025 | G106: =InpC!G$35 -> year
E107: =E$86 -> Financial Year Ending | F107: =F$86 -> 0 | G107: year # | H107: 0 | I107: 0 | J107: 2020 | K107: 2021 | L107: 2022 | M107: 2023 | N107: 2024 | O107: 2025 | P107: 2026
E108: Fifth modelling period flag | F108: =F$10 -> 0 | G108: flag | H108: =H$10 -> 0 | I108: =I$10 -> 0 | J108: =IF(J107 = $F106, 1, 0) -> 0 | K108: 0 | L108: 0 | M108: 0 | N108: 0 | O108: 1 | P108: 0

Sheet InpC
A1: =RIGHT(CELL("filename", $A$1), LEN(CELL("filename", $A$1)) - SEARCH("]", CELL("filename", $A$1))) -> InpC
F5: Input | G5: Unit | H5: Comment
E7: Total Comparison Column Differences
E9: Option Name
E11: [don't delete row]
A13: TIME
E15: First date of time ruler | F15: 2019-04-01 | G15: date | H15: Suggested default: (as entered)
E17: Last Pre Forecast Date | F17: 2020-03-31 | G17: date | H17: Suggested default: (as entered)
E19: Acquisition date (midnight) | F19: 2020-03-31 | G19: date | H19: Suggested default: (as entered)
E20: Length of forecast period | F20: 5 | G20: years | H20: Suggested default: (as entered)
E21: Last forecast date | F21: =DATE(YEAR(F19)+F20,MONTH(F19),DAY(F19)) -> 2025-03-31 | G21: date
E24: Operation Start Date (midnight) | F24: 2020-03-31 | G24: date | H24: Suggested default: (as entered)
E25: Operation Finish Date (midnight) | F25: 2025-03-31 | G25: date | H25: Suggested default: (as entered)
E26: First Modelling Column Financial Year Number | F26: 2020 | G26: year | H26: Suggested default: (as entered)
E27: Financial Year End Month Number | F27: 3 | G27: month # | H27: Suggested default: (as entered)
E28: Financial Year Start Month Number | F28: 4 | G28: month # | H28: Suggested default: (as entered)
E30: Modelling period flags
E31: First modelling period end year | F31: 2021 | G31: year | H31: Suggested default: (as entered)
E32: Second modelling period end year | F32: 2022 | G32: year | H32: Suggested default: (as entered)
E33: Third modelling period end year | F33: 2023 | G33: year | H33: Suggested default: (as entered)
E34: Fourth modelling period end year | F34: 2024 | G34: year | H34: Suggested default: (as entered)
E35: Fifth modelling period end year | F35: 2025 | G35: year | H35: Suggested default: (as entered)
A38: NON CHANGEABLE INPUTS
B40: Model Tolerance
E41: Model Check Tolerance Level | F41: 0.001 | G41: tolerance
E43: Model Track Tolerance Level | F43: 0.001 | G43: tolerance
E45: % Model Check Tolerance Level | F45: 1e-05 | G45: %
E47: Mid-point of the AMP | F47: 2.5 | G47: years
A49: FINANCIAL CALC INPUTS
E51: Notional % of 'new' debt over period | F51: 0.17 | G51: percentage | H51: Suggested default: 20% (see: 'PR19 Final Determinations, Allowed Return on Capital Technical Appendix')
E52: Proportion of notional debt subject to indexation - intial balance | G52: percentage | H52: Suggested default: blank
E53: Long-term CPIH assumption | F53: 0.02 | G53: percentage | H53: Suggested default: 2.0% (see: 'PR19 Final Determinations, Allowed Return on Capital Technical Appendix')
E55: Ex-ante 'outperformance wedge' for notional company vs. average A/BBB iBoXX 10+ non-financial index (new debt only) | F55: 0 | G55: percentage | H55: Suggested default: 0.15% (see: 'PR19 Final Determinations, Allowed Return on Capital Technical Appendix')
E56: PR19 appointee allowed return on capital (CPIH-deflated using long-term assumption) | F56: 0.0337 | G56: percentage | H56: Suggested default: 2.96% (see: 'PR19 Final Determinations, Allowed Return on Capital Technical Appendix')
E57: Notional gearing | F57: 0.6 | G57: percentage | H57: Suggested default: 60% (see: 'PR19 Final Determinations, Allowed Return on Capital Technical Appendix')
E59: Units in 100% | F59: 100 | G59: units | H59: Suggested default: 100
E61: PV base date | F61: 2025-03-31 | G61: date | H61: Suggested default: 31 Mar 25
E62: Days in a year | F62: 365 | G62: days | H62: Suggested default: 365
E64: Company-specific adjustment (new debt) | F64: 0 | G64: percentage | H64: Suggested default: 0.25% (see: 'PR19 Final Determinations, Allowed Return on Capital Technical Appendix')
E65: Company-specific adjustment (embedded debt) | F65: 0.0029 | G65: percentage | H65: Suggested default: 0.35% (see: 'PR19 Final Determinations, Allowed Return on Capital Technical Appendix')
E66: Company-specific adjustment applies to Water Resources | F66: YES | G66: Yes / No | H66: Company-specific input
E67: Company-specific adjustment applies to Water Network Plus | F67: YES | G67: Yes / No | H67: Company-specific input
E68: Company-specific adjustment applies to Wastewater Network Plus | F68: NO | G68: Yes / No | H68: Company-specific input
E69: Company-specific adjustment applies to Bioresources | F69: NO | G69: Yes / No | H69: Company-specific input
E70: Company-specific adjustment applies to Dummy | F70: NO | G70: Yes / No | H70: Company-specific input
E74: [don't delete row]

Sheet InpR
A1: =RIGHT(CELL("filename", $A$1), LEN(CELL("filename", $A$1)) - SEARCH("]", CELL("filename", $A$1))) -> InpR
E2: =Time!E$21 -> Model Period BEG | J2: =Time!J$21 -> 2019-04-01 | K2: =Time!K$21 -> 2020-04-01 | L2: =Time!L$21 -> 2021-04-01 | M2: =Time!M$21 -> 2022-04-01 | N2: =Time!N$21 -> 2023-04-01 | O2: =Time!O$21 -> 2024-04-01 | P2: =Time!P$21 -> 2025-04-01
E3: =Time!E$22 -> Model Period END | J3: =Time!J$22 -> 2020-03-31 | K3: =Time!K$22 -> 2021-03-31 | L3: =Time!L$22 -> 2022-03-31 | M3: =Time!M$22 -> 2023-03-31 | N3: =Time!N$22 -> 2024-03-31 | O3: =Time!O$22 -> 2025-03-31 | P3: =Time!P$22 -> 2026-03-31
E4: =Time!E$58 -> Pre Forecast vs Forecast | J4: =Time!J$58 -> Pre Fcst | K4: =Time!K$58 -> Forecast | L4: =Time!L$58 -> Forecast | M4: =Time!M$58 -> Forecast | N4: =Time!N$58 -> Forecast | O4: =Time!O$58 -> Forecast | P4: =Time!P$58 -> Post-Fcst | Q4: Notes:
E5: =Time!E$86 -> Financial Year Ending | J5: =Time!J$86 -> 2020 | K5: =Time!K$86 -> 2021 | L5: =Time!L$86 -> 2022 | M5: =Time!M$86 -> 2023 | N5: =Time!N$86 -> 2024 | O5: =Time!O$86 -> 2025 | P5: =Time!P$86 -> 2026
E6: =Time!E$10 -> Model column counter | J6: =Time!J$10 -> 1 | K6: =Time!K$10 -> 2 | L6: =Time!L$10 -> 3 | M6: =Time!M$10 -> 4 | N6: =Time!N$10 -> 5 | O6: =Time!O$10 -> 6 | P6: =Time!P$10 -> 7
F7: Constant | G7: Unit | H7: Total
E13: [don't delete row] | I13: [range starts]
A14: RCV - Water Resources
E15: Water resources RCV year start | G15: £m, (CPIH, 2017/18 prices) | K15: 116.3829343 | L15: 117.5754186 | M15: 118.4962721 | N15: 122.6962615 | O15: 122.8243914 | Q15: Suggested default: Table 3.4 FD Allowed Revenue appendix ('Total Opening RCV')
E16: Water Resources RCV year end | G16: £m, (CPIH, 2017/18 prices) | K16: 117.0411383 | L16: 117.9019857 | M16: 122.0949362 | N16: 122.2293515 | O16: 122.2132211 | Q16: Suggested default: Table 3.4 FD Allowed Revenue appendix ('Total Closing RCV')
A18: RCV - Water Network Plus
E19: Water Network Plus RCV year start | G19: £m, (CPIH, 2017/18 prices) | K19: 410.2219991 | L19: 408.6959332 | M19: 406.5257948 | N19: 401.7415987 | O19: 399.0772065 | Q19: Suggested default: Table 3.8 FD Allowed revenue appendix ('Total Opening RCV')
E20: Water Network Plus RCV year end | G20: £m, (CPIH, 2017/18 prices) | K20: 406.8810109 | L20: 404.5802384 | M20: 399.8443827 | N20: 397.267898 | O20: 395.3366653 | Q20: Suggested default: Table 3.8 FD Allowed revenue appendix ('Total Closing RCV')
A22: RCV - Wastewater Network Plus
E23: Watewater Network Plus RCV year start | G23: £m, (CPIH, 2017/18 prices) | Q23: Suggested default: Table 3.12 FD Allowed revenue appendix ('Total Opening RCV')
E24: Watewater Network Plus RCV year end | G24: £m, (CPIH, 2017/18 prices) | Q24: Suggested default: Table 3.12 FD Allowed revenue appendix ('Total Closing RCV')
A26: RCV - Bioresources
E27: Bioresources RCV year start | G27: £m, (CPIH, 2017/18 prices) | Q27: Suggested default: Table 3.16 FD Allowed revenue appendix ('Total Opening RCV')
E28: Bioresources RCV year end | G28: £m, (CPIH, 2017/18 prices) | Q28: Suggested default: Table 3.16 FD Allowed revenue appendix ('Total Closing RCV')
A30: RCV - Dummy
E31: Dummy RCV year start | G31: £m, (CPIH, 2017/18 prices) | Q31: Suggested default: Table 3.20 FD Allowed revenue appendix ('Total Opening RCV')
E32: Dummy RCV year end | G32: £m, (CPIH, 2017/18 prices) | Q32: Suggested default: Table 3.20 FD Allowed revenue appendix ('Total Closing RCV')
A35: COD
E36: Allowed sector new debt cost (not inc. CSA) - final determination (CPIH real) | G36: percentage | K36: 0.0019 | L36: 0.0019 | M36: 0.0019 | N36: 0.0019 | O36: 0.0019 | Q36: Suggested default: 0.53% - Table 1.1. FD Allowed return on capital technical appendix
E37: Allowed sector embedded debt cost (not inc. CSA) - final determination (CPIH real) | G37: percentage | K37: 0.0247 | L37: 0.0247 | M37: 0.0247 | N37: 0.0247 | O37: 0.0247 | Q37: Suggested default: 2.42% - Table 1.1. FD Allowed return on capital technical appendix
E38: Allowed sector issuance and liquidity costs - final determinations | K38: 0.0015 | L38: 0.0015 | M38: 0.0015 | N38: 0.0015 | O38: 0.0015 | Q38: Suggested default: 0.10% - Table 1.1. FD Allowed return on capital technical appendix
E40: =InpC!E$59 -> Units in 100% | F40: =InpC!F$59 -> 100 | G40: =InpC!G$59 -> units
E41: 1 Year average of iBoxx adjusted for 'outperformance wedge' (base) | G41: Percentage | K41: =AVERAGEIFS( InpIndex!$M:$M, InpIndex!$G:$G, K5) / $F40 -> 0.02157737394 | L41: =AVERAGEIFS( InpIndex!$M:$M, InpIndex!$G:$G, L5) / $F40 -> 0.0242888646 | M41: =AVERAGEIFS( InpIndex!$M:$M, InpIndex!$G:$G, M5) / $F40 -> 0.0478006327 | N41: =AVERAGEIFS( InpIndex!$M:$M, InpIndex!$G:$G, N5) / $F40 -> 0.05665589206 | O41: =AVERAGEIFS( InpIndex!$M:$M, InpIndex!$G:$G, O5) / $F40 -> 0.05659138926
E44: =InpC!E$52 -> Proportion of notional debt subject to indexation - intial balance | F44: =InpC!F$52 -> 0 | G44: =InpC!G$52 -> percentage | I44: =InpC!#REF! ->  | J44: =InpC!I$52 -> 0 | K44: =InpC!J$52 -> 0 | L44: =InpC!K$52 -> 0 | M44: =InpC!L$52 -> 0 | N44: =InpC!M$52 -> 0 | O44: =InpC!N$52 -> 0 | P44: =InpC!O$52 -> 0
E45: =InpC!E$51 -> Notional % of 'new' debt over period | F45: =InpC!F$51 -> 0.17 | G45: =InpC!G$51 -> percentage | I45: =InpC!#REF! ->  | J45: =InpC!I$51 -> 0 | K45: =InpC!J$51 -> 0 | L45: =InpC!K$51 -> 0 | M45: =InpC!L$51 -> 0 | N45: =InpC!M$51 -> 0 | O45: =InpC!N$51 -> 0 | P45: =InpC!O$51 -> 0
E46: =InpC!E$47 -> Mid-point of the AMP | F46: =InpC!F$47 -> 2.5 | G46: =InpC!G$47 -> years | H46: =InpC!H$54 -> 0 | I46: =InpC!#REF! ->  | J46: =InpC!I$54 -> 0 | K46: =InpC!J$54 -> 0 | L46: =InpC!K$54 -> 0 | M46: =InpC!L$54 -> 0 | N46: =InpC!M$54 -> 0 | O46: =InpC!N$54 -> 0 | P46: =InpC!O$54 -> 0
E48: =Time!E$44 -> Last Pre Forecast Flag | F48: =Time!F$44 -> 0 | G48: =Time!G$44 -> flag | H48: =Time!H$44 -> 1 | I48: =Time!I$44 -> 0 | J48: =Time!J$44 -> 1 | K48: =Time!K$44 -> 0 | L48: =Time!L$44 -> 0 | M48: =Time!M$44 -> 0 | N48: =Time!N$44 -> 0 | O48: =Time!O$44 -> 0 | P48: =Time!P$44 -> 0
E50: Proportion of notional debt subject to indexation BEG | G50: Percentage | J50: =I51 -> 0 | K50: =J51 -> 0 | L50: 0.068 | M50: 0.136 | N50: 0.204 | O50: 0.272 | P50: =O51 -> 0.34
E51: Proportion of notional debt subject to indexation END | G51: Percentage | J51: =IF( J48 = 1, $F44, J50 + ($F45 / $F46) ) -> 0 | K51: =IF( K48 = 1, $F44, K50 + ($F45 / $F46) ) -> 0.068 | L51: 0.136 | M51: =IF( M48 = 1, $F44, M50 + ($F45 / $F46) ) -> 0.204 | N51: 0.272 | O51: 0.34 | P51: 0.408
E55: =E$50 -> Proportion of notional debt subject to indexation BEG | F55: =F$50 -> 0 | G55: Percentage | H55: 0 | I55: 0 | J55: 0 | K55: =K$50 -> 0 | L55: 0.068 | M55: 0.136 | N55: 0.204 | O55: 0.272 | P55: 0.34
E56: =E$51 -> Proportion of notional debt subject to indexation END | F56: =F$51 -> 0 | G56: Percentage | H56: 0 | I56: 0 | J56: 0 | K56: 0.068 | L56: 0.136 | M56: 0.204 | N56: 0.272 | O56: 0.34 | P56: 0.408
E57: Proportion of notional debt subject to indexation (year average) | G57: percentage | J57: =IFERROR( AVERAGE( J55:J56), 0) -> 0 | K57: 0.034 | L57: 0.102 | M57: 0.17 | N57: 0.238 | O57: 0.306 | P57: 0.374
E59: CPIH inflation allowance (long-term assumption) | F59: =InpC!F53 -> 0.02 | G59: percentage | K59: =$F$59 -> 0.02 | L59: =$F$59 -> 0.02 | M59: 0.02 | N59: 0.02 | O59: 0.02
B63: Average debt cost weightings
E64: Average debt cost weighting 2021 | G64: Weighting | K64: 1 | L64: 0 | M64: 0 | N64: 0 | O64: 0 | Q64: Suggested default: Leave as populated
E65: Average debt cost weighting 2022 | G65: Weighting | K65: 1 | L65: 0.5 | M65: 0 | N65: 0 | O65: 0 | Q65: Suggested default: Leave as populated
E66: Average debt cost weighting 2023 | G66: Weighting | K66: 1 | L66: 1 | M66: 0.5 | N66: 0 | O66: 0 | Q66: Suggested default: Leave as populated
E67: Average debt cost weighting 2024 | G67: Weighting | K67: 1 | L67: 1 | M67: 1 | N67: 0.5 | O67: 0 | Q67: Suggested default: Leave as populated
E68: Average debt cost weighting 2025 | G68: Weighting | K68: 1 | L68: 1 | M68: 1 | N68: 1 | O68: 0.5 | Q68: Suggested default: Leave as populated
I71: [range ends]

Sheet InpIndex
A1: =RIGHT(CELL("filename", $A$1), LEN(CELL("filename", $A$1)) - SEARCH("]", CELL("filename", $A$1))) -> InpIndex
E5: Date | F5: Financial Year Month Start | G5: Fiscal Year | H5: iBoxx £ Non-Financials A 10+ | I5: iBoxx £ Non-Financials BBB 10+ | J5: Average of A and BBB | K5: Ex-ante outperformance wedge | L5: Company-specific adjustment | M5: Adjusted A/BBB average (base) | N5: Adjusted A/BBB average (CSA)
E6: 2016-01-01 | F6: =InpC!$F$28 -> 4 | G6: =YEAR(E6) + IF(MONTH(E6) >= F6, 1, 0) -> 2016 | H6: 3.9751 | I6: 4.36772 | J6: =IFERROR(AVERAGE(H6:I6),"") -> 4.17141 | K6: =InpC!$F$55*100 -> 0 | L6: =InpC!$F$64*100 -> 0 | M6: =IFERROR(J6 - K6,"") -> 4.17141 | N6: =IFERROR(J6-K6+L6,"") -> 4.17141
E7: 2016-01-04 | F7: =InpC!$F$28 -> 4 | G7: =YEAR(E7) + IF(MONTH(E7) >= F7, 1, 0) -> 2016 | H7: 3.92245 | I7: 4.31564 | J7: =IFERROR(AVERAGE(H7:I7),"") -> 4.119045 | K7: =InpC!$F$55*100 -> 0 | L7: =InpC!$F$64*100 -> 0 | M7: =IFERROR(J7 - K7,"") -> 4.119045 | N7: =IFERROR(J7-K7+L7,"") -> 4.119045
E8: 2016-01-05 | F8: =InpC!$F$28 -> 4 | G8: 2016 | H8: 3.90188 | I8: 4.29198 | J8: 4.09693 | K8: =InpC!$F$55*100 -> 0 | L8: =InpC!$F$64*100 -> 0 | M8: 4.09693 | N8: 4.09693
E9: 2016-01-06 | F9: =InpC!$F$28 -> 4 | G9: 2016 | H9: 3.83214 | I9: 4.22098 | J9: 4.02656 | K9: =InpC!$F$55*100 -> 0 | L9: =InpC!$F$64*100 -> 0 | M9: 4.02656 | N9: 4.02656
E10: 2016-01-07 | F10: =InpC!$F$28 -> 4 | G10: 2016 | H10: 3.87267 | I10: 4.26194 | J10: 4.067305 | K10: =InpC!$F$55*100 -> 0 | L10: =InpC!$F$64*100 -> 0 | M10: 4.067305 | N10: 4.067305
E11: 2016-01-08 | F11: =InpC!$F$28 -> 4 | G11: 2016 | H11: 3.84408 | I11: 4.23133 | J11: 4.037705 | K11: =InpC!$F$55*100 -> 0 | L11: =InpC!$F$64*100 -> 0 | M11: 4.037705 | N11: 4.037705
E12: 2016-01-11 | F12: =InpC!$F$28 -> 4 | G12: 2016 | H12: 3.85387 | I12: 4.24187 | J12: 4.04787 | K12: =InpC!$F$55*100 -> 0 | L12: =InpC!$F$64*100 -> 0 | M12: 4.04787 | N12: 4.04787
E13: 2016-01-12 | F13: =InpC!$F$28 -> 4 | G13: 2016 | H13: 3.84361 | I13: 4.23694 | J13: 4.040275 | K13: =InpC!$F$55*100 -> 0 | L13: =InpC!$F$64*100 -> 0 | M13: 4.040275 | N13: 4.040275
E14: 2016-01-13 | F14: =InpC!$F$28 -> 4 | G14: 2016 | H14: 3.84534 | I14: 4.24614 | J14: 4.04574 | K14: =InpC!$F$55*100 -> 0 | L14: =InpC!$F$64*100 -> 0 | M14: 4.04574 | N14: 4.04574
E15: 2016-01-14 | F15: =InpC!$F$28 -> 4 | G15: 2016 | H15: 3.87735 | I15: 4.28627 | J15: 4.08181 | K15: =InpC!$F$55*100 -> 0 | L15: =InpC!$F$64*100 -> 0 | M15: 4.08181 | N15: 4.08181
E16: 2016-01-15 | F16: =InpC!$F$28 -> 4 | G16: 2016 | H16: 3.84717 | I16: 4.25785 | J16: 4.05251 | K16: =InpC!$F$55*100 -> 0 | L16: =InpC!$F$64*100 -> 0 | M16: 4.05251 | N16: 4.05251
E17: 2016-01-18 | F17: =InpC!$F$28 -> 4 | G17: 2016 | H17: 3.90534 | I17: 4.32384 | J17: 4.11459 | K17: =InpC!$F$55*100 -> 0 | L17: =InpC!$F$64*100 -> 0 | M17: 4.11459 | N17: 4.11459
E18: 2016-01-19 | F18: =InpC!$F$28 -> 4 | G18: 2016 | H18: 3.93151 | I18: 4.34816 | J18: 4.139835 | K18: =InpC!$F$55*100 -> 0 | L18: =InpC!$F$64*100 -> 0 | M18: 4.139835 | N18: 4.139835
E19: 2016-01-20 | F19: =InpC!$F$28 -> 4 | G19: 2016 | H19: 3.89993 | I19: 4.32228 | J19: 4.111105 | K19: =InpC!$F$55*100 -> 0 | L19: =InpC!$F$64*100 -> 0 | M19: 4.111105 | N19: 4.111105
E20: 2016-01-21 | F20: =InpC!$F$28 -> 4 | G20: 2016 | H20: 3.98832 | I20: 4.39452 | J20: 4.19142 | K20: =InpC!$F$55*100 -> 0 | L20: =InpC!$F$64*100 -> 0 | M20: 4.19142 | N20: 4.19142
E21: 2016-01-22 | F21: =InpC!$F$28 -> 4 | G21: 2016 | H21: 4.01698 | I21: 4.41957 | J21: 4.218275 | K21: =InpC!$F$55*100 -> 0 | L21: =InpC!$F$64*100 -> 0 | M21: 4.218275 | N21: 4.218275
E22: 2016-01-25 | F22: =InpC!$F$28 -> 4 | G22: 2016 | H22: 3.98922 | I22: 4.38957 | J22: 4.189395 | K22: =InpC!$F$55*100 -> 0 | L22: =InpC!$F$64*100 -> 0 | M22: 4.189395 | N22: 4.189395
E23: 2016-01-26 | F23: =InpC!$F$28 -> 4 | G23: 2016 | H23: 4.0028 | I23: 4.40482 | J23: 4.20381 | K23: =InpC!$F$55*100 -> 0 | L23: =InpC!$F$64*100 -> 0 | M23: 4.20381 | N23: 4.20381
E24: 2016-01-27 | F24: =InpC!$F$28 -> 4 | G24: 2016 | H24: 4.00558 | I24: 4.41283 | J24: 4.209205 | K24: =InpC!$F$55*100 -> 0 | L24: =InpC!$F$64*100 -> 0 | M24: 4.209205 | N24: 4.209205
E25: 2016-01-28 | F25: =InpC!$F$28 -> 4 | G25: 2016 | H25: 3.99057 | I25: 4.39923 | J25: 4.1949 | K25: =InpC!$F$55*100 -> 0 | L25: =InpC!$F$64*100 -> 0 | M25: 4.1949 | N25: 4.1949
E26: 2016-01-29 | F26: =InpC!$F$28 -> 4 | G26: 2016 | H26: 3.91689 | I26: 4.32356 | J26: 4.120225 | K26: =InpC!$F$55*100 -> 0 | L26: =InpC!$F$64*100 -> 0 | M26: 4.120225 | N26: 4.120225
E27: 2016-02-01 | F27: =InpC!$F$28 -> 4 | G27: 2016 | H27: 3.98019 | I27: 4.35438 | J27: 4.167285 | K27: =InpC!$F$55*100 -> 0 | L27: =InpC!$F$64*100 -> 0 | M27: 4.167285 | N27: 4.167285
E28: 2016-02-02 | F28: =InpC!$F$28 -> 4 | G28: 2016 | H28: 3.93569 | I28: 4.31261 | J28: 4.12415 | K28: =InpC!$F$55*100 -> 0 | L28: =InpC!$F$64*100 -> 0 | M28: 4.12415 | N28: 4.12415
E29: 2016-02-03 | F29: =InpC!$F$28 -> 4 | G29: 2016 | H29: 3.91578 | I29: 4.30182 | J29: 4.1088 | K29: =InpC!$F$55*100 -> 0 | L29: =InpC!$F$64*100 -> 0 | M29: 4.1088 | N29: 4.1088
E30: 2016-02-04 | F30: =InpC!$F$28 -> 4 | G30: 2016 | H30: 3.97576 | I30: 4.36683 | J30: 4.171295 | K30: =InpC!$F$55*100 -> 0 | L30: =InpC!$F$64*100 -> 0 | M30: 4.171295 | N30: 4.171295
E31: 2016-02-05 | F31: =InpC!$F$28 -> 4 | G31: 2016 | H31: 3.99939 | I31: 4.40005 | J31: 4.19972 | K31: =InpC!$F$55*100 -> 0 | L31: =InpC!$F$64*100 -> 0 | M31: 4.19972 | N31: 4.19972
E32: 2016-02-08 | F32: =InpC!$F$28 -> 4 | G32: 2016 | H32: 3.90513 | I32: 4.31331 | J32: 4.10922 | K32: =InpC!$F$55*100 -> 0 | L32: =InpC!$F$64*100 -> 0 | M32: 4.10922 | N32: 4.10922
E33: 2016-02-09 | F33: =InpC!$F$28 -> 4 | G33: 2016 | H33: 3.94559 | I33: 4.36324 | J33: 4.154415 | K33: =InpC!$F$55*100 -> 0 | L33: =InpC!$F$64*100 -> 0 | M33: 4.154415 | N33: 4.154415
E34: 2016-02-10 | F34: =InpC!$F$28 -> 4 | G34: 2016 | H34: 3.96263 | I34: 4.37935 | J34: 4.17099 | K34: =InpC!$F$55*100 -> 0 | L34: =InpC!$F$64*100 -> 0 | M34: 4.17099 | N34: 4.17099
E35: 2016-02-11 | F35: =InpC!$F$28 -> 4 | G35: 2016 | H35: 3.89228 | I35: 4.31227 | J35: 4.102275 | K35: =InpC!$F$55*100 -> 0 | L35: =InpC!$F$64*100 -> 0 | M35: 4.102275 | N35: 4.102275
E36: 2016-02-12 | F36: =InpC!$F$28 -> 4 | G36: 2016 | H36: 4.00676 | I36: 4.42687 | J36: 4.216815 | K36: =InpC!$F$55*100 -> 0 | L36: =InpC!$F$64*100 -> 0 | M36: 4.216815 | N36: 4.216815
E37: 2016-02-15 | F37: =InpC!$F$28 -> 4 | G37: 2016 | H37: 4.03123 | I37: 4.44996 | J37: 4.240595 | K37: =InpC!$F$55*100 -> 0 | L37: =InpC!$F$64*100 -> 0 | M37: 4.240595 | N37: 4.240595
E38: 2016-02-16 | F38: =InpC!$F$28 -> 4 | G38: 2016 | H38: 4.03773 | I38: 4.45766 | J38: 4.247695 | K38: =InpC!$F$55*100 -> 0 | L38: =InpC!$F$64*100 -> 0 | M38: 4.247695 | N38: 4.247695
E39: 2016-02-17 | F39: =InpC!$F$28 -> 4 | G39: 2016 | H39: 4.09553 | I39: 4.51675 | J39: 4.30614 | K39: =InpC!$F$55*100 -> 0 | L39: =InpC!$F$64*100 -> 0 | M39: 4.30614 | N39: 4.30614
E40: 2016-02-18 | F40: =InpC!$F$28 -> 4 | G40: 2016 | H40: 4.06055 | I40: 4.47653 | J40: 4.26854 | K40: =InpC!$F$55*100 -> 0 | L40: =InpC!$F$64*100 -> 0 | M40: 4.26854 | N40: 4.26854
E41: 2016-02-19 | F41: =InpC!$F$28 -> 4 | G41: 2016 | H41: 4.029 | I41: 4.4443 | J41: 4.23665 | K41: =InpC!$F$55*100 -> 0 | L41: =InpC!$F$64*100 -> 0 | M41: 4.23665 | N41: 4.23665
E42: 2016-02-22 | F42: =InpC!$F$28 -> 4 | G42: 2016 | H42: 4.02666 | I42: 4.4417 | J42: 4.23418 | K42: =InpC!$F$55*100 -> 0 | L42: =InpC!$F$64*100 -> 0 | M42: 4.23418 | N42: 4.23418
E43: 2016-02-23 | F43: =InpC!$F$28 -> 4 | G43: 2016 | H43: 4.04759 | I43: 4.46418 | J43: 4.255885 | K43: =InpC!$F$55*100 -> 0 | L43: =InpC!$F$64*100 -> 0 | M43: 4.255885 | N43: 4.255885
E44: 2016-02-24 | F44: =InpC!$F$28 -> 4 | G44: 2016 | H44: 3.99377 | I44: 4.40544 | J44: 4.199605 | K44: =InpC!$F$55*100 -> 0 | L44: =InpC!$F$64*100 -> 0 | M44: 4.199605 | N44: 4.199605
E45: 2016-02-25 | F45: =InpC!$F$28 -> 4 | G45: 2016 | H45: 4.02152 | I45: 4.42551 | J45: 4.223515 | K45: =InpC!$F$55*100 -> 0 | L45: =InpC!$F$64*100 -> 0 | M45: 4.223515 | N45: 4.223515
E46: 2016-02-26 | F46: =InpC!$F$28 -> 4 | G46: 2016 | H46: 4.04077 | I46: 4.44247 | J46: 4.24162 | K46: =InpC!$F$55*100 -> 0 | L46: =InpC!$F$64*100 -> 0 | M46: 4.24162 | N46: 4.24162
E47: 2016-02-29 | F47: =InpC!$F$28 -> 4 | G47: 2016 | H47: 3.96531 | I47: 4.36216 | J47: 4.163735 | K47: =InpC!$F$55*100 -> 0 | L47: =InpC!$F$64*100 -> 0 | M47: 4.163735 | N47: 4.163735
E48: 2016-03-01 | F48: =InpC!$F$28 -> 4 | G48: 2016 | H48: 3.9761 | I48: 4.38065 | J48: 4.178375 | K48: =InpC!$F$55*100 -> 0 | L48: =InpC!$F$64*100 -> 0 | M48: 4.178375 | N48: 4.178375
E49: 2016-03-02 | F49: =InpC!$F$28 -> 4 | G49: 2016 | H49: 4.00153 | I49: 4.40133 | J49: 4.20143 | K49: =InpC!$F$55*100 -> 0 | L49: =InpC!$F$64*100 -> 0 | M49: 4.20143 | N49: 4.20143
E50: 2016-03-03 | F50: =InpC!$F$28 -> 4 | G50: 2016 | H50: 3.96123 | I50: 4.35756 | J50: 4.159395 | K50: =InpC!$F$55*100 -> 0 | L50: =InpC!$F$64*100 -> 0 | M50: 4.159395 | N50: 4.159395
E51: 2016-03-04 | F51: =InpC!$F$28 -> 4 | G51: 2016 | H51: 3.97776 | I51: 4.36884 | J51: 4.1733 | K51: =InpC!$F$55*100 -> 0 | L51: =InpC!$F$64*100 -> 0 | M51: 4.1733 | N51: 4.1733
E52: 2016-03-07 | F52: =InpC!$F$28 -> 4 | G52: 2016 | H52: 3.97017 | I52: 4.35565 | J52: 4.16291 | K52: =InpC!$F$55*100 -> 0 | L52: =InpC!$F$64*100 -> 0 | M52: 4.16291 | N52: 4.16291
E53: 2016-03-08 | F53: =InpC!$F$28 -> 4 | G53: 2016 | H53: 3.84638 | I53: 4.23065 | J53: 4.038515 | K53: =InpC!$F$55*100 -> 0 | L53: =InpC!$F$64*100 -> 0 | M53: 4.038515 | N53: 4.038515
E54: 2016-03-09 | F54: =InpC!$F$28 -> 4 | G54: 2016 | H54: 3.91788 | I54: 4.30588 | J54: 4.11188 | K54: =InpC!$F$55*100 -> 0 | L54: =InpC!$F$64*100 -> 0 | M54: 4.11188 | N54: 4.11188
E55: 2016-03-10 | F55: =InpC!$F$28 -> 4 | G55: 2016 | H55: 3.91262 | I55: 4.29302 | J55: 4.10282 | K55: =InpC!$F$55*100 -> 0 | L55: =InpC!$F$64*100 -> 0 | M55: 4.10282 | N55: 4.10282
E56: 2016-03-11 | F56: =InpC!$F$28 -> 4 | G56: 2016 | H56: 3.87244 | I56: 4.24331 | J56: 4.057875 | K56: =InpC!$F$55*100 -> 0 | L56: =InpC!$F$64*100 -> 0 | M56: 4.057875 | N56: 4.057875
E57: 2016-03-14 | F57: =InpC!$F$28 -> 4 | G57: 2016 | H57: 3.8034 | I57: 4.16465 | J57: 3.984025 | K57: =InpC!$F$55*100 -> 0 | L57: =InpC!$F$64*100 -> 0 | M57: 3.984025 | N57: 3.984025
E58: 2016-03-15 | F58: =InpC!$F$28 -> 4 | G58: 2016 | H58: 3.78524 | I58: 4.14078 | J58: 3.96301 | K58: =InpC!$F$55*100 -> 0 | L58: =InpC!$F$64*100 -> 0 | M58: 3.96301 | N58: 3.96301
E59: 2016-03-16 | F59: =InpC!$F$28 -> 4 | G59: 2016 | H59: 3.78202 | I59: 4.13877 | J59: 3.960395 | K59: =InpC!$F$55*100 -> 0 | L59: =InpC!$F$64*100 -> 0 | M59: 3.960395 | N59: 3.960395
E60: 2016-03-17 | F60: =InpC!$F$28 -> 4 | G60: 2016 | H60: 3.73321 | I60: 4.08828 | J60: 3.910745 | K60: =InpC!$F$55*100 -> 0 | L60: =InpC!$F$64*100 -> 0 | M60: 3.910745 | N60: 3.910745
E61: 2016-03-18 | F61: =InpC!$F$28 -> 4 | G61: 2016 | H61: 3.72389 | I61: 4.07935 | J61: 3.90162 | K61: =InpC!$F$55*100 -> 0 | L61: =InpC!$F$64*100 -> 0 | M61: 3.90162 | N61: 3.90162
E62: 2016-03-21 | F62: =InpC!$F$28 -> 4 | G62: 2016 | H62: 3.73925 | I62: 4.09623 | J62: 3.91774 | K62: =InpC!$F$55*100 -> 0 | L62: =InpC!$F$64*100 -> 0 | M62: 3.91774 | N62: 3.91774
E63: 2016-03-22 | F63: =InpC!$F$28 -> 4 | G63: 2016 | H63: 3.71526 | I63: 4.07256 | J63: 3.89391 | K63: =InpC!$F$55*100 -> 0 | L63: =InpC!$F$64*100 -> 0 | M63: 3.89391 | N63: 3.89391
E64: 2016-03-23 | F64: =InpC!$F$28 -> 4 | G64: 2016 | H64: 3.68949 | I64: 4.04753 | J64: 3.86851 | K64: =InpC!$F$55*100 -> 0 | L64: =InpC!$F$64*100 -> 0 | M64: 3.86851 | N64: 3.86851
E65: 2016-03-24 | F65: =InpC!$F$28 -> 4 | G65: 2016 | H65: 3.71392 | I65: 4.0697 | J65: 3.89181 | K65: =InpC!$F$55*100 -> 0 | L65: =InpC!$F$64*100 -> 0 | M65: 3.89181 | N65: 3.89181
E66: 2016-03-25 | F66: =InpC!$F$28 -> 4 | G66: 2016 | H66: 3.71392 | I66: 4.0697 | J66: 3.89181 | K66: =InpC!$F$55*100 -> 0 | L66: =InpC!$F$64*100 -> 0 | M66: 3.89181 | N66: 3.89181
E67: 2016-03-28 | F67: =InpC!$F$28 -> 4 | G67: 2016 | H67: 3.71392 | I67: 4.0697 | J67: 3.89181 | K67: =InpC!$F$55*100 -> 0 | L67: =InpC!$F$64*100 -> 0 | M67: 3.89181 | N67: 3.89181
E68: 2016-03-29 | F68: =InpC!$F$28 -> 4 | G68: 2016 | H68: 3.68435 | I68: 4.03381 | J68: 3.85908 | K68: =InpC!$F$55*100 -> 0 | L68: =InpC!$F$64*100 -> 0 | M68: 3.85908 | N68: 3.85908
E69: 2016-03-30 | F69: =InpC!$F$28 -> 4 | G69: 2016 | H69: 3.7105 | I69: 4.0582 | J69: 3.88435 | K69: =InpC!$F$55*100 -> 0 | L69: =InpC!$F$64*100 -> 0 | M69: 3.88435 | N69: 3.88435
E70: 2016-03-31 | F70: =InpC!$F$28 -> 4 | G70: 2016 | H70: 3.65931 | I70: 4.00814 | J70: 3.833725 | K70: =InpC!$F$55*100 -> 0 | L70: =InpC!$F$64*100 -> 0 | M70: 3.833725 | N70: 3.833725
E71: 2016-04-01 | F71: =InpC!$F$28 -> 4 | G71: =YEAR(E71) + IF(MONTH(E71) >= F71, 1, 0) -> 2017 | H71: 3.64988 | I71: 4.01377 | J71: =IFERROR(AVERAGE(H71:I71),"") -> 3.831825 | K71: =InpC!$F$55*100 -> 0 | L71: =InpC!$F$64*100 -> 0 | M71: =IFERROR(J71 - K71,"") -> 3.831825 | N71: =IFERROR(J71-K71+L71,"") -> 3.831825
E72: 2016-04-04 | F72: =InpC!$F$28 -> 4 | G72: 2017 | H72: 3.63369 | I72: 3.99331 | J72: 3.8135 | K72: =InpC!$F$55*100 -> 0 | L72: =InpC!$F$64*100 -> 0 | M72: 3.8135 | N72: 3.8135
E73: 2016-04-05 | F73: =InpC!$F$28 -> 4 | G73: 2017 | H73: 3.58842 | I73: 3.94694 | J73: 3.76768 | K73: =InpC!$F$55*100 -> 0 | L73: =InpC!$F$64*100 -> 0 | M73: 3.76768 | N73: 3.76768
E74: 2016-04-06 | F74: =InpC!$F$28 -> 4 | G74: 2017 | H74: 3.58721 | I74: 3.94584 | J74: 3.766525 | K74: =InpC!$F$55*100 -> 0 | L74: =InpC!$F$64*100 -> 0 | M74: 3.766525 | N74: 3.766525
E75: 2016-04-07 | F75: =InpC!$F$28 -> 4 | G75: 2017 | H75: 3.53245 | I75: 3.87812 | J75: 3.705285 | K75: =InpC!$F$55*100 -> 0 | L75: =InpC!$F$64*100 -> 0 | M75: 3.705285 | N75: 3.705285
E76: 2016-04-08 | F76: =InpC!$F$28 -> 4 | G76: 2017 | H76: 3.56843 | I76: 3.9142 | J76: 3.741315 | K76: =InpC!$F$55*100 -> 0 | L76: =InpC!$F$64*100 -> 0 | M76: 3.741315 | N76: 3.741315
E77: 2016-04-11 | F77: =InpC!$F$28 -> 4 | G77: 2017 | H77: 3.60078 | I77: 3.94716 | J77: 3.77397 | K77: =InpC!$F$55*100 -> 0 | L77: =InpC!$F$64*100 -> 0 | M77: 3.77397 | N77: 3.77397
E78: 2016-04-12 | F78: =InpC!$F$28 -> 4 | G78: 2017 | H78: 3.64168 | I78: 3.98867 | J78: 3.815175 | K78: =InpC!$F$55*100 -> 0 | L78: =InpC!$F$64*100 -> 0 | M78: 3.815175 | N78: 3.815175
E79: 2016-04-13 | F79: =InpC!$F$28 -> 4 | G79: 2017 | H79: 3.60947 | I79: 3.95589 | J79: 3.78268 | K79: =InpC!$F$55*100 -> 0 | L79: =InpC!$F$64*100 -> 0 | M79: 3.78268 | N79: 3.78268
E80: 2016-04-14 | F80: =InpC!$F$28 -> 4 | G80: 2017 | H80: 3.61316 | I80: 3.95612 | J80: 3.78464 | K80: =InpC!$F$55*100 -> 0 | L80: =InpC!$F$64*100 -> 0 | M80: 3.78464 | N80: 3.78464
E81: 2016-04-15 | F81: =InpC!$F$28 -> 4 | G81: 2017 | H81: 3.5887 | I81: 3.92793 | J81: 3.758315 | K81: =InpC!$F$55*100 -> 0 | L81: =InpC!$F$64*100 -> 0 | M81: 3.758315 | N81: 3.758315
E82: 2016-04-18 | F82: =InpC!$F$28 -> 4 | G82: 2017 | H82: 3.64428 | I82: 3.98299 | J82: 3.813635 | K82: =InpC!$F$55*100 -> 0 | L82: =InpC!$F$64*100 -> 0 | M82: 3.813635 | N82: 3.813635
E83: 2016-04-19 | F83: =InpC!$F$28 -> 4 | G83: 2017 | H83: 3.66684 | I83: 3.99895 | J83: 3.832895 | K83: =InpC!$F$55*100 -> 0 | L83: =InpC!$F$64*100 -> 0 | M83: 3.832895 | N83: 3.832895
E84: 2016-04-20 | F84: =InpC!$F$28 -> 4 | G84: 2017 | H84: 3.60681 | I84: 3.93578 | J84: 3.771295 | K84: =InpC!$F$55*100 -> 0 | L84: =InpC!$F$64*100 -> 0 | M84: 3.771295 | N84: 3.771295
E85: 2016-04-21 | F85: =InpC!$F$28 -> 4 | G85: 2017 | H85: 3.67037 | I85: 3.98908 | J85: 3.829725 | K85: =InpC!$F$55*100 -> 0 | L85: =InpC!$F$64*100 -> 0 | M85: 3.829725 | N85: 3.829725
E86: 2016-04-22 | F86: =InpC!$F$28 -> 4 | G86: 2017 | H86: 3.67073 | I86: 3.98421 | J86: 3.82747 | K86: =InpC!$F$55*100 -> 0 | L86: =InpC!$F$64*100 -> 0 | M86: 3.82747 | N86: 3.82747
E87: 2016-04-25 | F87: =InpC!$F$28 -> 4 | G87: 2017 | H87: 3.65427 | I87: 3.9649 | J87: 3.809585 | K87: =InpC!$F$55*100 -> 0 | L87: =InpC!$F$64*100 -> 0 | M87: 3.809585 | N87: 3.809585
E88: 2016-04-26 | F88: =InpC!$F$28 -> 4 | G88: 2017 | H88: 3.69867 | I88: 4.01402 | J88: 3.856345 | K88: =InpC!$F$55*100 -> 0 | L88: =InpC!$F$64*100 -> 0 | M88: 3.856345 | N88: 3.856345
E89: 2016-04-27 | F89: =InpC!$F$28 -> 4 | G89: 2017 | H89: 3.65363 | I89: 3.96312 | J89: 3.808375 | K89: =InpC!$F$55*100 -> 0 | L89: =InpC!$F$64*100 -> 0 | M89: 3.808375 | N89: 3.808375
E90: 2016-04-28 | F90: =InpC!$F$28 -> 4 | G90: 2017 | H90: 3.62387 | I90: 3.93227 | J90: 3.77807 | K90: =InpC!$F$55*100 -> 0 | L90: =InpC!$F$64*100 -> 0 | M90: 3.77807 | N90: 3.77807
E91: 2016-04-29 | F91: =InpC!$F$28 -> 4 | G91: 2017 | H91: 3.61051 | I91: 3.91935 | J91: 3.76493 | K91: =InpC!$F$55*100 -> 0 | L91: =InpC!$F$64*100 -> 0 | M91: 3.76493 | N91: 3.76493
E92: 2016-05-02 | F92: =InpC!$F$28 -> 4 | G92: 2017 | H92: 3.61036 | I92: 3.9192 | J92: 3.76478 | K92: =InpC!$F$55*100 -> 0 | L92: =InpC!$F$64*100 -> 0 | M92: 3.76478 | N92: 3.76478
E93: 2016-05-03 | F93: =InpC!$F$28 -> 4 | G93: 2017 | H93: 3.53382 | I93: 3.84447 | J93: 3.689145 | K93: =InpC!$F$55*100 -> 0 | L93: =InpC!$F$64*100 -> 0 | M93: 3.689145 | N93: 3.689145
E94: 2016-05-04 | F94: =InpC!$F$28 -> 4 | G94: 2017 | H94: 3.544 | I94: 3.85514 | J94: 3.69957 | K94: =InpC!$F$55*100 -> 0 | L94: =InpC!$F$64*100 -> 0 | M94: 3.69957 | N94: 3.69957
E95: 2016-05-05 | F95: =InpC!$F$28 -> 4 | G95: 2017 | H95: 3.51435 | I95: 3.8217 | J95: 3.668025 | K95: =InpC!$F$55*100 -> 0 | L95: =InpC!$F$64*100 -> 0 | M95: 3.668025 | N95: 3.668025
E96: 2016-05-06 | F96: =InpC!$F$28 -> 4 | G96: 2017 | H96: 3.47282 | I96: 3.78803 | J96: 3.630425 | K96: =InpC!$F$55*100 -> 0 | L96: =InpC!$F$64*100 -> 0 | M96: 3.630425 | N96: 3.630425
E97: 2016-05-09 | F97: =InpC!$F$28 -> 4 | G97: 2017 | H97: 3.48748 | I97: 3.80573 | J97: 3.646605 | K97: =InpC!$F$55*100 -> 0 | L97: =InpC!$F$64*100 -> 0 | M97: 3.646605 | N97: 3.646605
E98: 2016-05-10 | F98: =InpC!$F$28 -> 4 | G98: 2017 | H98: 3.49592 | I98: 3.81786 | J98: 3.65689 | K98: =InpC!$F$55*100 -> 0 | L98: =InpC!$F$64*100 -> 0 | M98: 3.65689 | N98: 3.65689
E99: 2016-05-11 | F99: =InpC!$F$28 -> 4 | G99: 2017 | H99: 3.49772 | I99: 3.82245 | J99: 3.660085 | K99: =InpC!$F$55*100 -> 0 | L99: =InpC!$F$64*100 -> 0 | M99: 3.660085 | N99: 3.660085
E100: 2016-05-12 | F100: =InpC!$F$28 -> 4 | G100: 2017 | H100: 3.52739 | I100: 3.84908 | J100: 3.688235 | K100: =InpC!$F$55*100 -> 0 | L100: =InpC!$F$64*100 -> 0 | M100: 3.688235 | N100: 3.688235
E101: 2016-05-13 | F101: =InpC!$F$28 -> 4 | G101: 2017 | H101: 3.51074 | I101: 3.82785 | J101: 3.669295 | K101: =InpC!$F$55*100 -> 0 | L101: =InpC!$F$64*100 -> 0 | M101: 3.669295 | N101: 3.669295
E102: 2016-05-16 | F102: =InpC!$F$28 -> 4 | G102: 2017 | H102: 3.52625 | I102: 3.84417 | J102: 3.68521 | K102: =InpC!$F$55*100 -> 0 | L102: =InpC!$F$64*100 -> 0 | M102: 3.68521 | N102: 3.68521
E103: 2016-05-17 | F103: =InpC!$F$28 -> 4 | G103: 2017 | H103: 3.50614 | I103: 3.82276 | J103: 3.66445 | K103: =InpC!$F$55*100 -> 0 | L103: =InpC!$F$64*100 -> 0 | M103: 3.66445 | N103: 3.66445
E104: 2016-05-18 | F104: =InpC!$F$28 -> 4 | G104: 2017 | H104: 3.57887 | I104: 3.89705 | J104: 3.73796 | K104: =InpC!$F$55*100 -> 0 | L104: =InpC!$F$64*100 -> 0 | M104: 3.73796 | N104: 3.73796
E105: 2016-05-19 | F105: =InpC!$F$28 -> 4 | G105: 2017 | H105: 3.57287 | I105: 3.89133 | J105: 3.7321 | K105: =InpC!$F$55*100 -> 0 | L105: =InpC!$F$64*100 -> 0 | M105: 3.7321 | N105: 3.7321
E106: 2016-05-20 | F106: =InpC!$F$28 -> 4 | G106: 2017 | H106: 3.59837 | I106: 3.91724 | J106: 3.757805 | K106: =InpC!$F$55*100 -> 0 | L106: =InpC!$F$64*100 -> 0 | M106: 3.757805 | N106: 3.757805
E107: 2016-05-23 | F107: =InpC!$F$28 -> 4 | G107: 2017 | H107: 3.59265 | I107: 3.9135 | J107: 3.753075 | K107: =InpC!$F$55*100 -> 0 | L107: =InpC!$F$64*100 -> 0 | M107: 3.753075 | N107: 3.753075
E108: 2016-05-24 | F108: =InpC!$F$28 -> 4 | G108: 2017 | H108: 3.597 | I108: 3.91782 | J108: 3.75741 | K108: =InpC!$F$55*100 -> 0 | L108: =InpC!$F$64*100 -> 0 | M108: 3.75741 | N108: 3.75741
E109: 2016-05-25 | F109: =InpC!$F$28 -> 4 | G109: 2017 | H109: 3.56193 | I109: 3.88206 | J109: 3.721995 | K109: =InpC!$F$55*100 -> 0 | L109: =InpC!$F$64*100 -> 0 | M109: 3.721995 | N109: 3.721995
E110: 2016-05-26 | F110: =InpC!$F$28 -> 4 | G110: 2017 | H110: 3.52001 | I110: 3.84162 | J110: 3.680815 | K110: =InpC!$F$55*100 -> 0 | L110: =InpC!$F$64*100 -> 0 | M110: 3.680815 | N110: 3.680815
E111: 2016-05-27 | F111: =InpC!$F$28 -> 4 | G111: 2017 | H111: 3.53479 | I111: 3.85431 | J111: 3.69455 | K111: =InpC!$F$55*100 -> 0 | L111: =InpC!$F$64*100 -> 0 | M111: 3.69455 | N111: 3.69455
E112: 2016-05-30 | F112: =InpC!$F$28 -> 4 | G112: 2017 | H112: 3.53479 | I112: 3.85431 | J112: 3.69455 | K112: =InpC!$F$55*100 -> 0 | L112: =InpC!$F$64*100 -> 0 | M112: 3.69455 | N112: 3.69455
E113: 2016-05-31 | F113: =InpC!$F$28 -> 4 | G113: 2017 | H113: 3.51182 | I113: 3.83661 | J113: 3.674215 | K113: =InpC!$F$55*100 -> 0 | L113: =InpC!$F$64*100 -> 0 | M113: 3.674215 | N113: 3.674215
E114: 2016-06-01 | F114: =InpC!$F$28 -> 4 | G114: 2017 | H114: 3.44678 | I114: 3.77353 | J114: 3.610155 | K114: =InpC!$F$55*100 -> 0 | L114: =InpC!$F$64*100 -> 0 | M114: 3.610155 | N114: 3.610155
E115: 2016-06-02 | F115: =InpC!$F$28 -> 4 | G115: 2017 | H115: 3.42199 | I115: 3.75425 | J115: 3.58812 | K115: =InpC!$F$55*100 -> 0 | L115: =InpC!$F$64*100 -> 0 | M115: 3.58812 | N115: 3.58812
E116: 2016-06-03 | F116: =InpC!$F$28 -> 4 | G116: 2017 | H116: 3.36588 | I116: 3.69535 | J116: 3.530615 | K116: =InpC!$F$55*100 -> 0 | L116: =InpC!$F$64*100 -> 0 | M116: 3.530615 | N116: 3.530615
E117: 2016-06-06 | F117: =InpC!$F$28 -> 4 | G117: 2017 | H117: 3.37952 | I117: 3.70719 | J117: 3.543355 | K117: =InpC!$F$55*100 -> 0 | L117: =InpC!$F$64*100 -> 0 | M117: 3.543355 | N117: 3.543355
E118: 2016-06-07 | F118: =InpC!$F$28 -> 4 | G118: 2017 | H118: 3.36363 | I118: 3.69457 | J118: 3.5291 | K118: =InpC!$F$55*100 -> 0 | L118: =InpC!$F$64*100 -> 0 | M118: 3.5291 | N118: 3.5291
E119: 2016-06-08 | F119: =InpC!$F$28 -> 4 | G119: 2017 | H119: 3.33803 | I119: 3.66904 | J119: 3.503535 | K119: =InpC!$F$55*100 -> 0 | L119: =InpC!$F$64*100 -> 0 | M119: 3.503535 | N119: 3.503535
E120: 2016-06-09 | F120: =InpC!$F$28 -> 4 | G120: 2017 | H120: 3.30309 | I120: 3.63551 | J120: 3.4693 | K120: =InpC!$F$55*100 -> 0 | L120: =InpC!$F$64*100 -> 0 | M120: 3.4693 | N120: 3.4693
E121: 2016-06-10 | F121: =InpC!$F$28 -> 4 | G121: 2017 | H121: 3.28576 | I121: 3.62469 | J121: 3.455225 | K121: =InpC!$F$55*100 -> 0 | L121: =InpC!$F$64*100 -> 0 | M121: 3.455225 | N121: 3.455225
E122: 2016-06-13 | F122: =InpC!$F$28 -> 4 | G122: 2017 | H122: 3.28417 | I122: 3.63442 | J122: 3.459295 | K122: =InpC!$F$55*100 -> 0 | L122: =InpC!$F$64*100 -> 0 | M122: 3.459295 | N122: 3.459295
E123: 2016-06-14 | F123: =InpC!$F$28 -> 4 | G123: 2017 | H123: 3.24065 | I123: 3.59621 | J123: 3.41843 | K123: =InpC!$F$55*100 -> 0 | L123: =InpC!$F$64*100 -> 0 | M123: 3.41843 | N123: 3.41843
E124: 2016-06-15 | F124: =InpC!$F$28 -> 4 | G124: 2017 | H124: 3.21499 | I124: 3.57145 | J124: 3.39322 | K124: =InpC!$F$55*100 -> 0 | L124: =InpC!$F$64*100 -> 0 | M124: 3.39322 | N124: 3.39322
E125: 2016-06-16 | F125: =InpC!$F$28 -> 4 | G125: 2017 | H125: 3.23413 | I125: 3.60196 | J125: 3.418045 | K125: =InpC!$F$55*100 -> 0 | L125: =InpC!$F$64*100 -> 0 | M125: 3.418045 | N125: 3.418045
E126: 2016-06-17 | F126: =InpC!$F$28 -> 4 | G126: 2017 | H126: 3.29793 | I126: 3.66195 | J126: 3.47994 | K126: =InpC!$F$55*100 -> 0 | L126: =InpC!$F$64*100 -> 0 | M126: 3.47994 | N126: 3.47994
E127: 2016-06-20 | F127: =InpC!$F$28 -> 4 | G127: 2017 | H127: 3.38699 | I127: 3.74698 | J127: 3.566985 | K127: =InpC!$F$55*100 -> 0 | L127: =InpC!$F$64*100 -> 0 | M127: 3.566985 | N127: 3.566985
E128: 2016-06-21 | F128: =InpC!$F$28 -> 4 | G128: 2017 | H128: 3.40965 | I128: 3.76723 | J128: 3.58844 | K128: =InpC!$F$55*100 -> 0 | L128: =InpC!$F$64*100 -> 0 | M128: 3.58844 | N128: 3.58844
E129: 2016-06-22 | F129: =InpC!$F$28 -> 4 | G129: 2017 | H129: 3.42851 | I129: 3.78287 | J129: 3.60569 | K129: =InpC!$F$55*100 -> 0 | L129: =InpC!$F$64*100 -> 0 | M129: 3.60569 | N129: 3.60569
E130: 2016-06-23 | F130: =InpC!$F$28 -> 4 | G130: 2017 | H130: 3.4358 | I130: 3.78242 | J130: 3.60911 | K130: =InpC!$F$55*100 -> 0 | L130: =InpC!$F$64*100 -> 0 | M130: 3.60911 | N130: 3.60911
E131: 2016-06-24 | F131: =InpC!$F$28 -> 4 | G131: 2017 | H131: 3.3601 | I131: 3.72455 | J131: 3.542325 | K131: =InpC!$F$55*100 -> 0 | L131: =InpC!$F$64*100 -> 0 | M131: 3.542325 | N131: 3.542325
E132: 2016-06-27 | F132: =InpC!$F$28 -> 4 | G132: 2017 | H132: 3.24611 | I132: 3.60879 | J132: 3.42745 | K132: =InpC!$F$55*100 -> 0 | L132: =InpC!$F$64*100 -> 0 | M132: 3.42745 | N132: 3.42745
E133: 2016-06-28 | F133: =InpC!$F$28 -> 4 | G133: 2017 | H133: 3.22909 | I133: 3.59353 | J133: 3.41131 | K133: =InpC!$F$55*100 -> 0 | L133: =InpC!$F$64*100 -> 0 | M133: 3.41131 | N133: 3.41131
E134: 2016-06-29 | F134: =InpC!$F$28 -> 4 | G134: 2017 | H134: 3.18478 | I134: 3.55 | J134: 3.36739 | K134: =InpC!$F$55*100 -> 0 | L134: =InpC!$F$64*100 -> 0 | M134: 3.36739 | N134: 3.36739
E135: 2016-06-30 | F135: =InpC!$F$28 -> 4 | G135: =YEAR(E135) + IF(MONTH(E135) >= F135, 1, 0) -> 2017 | H135: 3.13793 | I135: 3.47786 | J135: =IFERROR(AVERAGE(H135:I135),"") -> 3.307895 | K135: =InpC!$F$55*100 -> 0 | L135: =InpC!$F$64*100 -> 0 | M135: =IFERROR(J135 - K135,"") -> 3.307895 | N135: =IFERROR(J135-K135+L135,"") -> 3.307895
E136: 2016-07-01 | F136: =InpC!$F$28 -> 4 | G136: 2017 | H136: 3.05142 | I136: 3.36157 | J136: 3.206495 | K136: =InpC!$F$55*100 -> 0 | L136: =InpC!$F$64*100 -> 0 | M136: 3.206495 | N136: 3.206495
E137: 2016-07-04 | F137: =InpC!$F$28 -> 4 | G137: 2017 | H137: 2.99188 | I137: 3.29919 | J137: 3.145535 | K137: =InpC!$F$55*100 -> 0 | L137: =InpC!$F$64*100 -> 0 | M137: 3.145535 | N137: 3.145535
E138: 2016-07-05 | F138: =InpC!$F$28 -> 4 | G138: 2017 | H138: 2.92051 | I138: 3.22935 | J138: 3.07493 | K138: =InpC!$F$55*100 -> 0 | L138: =InpC!$F$64*100 -> 0 | M138: 3.07493 | N138: 3.07493
E139: 2016-07-06 | F139: =InpC!$F$28 -> 4 | G139: 2017 | H139: 2.89949 | I139: 3.20861 | J139: 3.05405 | K139: =InpC!$F$55*100 -> 0 | L139: =InpC!$F$64*100 -> 0 | M139: 3.05405 | N139: 3.05405
E140: 2016-07-07 | F140: =InpC!$F$28 -> 4 | G140: 2017 | H140: 2.91547 | I140: 3.21121 | J140: 3.06334 | K140: =InpC!$F$55*100 -> 0 | L140: =InpC!$F$64*100 -> 0 | M140: 3.06334 | N140: 3.06334
E141: 2016-07-08 | F141: =InpC!$F$28 -> 4 | G141: 2017 | H141: 2.86052 | I141: 3.14253 | J141: 3.001525 | K141: =InpC!$F$55*100 -> 0 | L141: =InpC!$F$64*100 -> 0 | M141: 3.001525 | N141: 3.001525
E142: 2016-07-11 | F142: =InpC!$F$28 -> 4 | G142: 2017 | H142: 2.83957 | I142: 3.11579 | J142: 2.97768 | K142: =InpC!$F$55*100 -> 0 | L142: =InpC!$F$64*100 -> 0 | M142: 2.97768 | N142: 2.97768
E143: 2016-07-12 | F143: =InpC!$F$28 -> 4 | G143: 2017 | H143: 2.84213 | I143: 3.11139 | J143: 2.97676 | K143: =InpC!$F$55*100 -> 0 | L143: =InpC!$F$64*100 -> 0 | M143: 2.97676 | N143: 2.97676
E144: 2016-07-13 | F144: =InpC!$F$28 -> 4 | G144: 2017 | H144: 2.74315 | I144: 2.99556 | J144: 2.869355 | K144: =InpC!$F$55*100 -> 0 | L144: =InpC!$F$64*100 -> 0 | M144: 2.869355 | N144: 2.869355
E145: 2016-07-14 | F145: =InpC!$F$28 -> 4 | G145: 2017 | H145: 2.74885 | I145: 2.99252 | J145: 2.870685 | K145: =InpC!$F$55*100 -> 0 | L145: =InpC!$F$64*100 -> 0 | M145: 2.870685 | N145: 2.870685
E146: 2016-07-15 | F146: =InpC!$F$28 -> 4 | G146: 2017 | H146: 2.79029 | I146: 3.03235 | J146: 2.91132 | K146: =InpC!$F$55*100 -> 0 | L146: =InpC!$F$64*100 -> 0 | M146: 2.91132 | N146: 2.91132
E147: 2016-07-18 | F147: =InpC!$F$28 -> 4 | G147: 2017 | H147: 2.75641 | I147: 2.99462 | J147: 2.875515 | K147: =InpC!$F$55*100 -> 0 | L147: =InpC!$F$64*100 -> 0 | M147: 2.875515 | N147: 2.875515
E148: 2016-07-19 | F148: =InpC!$F$28 -> 4 | G148: 2017 | H148: 2.75602 | I148: 3.00127 | J148: 2.878645 | K148: =InpC!$F$55*100 -> 0 | L148: =InpC!$F$64*100 -> 0 | M148: 2.878645 | N148: 2.878645
E149: 2016-07-20 | F149: =InpC!$F$28 -> 4 | G149: 2017 | H149: 2.78538 | I149: 3.03215 | J149: 2.908765 | K149: =InpC!$F$55*100 -> 0 | L149: =InpC!$F$64*100 -> 0 | M149: 2.908765 | N149: 2.908765
E150: 2016-07-21 | F150: =InpC!$F$28 -> 4 | G150: 2017 | H150: 2.80016 | I150: 3.04549 | J150: 2.922825 | K150: =InpC!$F$55*100 -> 0 | L150: =InpC!$F$64*100 -> 0 | M150: 2.922825 | N150: 2.922825
E151: 2016-07-22 | F151: =InpC!$F$28 -> 4 | G151: 2017 | H151: 2.75704 | I151: 3.00269 | J151: 2.879865 | K151: =InpC!$F$55*100 -> 0 | L151: =InpC!$F$64*100 -> 0 | M151: 2.879865 | N151: 2.879865
E152: 2016-07-25 | F152: =InpC!$F$28 -> 4 | G152: 2017 | H152: 2.74494 | I152: 2.98975 | J152: 2.867345 | K152: =InpC!$F$55*100 -> 0 | L152: =InpC!$F$64*100 -> 0 | M152: 2.867345 | N152: 2.867345
E153: 2016-07-26 | F153: =InpC!$F$28 -> 4 | G153: 2017 | H153: 2.76252 | I153: 3.01178 | J153: 2.88715 | K153: =InpC!$F$55*100 -> 0 | L153: =InpC!$F$64*100 -> 0 | M153: 2.88715 | N153: 2.88715
E154: 2016-07-27 | F154: =InpC!$F$28 -> 4 | G154: 2017 | H154: 2.67181 | I154: 2.91967 | J154: 2.79574 | K154: =InpC!$F$55*100 -> 0 | L154: =InpC!$F$64*100 -> 0 | M154: 2.79574 | N154: 2.79574
E155: 2016-07-28 | F155: =InpC!$F$28 -> 4 | G155: 2017 | H155: 2.65236 | I155: 2.8948 | J155: 2.77358 | K155: =InpC!$F$55*100 -> 0 | L155: =InpC!$F$64*100 -> 0 | M155: 2.77358 | N155: 2.77358
E156: 2016-07-29 | F156: =InpC!$F$28 -> 4 | G156: 2017 | H156: 2.61115 | I156: 2.85098 | J156: 2.731065 | K156: =InpC!$F$55*100 -> 0 | L156: =InpC!$F$64*100 -> 0 | M156: 2.731065 | N156: 2.731065
E157: 2016-08-01 | F157: =InpC!$F$28 -> 4 | G157: 2017 | H157: 2.64682 | I157: 2.89112 | J157: 2.76897 | K157: =InpC!$F$55*100 -> 0 | L157: =InpC!$F$64*100 -> 0 | M157: 2.76897 | N157: 2.76897
E158: 2016-08-02 | F158: =InpC!$F$28 -> 4 | G158: 2017 | H158: 2.71613 | I158: 2.97287 | J158: 2.8445 | K158: =InpC!$F$55*100 -> 0 | L158: =InpC!$F$64*100 -> 0 | M158: 2.8445 | N158: 2.8445
E159: 2016-08-03 | F159: =InpC!$F$28 -> 4 | G159: 2017 | H159: 2.71064 | I159: 2.97029 | J159: 2.840465 | K159: =InpC!$F$55*100 -> 0 | L159: =InpC!$F$64*100 -> 0 | M159: 2.840465 | N159: 2.840465
E160: 2016-08-04 | F160: =InpC!$F$28 -> 4 | G160: 2017 | H160: 2.46172 | I160: 2.71368 | J160: 2.5877 | K160: =InpC!$F$55*100 -> 0 | L160: =InpC!$F$64*100 -> 0 | M160: 2.5877 | N160: 2.5877
E161: 2016-08-05 | F161: =InpC!$F$28 -> 4 | G161: 2017 | H161: 2.33181 | I161: 2.57202 | J161: 2.451915 | K161: =InpC!$F$55*100 -> 0 | L161: =InpC!$F$64*100 -> 0 | M161: 2.451915 | N161: 2.451915
E162: 2016-08-08 | F162: =InpC!$F$28 -> 4 | G162: 2017 | H162: 2.28331 | I162: 2.51807 | J162: 2.40069 | K162: =InpC!$F$55*100 -> 0 | L162: =InpC!$F$64*100 -> 0 | M162: 2.40069 | N162: 2.40069
E163: 2016-08-09 | F163: =InpC!$F$28 -> 4 | G163: 2017 | H163: 2.23418 | I163: 2.4697 | J163: 2.35194 | K163: =InpC!$F$55*100 -> 0 | L163: =InpC!$F$64*100 -> 0 | M163: 2.35194 | N163: 2.35194
E164: 2016-08-10 | F164: =InpC!$F$28 -> 4 | G164: 2017 | H164: 2.16879 | I164: 2.41459 | J164: 2.29169 | K164: =InpC!$F$55*100 -> 0 | L164: =InpC!$F$64*100 -> 0 | M164: 2.29169 | N164: 2.29169
E165: 2016-08-11 | F165: =InpC!$F$28 -> 4 | G165: 2017 | H165: 2.1475 | I165: 2.40182 | J165: 2.27466 | K165: =InpC!$F$55*100 -> 0 | L165: =InpC!$F$64*100 -> 0 | M165: 2.27466 | N165: 2.27466
E166: 2016-08-12 | F166: =InpC!$F$28 -> 4 | G166: 2017 | H166: 2.16368 | I166: 2.42153 | J166: 2.292605 | K166: =InpC!$F$55*100 -> 0 | L166: =InpC!$F$64*100 -> 0 | M166: 2.292605 | N166: 2.292605
E167: 2016-08-15 | F167: =InpC!$F$28 -> 4 | G167: 2017 | H167: 2.20625 | I167: 2.46477 | J167: 2.33551 | K167: =InpC!$F$55*100 -> 0 | L167: =InpC!$F$64*100 -> 0 | M167: 2.33551 | N167: 2.33551
E168: 2016-08-16 | F168: =InpC!$F$28 -> 4 | G168: 2017 | H168: 2.25518 | I168: 2.52625 | J168: 2.390715 | K168: =InpC!$F$55*100 -> 0 | L168: =InpC!$F$64*100 -> 0 | M168: 2.390715 | N168: 2.390715
E169: 2016-08-17 | F169: =InpC!$F$28 -> 4 | G169: 2017 | H169: 2.26853 | I169: 2.54242 | J169: 2.405475 | K169: =InpC!$F$55*100 -> 0 | L169: =InpC!$F$64*100 -> 0 | M169: 2.405475 | N169: 2.405475
E170: 2016-08-18 | F170: =InpC!$F$28 -> 4 | G170: 2017 | H170: 2.2564 | I170: 2.5337 | J170: 2.39505 | K170: =InpC!$F$55*100 -> 0 | L170: =InpC!$F$64*100 -> 0 | M170: 2.39505 | N170: 2.39505
E171: 2016-08-19 | F171: =InpC!$F$28 -> 4 | G171: 2017 | H171: 2.30341 | I171: 2.58088 | J171: 2.442145 | K171: =InpC!$F$55*100 -> 0 | L171: =InpC!$F$64*100 -> 0 | M171: 2.442145 | N171: 2.442145
E172: 2016-08-22 | F172: =InpC!$F$28 -> 4 | G172: 2017 | H172: 2.26968 | I172: 2.54624 | J172: 2.40796 | K172: =InpC!$F$55*100 -> 0 | L172: =InpC!$F$64*100 -> 0 | M172: 2.40796 | N172: 2.40796
E173: 2016-08-23 | F173: =InpC!$F$28 -> 4 | G173: 2017 | H173: 2.22867 | I173: 2.51 | J173: 2.369335 | K173: =InpC!$F$55*100 -> 0 | L173: =InpC!$F$64*100 -> 0 | M173: 2.369335 | N173: 2.369335
E174: 2016-08-24 | F174: =InpC!$F$28 -> 4 | G174: 2017 | H174: 2.22778 | I174: 2.51324 | J174: 2.37051 | K174: =InpC!$F$55*100 -> 0 | L174: =InpC!$F$64*100 -> 0 | M174: 2.37051 | N174: 2.37051
E175: 2016-08-25 | F175: =InpC!$F$28 -> 4 | G175: 2017 | H175: 2.22902 | I175: 2.51457 | J175: 2.371795 | K175: =InpC!$F$55*100 -> 0 | L175: =InpC!$F$64*100 -> 0 | M175: 2.371795 | N175: 2.371795
E176: 2016-08-26 | F176: =InpC!$F$28 -> 4 | G176: 2017 | H176: 2.19859 | I176: 2.48532 | J176: 2.341955 | K176: =InpC!$F$55*100 -> 0 | L176: =InpC!$F$64*100 -> 0 | M176: 2.341955 | N176: 2.341955
E177: 2016-08-29 | F177: =InpC!$F$28 -> 4 | G177: 2017 | H177: 2.19859 | I177: 2.48532 | J177: 2.341955 | K177: =InpC!$F$55*100 -> 0 | L177: =InpC!$F$64*100 -> 0 | M177: 2.341955 | N177: 2.341955
E178: 2016-08-30 | F178: =InpC!$F$28 -> 4 | G178: 2017 | H178: 2.2003 | I178: 2.48936 | J178: 2.34483 | K178: =InpC!$F$55*100 -> 0 | L178: =InpC!$F$64*100 -> 0 | M178: 2.34483 | N178: 2.34483
E179: 2016-08-31 | F179: =InpC!$F$28 -> 4 | G179: 2017 | H179: 2.21268 | I179: 2.49895 | J179: 2.355815 | K179: =InpC!$F$55*100 -> 0 | L179: =InpC!$F$64*100 -> 0 | M179: 2.355815 | N179: 2.355815
E180: 2016-09-01 | F180: =InpC!$F$28 -> 4 | G180: 2017 | H180: 2.24007 | I180: 2.55242 | J180: 2.396245 | K180: =InpC!$F$55*100 -> 0 | L180: =InpC!$F$64*100 -> 0 | M180: 2.396245 | N180: 2.396245
E181: 2016-09-02 | F181: =InpC!$F$28 -> 4 | G181: 2017 | H181: 2.30113 | I181: 2.61339 | J181: 2.45726 | K181: =InpC!$F$55*100 -> 0 | L181: =InpC!$F$64*100 -> 0 | M181: 2.45726 | N181: 2.45726
E182: 2016-09-05 | F182: =InpC!$F$28 -> 4 | G182: 2017 | H182: 2.27195 | I182: 2.58669 | J182: 2.42932 | K182: =InpC!$F$55*100 -> 0 | L182: =InpC!$F$64*100 -> 0 | M182: 2.42932 | N182: 2.42932
E183: 2016-09-06 | F183: =InpC!$F$28 -> 4 | G183: 2017 | H183: 2.25957 | I183: 2.57479 | J183: 2.41718 | K183: =InpC!$F$55*100 -> 0 | L183: =InpC!$F$64*100 -> 0 | M183: 2.41718 | N183: 2.41718
E184: 2016-09-07 | F184: =InpC!$F$28 -> 4 | G184: 2017 | H184: 2.25347 | I184: 2.57141 | J184: 2.41244 | K184: =InpC!$F$55*100 -> 0 | L184: =InpC!$F$64*100 -> 0 | M184: 2.41244 | N184: 2.41244
E185: 2016-09-08 | F185: =InpC!$F$28 -> 4 | G185: 2017 | H185: 2.34321 | I185: 2.66761 | J185: 2.50541 | K185: =InpC!$F$55*100 -> 0 | L185: =InpC!$F$64*100 -> 0 | M185: 2.50541 | N185: 2.50541
E186: 2016-09-09 | F186: =InpC!$F$28 -> 4 | G186: 2017 | H186: 2.46358 | I186: 2.7938 | J186: 2.62869 | K186: =InpC!$F$55*100 -> 0 | L186: =InpC!$F$64*100 -> 0 | M186: 2.62869 | N186: 2.62869
E187: 2016-09-12 | F187: =InpC!$F$28 -> 4 | G187: 2017 | H187: 2.47805 | I187: 2.81359 | J187: 2.64582 | K187: =InpC!$F$55*100 -> 0 | L187: =InpC!$F$64*100 -> 0 | M187: 2.64582 | N187: 2.64582
E188: 2016-09-13 | F188: =InpC!$F$28 -> 4 | G188: 2017 | H188: 2.49247 | I188: 2.81524 | J188: 2.653855 | K188: =InpC!$F$55*100 -> 0 | L188: =InpC!$F$64*100 -> 0 | M188: 2.653855 | N188: 2.653855
E189: 2016-09-14 | F189: =InpC!$F$28 -> 4 | G189: 2017 | H189: 2.51083 | I189: 2.83437 | J189: 2.6726 | K189: =InpC!$F$55*100 -> 0 | L189: =InpC!$F$64*100 -> 0 | M189: 2.6726 | N189: 2.6726
E190: 2016-09-15 | F190: =InpC!$F$28 -> 4 | G190: 2017 | H190: 2.53312 | I190: 2.8546 | J190: 2.69386 | K190: =InpC!$F$55*100 -> 0 | L190: =InpC!$F$64*100 -> 0 | M190: 2.69386 | N190: 2.69386
E191: 2016-09-16 | F191: =InpC!$F$28 -> 4 | G191: 2017 | H191: 2.51361 | I191: 2.83108 | J191: 2.672345 | K191: =InpC!$F$55*100 -> 0 | L191: =InpC!$F$64*100 -> 0 | M191: 2.672345 | N191: 2.672345
E192: 2016-09-19 | F192: =InpC!$F$28 -> 4 | G192: 2017 | H192: 2.5366 | I192: 2.85195 | J192: 2.694275 | K192: =InpC!$F$55*100 -> 0 | L192: =InpC!$F$64*100 -> 0 | M192: 2.694275 | N192: 2.694275
E193: 2016-09-20 | F193: =InpC!$F$28 -> 4 | G193: 2017 | H193: 2.47522 | I193: 2.7824 | J193: 2.62881 | K193: =InpC!$F$55*100 -> 0 | L193: =InpC!$F$64*100 -> 0 | M193: 2.62881 | N193: 2.62881
E194: 2016-09-21 | F194: =InpC!$F$28 -> 4 | G194: 2017 | H194: 2.48875 | I194: 2.79563 | J194: 2.64219 | K194: =InpC!$F$55*100 -> 0 | L194: =InpC!$F$64*100 -> 0 | M194: 2.64219 | N194: 2.64219
E195: 2016-09-22 | F195: =InpC!$F$28 -> 4 | G195: 2017 | H195: 2.38332 | I195: 2.68886 | J195: 2.53609 | K195: =InpC!$F$55*100 -> 0 | L195: =InpC!$F$64*100 -> 0 | M195: 2.53609 | N195: 2.53609
E196: 2016-09-23 | F196: =InpC!$F$28 -> 4 | G196: 2017 | H196: 2.38943 | I196: 2.69618 | J196: 2.542805 | K196: =InpC!$F$55*100 -> 0 | L196: =InpC!$F$64*100 -> 0 | M196: 2.542805 | N196: 2.542805
E197: 2016-09-26 | F197: =InpC!$F$28 -> 4 | G197: 2017 | H197: 2.36324 | I197: 2.6711 | J197: 2.51717 | K197: =InpC!$F$55*100 -> 0 | L197: =InpC!$F$64*100 -> 0 | M197: 2.51717 | N197: 2.51717
E198: 2016-09-27 | F198: =InpC!$F$28 -> 4 | G198: 2017 | H198: 2.32357 | I198: 2.62794 | J198: 2.475755 | K198: =InpC!$F$55*100 -> 0 | L198: =InpC!$F$64*100 -> 0 | M198: 2.475755 | N198: 2.475755
E199: 2016-09-28 | F199: =InpC!$F$28 -> 4 | G199: =YEAR(E199) + IF(MONTH(E199) >= F199, 1, 0) -> 2017 | H199: 2.33297 | I199: 2.6381 | J199: =IFERROR(AVERAGE(H199:I199),"") -> 2.485535 | K199: =InpC!$F$55*100 -> 0 | L199: =InpC!$F$64*100 -> 0 | M199: =IFERROR(J199 - K199,"") -> 2.485535 | N199: =IFERROR(J199-K199+L199,"") -> 2.485535
E200: 2016-09-29 | F200: =InpC!$F$28 -> 4 | G200: 2017 | H200: 2.37963 | I200: 2.68557 | J200: 2.5326 | K200: =InpC!$F$55*100 -> 0 | L200: =InpC!$F$64*100 -> 0 | M200: 2.5326 | N200: 2.5326
E201: 2016-09-30 | F201: =InpC!$F$28 -> 4 | G201: 2017 | H201: 2.45192 | I201: 2.75675 | J201: 2.604335 | K201: =InpC!$F$55*100 -> 0 | L201: =InpC!$F$64*100 -> 0 | M201: 2.604335 | N201: 2.604335
E202: 2016-10-03 | F202: =InpC!$F$28 -> 4 | G202: 2017 | H202: 2.44099 | I202: 2.74019 | J202: 2.59059 | K202: =InpC!$F$55*100 -> 0 | L202: =InpC!$F$64*100 -> 0 | M202: 2.59059 | N202: 2.59059
E203: 2016-10-04 | F203: =InpC!$F$28 -> 4 | G203: 2017 | H203: 2.46537 | I203: 2.76588 | J203: 2.615625 | K203: =InpC!$F$55*100 -> 0 | L203: =InpC!$F$64*100 -> 0 | M203: 2.615625 | N203: 2.615625
... 4849 more rows

Sheet RCV and post 2020 investment
A1: =RIGHT(CELL("filename", $A$1), LEN(CELL("filename", $A$1)) - SEARCH("]", CELL("filename", $A$1))) -> RCV and post 2020 investment
E2: =Time!E$22 -> Model Period END | J2: =Time!J$22 -> 2020-03-31 | K2: =Time!K$22 -> 2021-03-31 | L2: =Time!L$22 -> 2022-03-31 | M2: =Time!M$22 -> 2023-03-31 | N2: =Time!N$22 -> 2024-03-31 | O2: =Time!O$22 -> 2025-03-31 | P2: =Time!P$22 -> 2026-03-31
E3: =Time!E$58 -> Pre Forecast vs Forecast | J3: =Time!J$58 -> Pre Fcst | K3: =Time!K$58 -> Forecast | L3: =Time!L$58 -> Forecast | M3: =Time!M$58 -> Forecast | N3: =Time!N$58 -> Forecast | O3: =Time!O$58 -> Forecast | P3: =Time!P$58 -> Post-Fcst
E4: =Time!E$86 -> Financial Year Ending | J4: =Time!J$86 -> 2020 | K4: =Time!K$86 -> 2021 | L4: =Time!L$86 -> 2022 | M4: =Time!M$86 -> 2023 | N4: =Time!N$86 -> 2024 | O4: =Time!O$86 -> 2025 | P4: =Time!P$86 -> 2026
E5: =Time!E$10 -> Model column counter | F5: Constant | G5: Unit | H5: Total | J5: =Time!J$10 -> 1 | K5: =Time!K$10 -> 2 | L5: =Time!L$10 -> 3 | M5: =Time!M$10 -> 4 | N5: =Time!N$10 -> 5 | O5: =Time!O$10 -> 6 | P5: =Time!P$10 -> 7
A7: Water Resources
A8: =InpR!A$15 -> 0 | B8: =InpR!B$15 -> 0 | C8: =InpR!C$15 -> 0 | D8: =InpR!D$15 -> 0 | E8: =InpR!E$15 -> Water resources RCV year start | F8: =InpR!F$15 -> 0 | G8: =InpR!G$15 -> £m, (CPIH, 2017/18 prices) | H8: =InpR!H$15 -> 0 | I8: =InpR!I$15 -> 0 | J8: =InpR!J$15 -> 0 | K8: =InpR!K$15 -> 116.3829343 | L8: =InpR!L$15 -> 117.5754186 | M8: =InpR!M$15 -> 118.4962721 | N8: =InpR!N$15 -> 122.6962615 | O8: =InpR!O$15 -> 122.8243914 | P8: =InpR!P$15 -> 0
A9: =InpR!A$16 -> 0 | B9: =InpR!B$16 -> 0 | C9: =InpR!C$16 -> 0 | D9: =InpR!D$16 -> 0 | E9: =InpR!E$16 -> Water Resources RCV year end | F9: =InpR!F$16 -> 0 | G9: =InpR!G$16 -> £m, (CPIH, 2017/18 prices) | H9: =InpR!H$16 -> 0 | I9: =InpR!I$16 -> 0 | J9: =InpR!J$16 -> 0 | K9: =InpR!K$16 -> 117.0411383 | L9: =InpR!L$16 -> 117.9019857 | M9: =InpR!M$16 -> 122.0949362 | N9: =InpR!N$16 -> 122.2293515 | O9: =InpR!O$16 -> 122.2132211 | P9: =InpR!P$16 -> 0
E10: Water resources asset base for return | G10: £m | J10: =AVERAGE(J8:J9) -> 0 | K10: =AVERAGE(K8:K9) -> 116.7120363 | L10: =AVERAGE(L8:L9) -> 117.7387022 | M10: 120.2956041 | N10: 122.4628065 | O10: 122.5188063 | P10: 0
E12: =InpC!E$57 -> Notional gearing | F12: =InpC!F$57 -> 0.6 | G12: =InpC!G$57 -> percentage
A13: =A$10 -> 0 | B13: =B$10 -> 0 | C13: =C$10 -> 0 | D13: =D$10 -> 0 | E13: =E$10 -> Water resources asset base for return | F13: =F$10 -> 0 | G13: £m | H13: 0 | I13: 0 | J13: 0 | K13: =K$10 -> 116.7120363 | L13: 117.7387022 | M13: 120.2956041 | N13: 122.4628065 | O13: 122.5188063 | P13: 0
E14: Water Resources Notional debt | G14: £m | H14: =SUM(J14:P14) -> 359.8367732 | J14: =$F12 * J13 -> 0 | K14: =$F12 * K13 -> 70.02722176 | L14: 70.6432213 | M14: 72.17736247 | N14: 73.47768388 | O14: 73.51128377 | P14: 0
A16: =A$14 -> 0 | B16: =B$14 -> 0 | C16: =C$14 -> 0 | D16: =D$14 -> 0 | E16: =E$14 -> Water Resources Notional debt | F16: =F$14 -> 0 | G16: £m | H16: 359.8367732 | I16: 0 | J16: 0 | K16: 70.02722176 | L16: 70.6432213 | M16: 72.17736247 | N16: 73.47768388 | O16: 73.51128377 | P16: 0
A17: =InpR!A$57 -> 0 | B17: =InpR!B$57 -> 0 | C17: =InpR!C$57 -> 0 | D17: =InpR!D$57 -> 0 | E17: =InpR!E$57 -> Proportion of notional debt subject to indexation (year average) | F17: =InpR!F$57 -> 0 | G17: =InpR!G$57 -> percentage | H17: =InpR!H$57 -> 0 | I17: =InpR!I$57 -> 0 | J17: =InpR!J$57 -> 0 | K17: =InpR!K$57 -> 0.034 | L17: =InpR!L$57 -> 0.102 | M17: =InpR!M$57 -> 0.17 | N17: =InpR!N$57 -> 0.238 | O17: =InpR!O$57 -> 0.306 | P17: =InpR!P$57 -> 0.374
E18: Water Resources New debt for return | G18: £m | H18: =SUM(J18:O18) -> 61.83882733 | J18: =J16 * J17 -> 0 | K18: 2.38092554 | L18: 7.205608573 | M18: 12.27015162 | N18: 17.48768876 | O18: 22.49445283 | P18: 0
E20: =E$14 -> Water Resources Notional debt | F20: =F$14 -> 0 | G20: £m | H20: 359.8367732 | I20: 0 | J20: 0 | K20: =K$14 -> 70.02722176 | L20: 70.6432213 | M20: 72.17736247 | N20: 73.47768388 | O20: =O$14 -> 73.51128377 | P20: =P$14 -> 0
D21: less | E21: =E$18 -> Water Resources New debt for return | F21: =F$18 -> 0 | G21: £m | H21: 61.83882733 | I21: 0 | J21: 0 | K21: 2.38092554 | L21: 7.205608573 | M21: 12.27015162 | N21: 17.48768876 | O21: 22.49445283 | P21: 0
E22: Water Resources Embedded debt for return | G22: £m | H22: =SUM(J22:O22) -> 297.9979458 | J22: =J20 - J21 -> 0 | K22: =K20 - K21 -> 67.64629622 | L22: 63.43761273 | M22: 59.90721085 | N22: 55.98999511 | O22: 51.01683093 | P22: 0
A24: Water Network Plus
A25: =InpR!A$15 -> 0 | B25: =InpR!B$15 -> 0 | C25: =InpR!C$15 -> 0 | D25: =InpR!D$15 -> 0 | E25: =InpR!E$19 -> Water Network Plus RCV year start | F25: =InpR!F$19 -> 0 | G25: =InpR!G$19 -> £m, (CPIH, 2017/18 prices) | H25: =InpR!H$19 -> 0 | I25: =InpR!I$19 -> 0 | J25: =InpR!J$19 -> 0 | K25: =InpR!K$19 -> 410.2219991 | L25: =InpR!L$19 -> 408.6959332 | M25: =InpR!M$19 -> 406.5257948 | N25: =InpR!N$19 -> 401.7415987 | O25: =InpR!O$19 -> 399.0772065 | P25: =InpR!P$19 -> 0
A26: =InpR!A$16 -> 0 | B26: =InpR!B$16 -> 0 | C26: =InpR!C$16 -> 0 | D26: =InpR!D$16 -> 0 | E26: =InpR!E$20 -> Water Network Plus RCV year end | F26: =InpR!F$20 -> 0 | G26: =InpR!G$20 -> £m, (CPIH, 2017/18 prices) | H26: =InpR!H$20 -> 0 | I26: =InpR!I$20 -> 0 | J26: =InpR!J$20 -> 0 | K26: =InpR!K$20 -> 406.8810109 | L26: =InpR!L$20 -> 404.5802384 | M26: =InpR!M$20 -> 399.8443827 | N26: =InpR!N$20 -> 397.267898 | O26: =InpR!O$20 -> 395.3366653 | P26: =InpR!P$20 -> 0
E27: Water Network Plus asset base for return | G27: £m | J27: =AVERAGE(J25:J26) -> 0 | K27: =AVERAGE(K25:K26) -> 408.551505 | L27: 406.6380858 | M27: 403.1850888 | N27: 399.5047483 | O27: 397.2069359 | P27: 0
E29: =InpC!E$57 -> Notional gearing | F29: =InpC!F$57 -> 0.6 | G29: =InpC!G$57 -> percentage
A30: =A$10 -> 0 | B30: =B$10 -> 0 | C30: =C$10 -> 0 | D30: =D$10 -> 0 | E30: =E$27 -> Water Network Plus asset base for return | F30: =F$27 -> 0 | G30: £m | H30: 0 | I30: 0 | J30: 0 | K30: =K$27 -> 408.551505 | L30: 406.6380858 | M30: 403.1850888 | N30: 399.5047483 | O30: 397.2069359 | P30: 0
E31: Water Network Plus Notional debt | G31: =G$10 -> £m | H31: =SUM(J31:P31) -> 1209.051818 | J31: =J30 * $F29 -> 0 | K31: 245.130903 | L31: 243.9828515 | M31: 241.9110533 | N31: 239.702849 | O31: 238.3241616 | P31: 0
E33: =E$31 -> Water Network Plus Notional debt | F33: 0 | G33: £m | H33: 1209.051818 | I33: 0 | J33: 0 | K33: 245.130903 | L33: 243.9828515 | M33: 241.9110533 | N33: 239.702849 | O33: 238.3241616 | P33: 0
A34: =A$14 -> 0 | B34: =B$14 -> 0 | C34: =C$14 -> 0 | D34: =D$14 -> 0 | E34: =InpR!E$57 -> Proportion of notional debt subject to indexation (year average) | F34: =InpR!F$57 -> 0 | G34: =InpR!G$57 -> percentage | H34: =InpR!H$57 -> 0 | I34: =InpR!I$57 -> 0 | J34: =InpR!J$57 -> 0 | K34: =InpR!K$57 -> 0.034 | L34: =InpR!L$57 -> 0.102 | M34: =InpR!M$57 -> 0.17 | N34: =InpR!N$57 -> 0.238 | O34: =InpR!O$57 -> 0.306 | P34: =InpR!P$57 -> 0.374
A35: =InpR!A$57 -> 0 | B35: =InpR!B$57 -> 0 | C35: =InpR!C$57 -> 0 | D35: =InpR!D$57 -> 0 | E35: Water Network Plus New debt for return | G35: £m | H35: =SUM(J35:O35) -> 204.3220521 | J35: =J33 * J34 -> 0 | K35: 8.334450702 | L35: 24.88625085 | M35: 41.12487905 | N35: 57.04927806 | O35: 72.92719344
E37: =E$31 -> Water Network Plus Notional debt | F37: 0 | G37: £m | H37: 1209.051818 | I37: 0 | J37: 0 | K37: 245.130903 | L37: 243.9828515 | M37: 241.9110533 | N37: 239.702849 | O37: 238.3241616 | P37: 0
D38: less | E38: =E$35 -> Water Network Plus New debt for return | F38: =F$35 -> 0 | G38: £m | H38: 204.3220521 | I38: 0 | J38: 0 | K38: 8.334450702 | L38: 24.88625085 | M38: 41.12487905 | N38: 57.04927806 | O38: 72.92719344 | P38: 0
E39: Water Network Plus Embedded debt for return | G39: £m | H39: =SUM(J39:O39) -> 1004.729766 | J39: =J37- J38 -> 0 | K39: 236.7964523 | L39: 219.0966006 | M39: 200.7861742 | N39: 182.6535709 | O39: 165.3969681 | P39: 0
A41: WasteWater Network Plus
A42: =InpR!A$15 -> 0 | B42: =InpR!B$15 -> 0 | C42: =InpR!C$15 -> 0 | D42: =InpR!D$15 -> 0 | E42: =InpR!E$23 -> Watewater Network Plus RCV year start | F42: =InpR!F$23 -> 0 | G42: =InpR!G$23 -> £m, (CPIH, 2017/18 prices) | H42: =InpR!H$23 -> 0 | I42: =InpR!I$23 -> 0 | J42: =InpR!J$23 -> 0 | K42: =InpR!K$23 -> 0 | L42: =InpR!L$23 -> 0 | M42: =InpR!M$23 -> 0 | N42: =InpR!N$23 -> 0 | O42: =InpR!O$23 -> 0 | P42: =InpR!P$23 -> 0
A43: =InpR!A$16 -> 0 | B43: =InpR!B$16 -> 0 | C43: =InpR!C$16 -> 0 | D43: =InpR!D$16 -> 0 | E43: =InpR!E$24 -> Watewater Network Plus RCV year end | F43: =InpR!F$24 -> 0 | G43: =InpR!G$24 -> £m, (CPIH, 2017/18 prices) | H43: =InpR!H$24 -> 0 | I43: =InpR!I$24 -> 0 | J43: =InpR!J$24 -> 0 | K43: =InpR!K$24 -> 0 | L43: =InpR!L$24 -> 0 | M43: =InpR!M$24 -> 0 | N43: =InpR!N$24 -> 0 | O43: =InpR!O$24 -> 0 | P43: =InpR!P$24 -> 0
E44: Watewater Network Plus asset base for return | G44: £m | J44: =AVERAGE(J42:J43) -> 0 | K44: =AVERAGE(K42:K43) -> 0 | L44: 0 | M44: 0 | N44: 0 | O44: 0 | P44: 0
E46: =InpC!E$57 -> Notional gearing | F46: =InpC!F$57 -> 0.6 | G46: =InpC!G$57 -> percentage
A47: =A$10 -> 0 | B47: =B$10 -> 0 | C47: =C$10 -> 0 | D47: =D$10 -> 0 | E47: =E$44 -> Watewater Network Plus asset base for return | F47: =F$44 -> 0 | G47: £m | H47: 0 | I47: 0 | J47: 0 | K47: 0 | L47: 0 | M47: 0 | N47: 0 | O47: 0 | P47: 0
E48: Wastewater Network Plus Notional debt | G48: =G$10 -> £m | H48: =SUM(J48:P48) -> 0 | J48: =J47 * $F46 -> 0 | K48: 0 | L48: 0 | M48: 0 | N48: 0 | O48: 0 | P48: 0
A50: =A$14 -> 0 | B50: =B$14 -> 0 | C50: =C$14 -> 0 | D50: =D$14 -> 0 | E50: =E$48 -> Wastewater Network Plus Notional debt | F50: =F$48 -> 0 | G50: £m | H50: 0 | I50: 0 | J50: 0 | K50: 0 | L50: 0 | M50: 0 | N50: 0 | O50: 0 | P50: 0
A51: =InpR!A$57 -> 0 | B51: =InpR!B$57 -> 0 | C51: =InpR!C$57 -> 0 | D51: =InpR!D$57 -> 0 | E51: =InpR!E$57 -> Proportion of notional debt subject to indexation (year average) | F51: =InpR!F$57 -> 0 | G51: =InpR!G$57 -> percentage | H51: =InpR!H$57 -> 0 | I51: =InpR!I$57 -> 0 | J51: =InpR!J$57 -> 0 | K51: =InpR!K$57 -> 0.034 | L51: =InpR!L$57 -> 0.102 | M51: =InpR!M$57 -> 0.17 | N51: =InpR!N$57 -> 0.238 | O51: =InpR!O$57 -> 0.306 | P51: =InpR!P$57 -> 0.374
E52: Wastewater Network Plus New debt for return | G52: £m | H52: =SUM(J52:O52) -> 0 | J52: =J50 * J51 -> 0 | K52: 0 | L52: 0 | M52: 0 | N52: 0 | O52: 0
E54: =E$48 -> Wastewater Network Plus Notional debt | F54: =F$48 -> 0 | G54: £m | H54: 0 | I54: 0 | J54: 0 | K54: 0 | L54: 0 | M54: 0 | N54: 0 | O54: 0 | P54: 0
D55: less | E55: =E$52 -> Wastewater Network Plus New debt for return | F55: =F$52 -> 0 | G55: £m | H55: 0 | I55: 0 | J55: 0 | K55: 0 | L55: 0 | M55: 0 | N55: 0 | O55: 0 | P55: 0
E56: Wastewater Network Plus Embedded debt for return | G56: £m | H56: =SUM(J56:O56) -> 0 | J56: =J54-J55 -> 0 | K56: =K54-K55 -> 0 | L56: 0 | M56: 0 | N56: 0 | O56: 0 | P56: 0
A58: Bioresources
A59: =InpR!A$15 -> 0 | B59: =InpR!B$15 -> 0 | C59: =InpR!C$15 -> 0 | D59: =InpR!D$15 -> 0 | E59: =InpR!E$27 -> Bioresources RCV year start | F59: =InpR!F$27 -> 0 | G59: =InpR!G$27 -> £m, (CPIH, 2017/18 prices) | H59: =InpR!H$27 -> 0 | I59: =InpR!I$27 -> 0 | J59: =InpR!J$27 -> 0 | K59: =InpR!K$27 -> 0 | L59: =InpR!L$27 -> 0 | M59: =InpR!M$27 -> 0 | N59: =InpR!N$27 -> 0 | O59: =InpR!O$27 -> 0 | P59: =InpR!P$27 -> 0
A60: =InpR!A$16 -> 0 | B60: =InpR!B$16 -> 0 | C60: =InpR!C$16 -> 0 | D60: =InpR!D$16 -> 0 | E60: =InpR!E$28 -> Bioresources RCV year end | F60: =InpR!F$28 -> 0 | G60: =InpR!G$28 -> £m, (CPIH, 2017/18 prices) | H60: =InpR!H$28 -> 0 | I60: =InpR!I$28 -> 0 | J60: =InpR!J$28 -> 0 | K60: =InpR!K$28 -> 0 | L60: =InpR!L$28 -> 0 | M60: =InpR!M$28 -> 0 | N60: =InpR!N$28 -> 0 | O60: =InpR!O$28 -> 0 | P60: =InpR!P$28 -> 0
E61: Bioresources asset base for return | G61: £m | J61: =AVERAGE(J59:J60) -> 0 | K61: =AVERAGE(K59:K60) -> 0 | L61: 0 | M61: 0 | N61: 0 | O61: 0 | P61: 0
E63: =InpC!E$57 -> Notional gearing | F63: =InpC!F$57 -> 0.6 | G63: =InpC!G$57 -> percentage
A64: =A$10 -> 0 | B64: =B$10 -> 0 | C64: =C$10 -> 0 | D64: =D$10 -> 0 | E64: =E$61 -> Bioresources asset base for return | F64: =F$61 -> 0 | G64: £m | H64: 0 | I64: 0 | J64: 0 | K64: 0 | L64: 0 | M64: 0 | N64: 0 | O64: 0 | P64: 0
E65: Bioresources Notional debt | G65: =G$10 -> £m | H65: =SUM(J65:P65) -> 0 | J65: =J64 * $F63 -> 0 | K65: 0 | L65: 0 | M65: 0 | N65: 0 | O65: =O64 * $F63 -> 0 | P65: 0
A67: =A$14 -> 0 | B67: =B$14 -> 0 | C67: =C$14 -> 0 | D67: =D$14 -> 0 | E67: =E$65 -> Bioresources Notional debt | F67: =F$65 -> 0 | G67: £m | H67: 0 | I67: 0 | J67: 0 | K67: 0 | L67: 0 | M67: 0 | N67: 0 | O67: 0 | P67: 0
A68: =InpR!A$57 -> 0 | B68: =InpR!B$57 -> 0 | C68: =InpR!C$57 -> 0 | D68: =InpR!D$57 -> 0 | E68: =InpR!E$57 -> Proportion of notional debt subject to indexation (year average) | F68: =InpR!F$57 -> 0 | G68: =InpR!G$57 -> percentage | H68: =InpR!H$57 -> 0 | I68: =InpR!I$57 -> 0 | J68: =InpR!J$57 -> 0 | K68: =InpR!K$57 -> 0.034 | L68: =InpR!L$57 -> 0.102 | M68: =InpR!M$57 -> 0.17 | N68: =InpR!N$57 -> 0.238 | O68: =InpR!O$57 -> 0.306 | P68: =InpR!P$57 -> 0.374
E69: Bioresources New debt for return | G69: £m | H69: =SUM(J69:O69) -> 0 | J69: =J67 * J68 -> 0 | K69: 0 | L69: 0 | M69: 0 | N69: 0 | O69: 0
E71: =E$65 -> Bioresources Notional debt | F71: =F$65 -> 0 | G71: £m | H71: 0 | I71: 0 | J71: 0 | K71: 0 | L71: 0 | M71: 0 | N71: 0 | O71: 0 | P71: 0
E72: =E$69 -> Bioresources New debt for return | F72: =F$69 -> 0 | G72: £m | H72: 0 | I72: 0 | J72: 0 | K72: 0 | L72: 0 | M72: 0 | N72: 0 | O72: 0 | P72: 0
E73: Bioresources Embedded debt for return | G73: £m | H73: =SUM(J73:O73) -> 0 | J73: =J71 - J72 -> 0 | K73: =K71 - K72 -> 0 | L73: 0 | M73: 0 | N73: 0 | O73: 0 | P73: 0
A75: Dummy
A76: =InpR!A$15 -> 0 | B76: =InpR!B$15 -> 0 | C76: =InpR!C$15 -> 0 | D76: =InpR!D$15 -> 0 | E76: =InpR!E31 -> Dummy RCV year start | F76: =InpR!F$27 -> 0 | G76: =InpR!G$27 -> £m, (CPIH, 2017/18 prices) | H76: =InpR!H$27 -> 0 | I76: =InpR!I$27 -> 0 | J76: =InpR!J$27 -> 0 | K76: =InpR!K31 -> 0 | L76: =InpR!L31 -> 0 | M76: =InpR!M31 -> 0 | N76: =InpR!N31 -> 0 | O76: =InpR!O31 -> 0 | P76: =InpR!P$27 -> 0
A77: =InpR!A$16 -> 0 | B77: =InpR!B$16 -> 0 | C77: =InpR!C$16 -> 0 | D77: =InpR!D$16 -> 0 | E77: =InpR!E32 -> Dummy RCV year end | F77: =InpR!F$28 -> 0 | G77: =InpR!G$28 -> £m, (CPIH, 2017/18 prices) | H77: =InpR!H$28 -> 0 | I77: =InpR!I$28 -> 0 | J77: =InpR!J$28 -> 0 | K77: =InpR!K32 -> 0 | L77: =InpR!L32 -> 0 | M77: =InpR!M32 -> 0 | N77: =InpR!N32 -> 0 | O77: =InpR!O32 -> 0 | P77: =InpR!P$28 -> 0
E78: Dummy asset base for return | G78: £m | J78: =AVERAGE(J76:J77) -> 0 | K78: =AVERAGE(K76:K77) -> 0 | L78: 0 | M78: 0 | N78: 0 | O78: 0 | P78: 0
E80: =InpC!E$57 -> Notional gearing | F80: =InpC!F$57 -> 0.6 | G80: =InpC!G$57 -> percentage
A81: =A$10 -> 0 | B81: =B$10 -> 0 | C81: =C$10 -> 0 | D81: =D$10 -> 0 | E81: =E$78 -> Dummy asset base for return | F81: =F$61 -> 0 | G81: £m | H81: 0 | I81: 0 | J81: 0 | K81: =K78 -> 0 | L81: =L78 -> 0 | M81: 0 | N81: 0 | O81: 0 | P81: 0
E82: Dummy Notional debt | G82: =G$10 -> £m | H82: =SUM(J82:P82) -> 0 | J82: =J81 * $F80 -> 0 | K82: 0 | L82: 0 | M82: 0 | N82: 0 | O82: =O81 * $F80 -> 0 | P82: =P81 * $F80 -> 0
A84: =A$14 -> 0 | B84: =B$14 -> 0 | C84: =C$14 -> 0 | D84: =D$14 -> 0 | E84: =E82 -> Dummy Notional debt | F84: =F$65 -> 0 | G84: £m | H84: 0 | I84: 0 | J84: 0 | K84: =K82 -> 0 | L84: =L82 -> 0 | M84: 0 | N84: 0 | O84: 0 | P84: 0
A85: =InpR!A$57 -> 0 | B85: =InpR!B$57 -> 0 | C85: =InpR!C$57 -> 0 | D85: =InpR!D$57 -> 0 | E85: =InpR!E$57 -> Proportion of notional debt subject to indexation (year average) | F85: =InpR!F$57 -> 0 | G85: =InpR!G$57 -> percentage | H85: =InpR!H$57 -> 0 | I85: =InpR!I$57 -> 0 | J85: =InpR!J$57 -> 0 | K85: =InpR!K$57 -> 0.034 | L85: =InpR!L$57 -> 0.102 | M85: =InpR!M$57 -> 0.17 | N85: =InpR!N$57 -> 0.238 | O85: =InpR!O$57 -> 0.306 | P85: =InpR!P$57 -> 0.374
E86: Dummy New debt for return | G86: £m | H86: =SUM(J86:O86) -> 0 | J86: =J84 * J85 -> 0 | K86: =K84 * K85 -> 0 | L86: =L84 * L85 -> 0 | M86: =M84 * M85 -> 0 | N86: =N84 * N85 -> 0 | O86: =O84 * O85 -> 0
E88: =E82 -> Dummy Notional debt | F88: =F$65 -> 0 | G88: £m | H88: 0 | I88: 0 | J88: 0 | K88: =K82 -> 0 | L88: =L82 -> 0 | M88: 0 | N88: 0 | O88: 0 | P88: 0
E89: =E86 -> Dummy New debt for return | F89: =F$69 -> 0 | G89: £m | H89: 0 | I89: 0 | J89: 0 | K89: =K86 -> 0 | L89: =L86 -> 0 | M89: 0 | N89: 0 | O89: 0 | P89: 0
E90: Dummy Embedded debt for return | G90: £m | H90: =SUM(J90:O90) -> 0 | J90: =J88 - J89 -> 0 | K90: =K88 - K89 -> 0 | L90: 0 | M90: 0 | N90: 0 | O90: 0 | P90: 0

Sheet Cost of Debt
A1: =RIGHT(CELL("filename", $A$1), LEN(CELL("filename", $A$1)) - SEARCH("]", CELL("filename", $A$1))) -> Cost of Debt
J2: =Time!J$22 -> 2020-03-31 | K2: =Time!K$22 -> 2021-03-31 | L2: =Time!L$22 -> 2022-03-31 | M2: =Time!M$22 -> 2023-03-31 | N2: =Time!N$22 -> 2024-03-31 | O2: =Time!O$22 -> 2025-03-31 | P2: =Time!P$22 -> 2026-03-31
J3: =Time!J$58 -> Pre Fcst | K3: =Time!K$58 -> Forecast | L3: =Time!L$58 -> Forecast | M3: =Time!M$58 -> Forecast | N3: =Time!N$58 -> Forecast | O3: =Time!O$58 -> Forecast | P3: =Time!P$58 -> Post-Fcst
E4: =Time!E$86 -> Financial Year Ending | J4: =Time!J$86 -> 2020 | K4: =Time!K$86 -> 2021 | L4: =Time!L$86 -> 2022 | M4: =Time!M$86 -> 2023 | N4: =Time!N$86 -> 2024 | O4: =Time!O$86 -> 2025 | P4: =Time!P$86 -> 2026
E5: =Time!E$10 -> Model column counter | F5: Constant | G5: Unit | H5: Total | J5: =Time!J$10 -> 1 | K5: =Time!K$10 -> 2 | L5: =Time!L$10 -> 3 | M5: =Time!M$10 -> 4 | N5: =Time!N$10 -> 5 | O5: =Time!O$10 -> 6 | P5: =Time!P$10 -> 7
A7: Nominal cost of debt
E8: =Time!E$53 -> Forecast Period Flag | F8: =Time!F$53 -> 0 | G8: =Time!G$53 -> flag | H8: =Time!H$53 -> 5 | I8: =Time!I$53 -> 0 | J8: =Time!J$53 -> 0 | K8: =Time!K$53 -> 1 | L8: =Time!L$53 -> 1 | M8: =Time!M$53 -> 1 | N8: =Time!N$53 -> 1 | O8: =Time!O$53 -> 1 | P8: =Time!P$53 -> 0
E9: =InpR!E$41 -> 1 Year average of iBoxx adjusted for 'outperformance wedge' (base) | F9: =InpR!F$41 -> 0 | G9: =InpR!G$41 -> Percentage | H9: =InpR!H$41 -> 0 | I9: =InpR!I$41 -> 0 | J9: =InpR!J$41 -> 0 | K9: =InpR!K$41 -> 0.02157737394 | L9: =InpR!L$41 -> 0.0242888646 | M9: =InpR!M$41 -> 0.0478006327 | N9: =InpR!N$41 -> 0.05665589206 | O9: =InpR!O$41 -> 0.05659138926 | P9: =InpR!P$41 -> 0
E10: Forecast Period 1 Year average of iBoxx at year end | G10: Percentage | J10: =J8 * J9 -> 0 | K10: 0.02157737394 | L10: 0.0242888646 | M10: 0.0478006327 | N10: 0.05665589206 | O10: 0.05659138926 | P10: 0
E12: =E$10 -> Forecast Period 1 Year average of iBoxx at year end | F12: 0 | G12: Percentage | H12: 0 | I12: 0 | J12: 0 | K12: =K$10 -> 0.02157737394 | L12: 0.0242888646 | M12: 0.0478006327 | N12: 0.05665589206 | O12: 0.05659138926 | P12: 0
E13: =InpR!E59 -> CPIH inflation allowance (long-term assumption) | F13: =InpR!F59 -> 0.02 | G13: =InpR!G59 -> percentage | H13: =InpR!H59 -> 0 | I13: =InpR!I59 -> 0 | J13: =InpR!J59 -> 0 | K13: =InpR!K59 -> 0.02 | L13: =InpR!L59 -> 0.02 | M13: =InpR!M59 -> 0.02 | N13: =InpR!N59 -> 0.02 | O13: =InpR!O59 -> 0.02 | P13: =InpR!P59 -> 0
E14: 1 year real-CPIH average debt cost | G14: Percentage | J14: =(1+J12) / (1+J13) - 1 -> 0 | K14: =(1+K12) / (1+K13) - 1 -> 0.001546445042 | L14: 0.004204769212 | M14: 0.02725552226 | N14: 0.03593714908 | O14: 0.03587391104 | P14: 0
B16: Real-CPIH average debt cost by year
E17: =E$14 -> 1 year real-CPIH average debt cost | F17: =F$14 -> 0 | G17: Percentage | H17: 0 | I17: 0 | J17: 0 | K17: 0.001546445042 | L17: 0.004204769212 | M17: 0.02725552226 | N17: 0.03593714908 | O17: 0.03587391104 | P17: 0
E18: =InpR!E$64 -> Average debt cost weighting 2021 | F18: =InpR!F$64 -> 0 | G18: =InpR!G$64 -> Weighting | H18: =InpR!H$64 -> 0 | I18: =InpR!I$64 -> 0 | J18: =InpR!J$64 -> 0 | K18: =InpR!K$64 -> 1 | L18: =InpR!L$64 -> 0 | M18: =InpR!M$64 -> 0 | N18: =InpR!N$64 -> 0 | O18: =InpR!O$64 -> 0 | P18: =InpR!P$64 -> 0
E19: =Time!E$92 -> First modelling period flag | F19: =Time!F$92 -> 0 | G19: =Time!G$92 -> flag | H19: =Time!H$92 -> 0 | I19: =Time!I$92 -> 0 | J19: =Time!J$92 -> 0 | K19: =Time!K$92 -> 1 | L19: =Time!L$92 -> 0 | M19: =Time!M$92 -> 0 | N19: =Time!N$92 -> 0 | O19: =Time!O$92 -> 0 | P19: =Time!P$92 -> 0
E20: 1 year real-CPIH average debt cost 2021 | G20: Percentage | J20: =IFERROR(SUMPRODUCT($J18:J18,$J17:J17) / SUM($J18:J18) * J19,0) -> 0 | K20: =IFERROR(SUMPRODUCT($J18:K18,$J17:K17) / SUM($J18:K18) * K19,0) -> 0.001546445042 | L20: =IFERROR(SUMPRODUCT($J18:L18,$J17:L17) / SUM($J18:L18) * L19,0) -> 0 | M20: =IFERROR(SUMPRODUCT($J18:M18,$J17:M17) / SUM($J18:M18) * M19,0) -> 0 | N20: =IFERROR(SUMPRODUCT($J18:N18,$J17:N17) / SUM($J18:N18) * N19,0) -> 0 | O20: =IFERROR(SUMPRODUCT($J18:O18,$J17:O17) / SUM($J18:O18) * O19,0) -> 0 | P20: =IFERROR(SUMPRODUCT($J18:P18,$J17:P17) / SUM($J18:P18) * P19,0) -> 0
E22: =E$14 -> 1 year real-CPIH average debt cost | F22: =F$14 -> 0 | G22: Percentage | H22: 0 | I22: 0 | J22: 0 | K22: 0.001546445042 | L22: 0.004204769212 | M22: 0.02725552226 | N22: 0.03593714908 | O22: 0.03587391104 | P22: 0
E23: =InpR!E$65 -> Average debt cost weighting 2022 | F23: =InpR!F$65 -> 0 | G23: =InpR!G$65 -> Weighting | H23: =InpR!H$65 -> 0 | I23: =InpR!I$65 -> 0 | J23: =InpR!J$65 -> 0 | K23: =InpR!K$65 -> 1 | L23: =InpR!L$65 -> 0.5 | M23: =InpR!M$65 -> 0 | N23: =InpR!N$65 -> 0 | O23: =InpR!O$65 -> 0 | P23: =InpR!P$65 -> 0
E24: =Time!E$96 -> Second modelling period flag | F24: =Time!F$96 -> 0 | G24: =Time!G$96 -> flag | H24: =Time!H$96 -> 0 | I24: =Time!I$96 -> 0 | J24: =Time!J$96 -> 0 | K24: =Time!K$96 -> 0 | L24: =Time!L$96 -> 1 | M24: =Time!M$96 -> 0 | N24: =Time!N$96 -> 0 | O24: =Time!O$96 -> 0 | P24: =Time!P$96 -> 0
E25: 1 year real-CPIH average debt cost 2022 | G25: Percentage | J25: =IFERROR(SUMPRODUCT($J23:J23,$J22:J22) / SUM($J23:J23) * J24,0) -> 0 | K25: =IFERROR(SUMPRODUCT($J23:K23,$J22:K22) / SUM($J23:K23) * K24,0) -> 0 | L25: =IFERROR(SUMPRODUCT($J23:L23,$J22:L22) / SUM($J23:L23) * L24,0) -> 0.002432553099 | M25: =IFERROR(SUMPRODUCT($J23:M23,$J22:M22) / SUM($J23:M23) * M24,0) -> 0 | N25: =IFERROR(SUMPRODUCT($J23:N23,$J22:N22) / SUM($J23:N23) * N24,0) -> 0 | O25: =IFERROR(SUMPRODUCT($J23:O23,$J22:O22) / SUM($J23:O23) * O24,0) -> 0 | P25: =IFERROR(SUMPRODUCT($J23:P23,$J22:P22) / SUM($J23:P23) * P24,0) -> 0
E27: =E$14 -> 1 year real-CPIH average debt cost | F27: =F$14 -> 0 | G27: Percentage | H27: 0 | I27: 0 | J27: 0 | K27: 0.001546445042 | L27: 0.004204769212 | M27: 0.02725552226 | N27: 0.03593714908 | O27: 0.03587391104 | P27: 0
E28: =InpR!E$66 -> Average debt cost weighting 2023 | F28: =InpR!F$66 -> 0 | G28: =InpR!G$66 -> Weighting | H28: =InpR!H$66 -> 0 | I28: =InpR!I$66 -> 0 | J28: =InpR!J$66 -> 0 | K28: =InpR!K$66 -> 1 | L28: =InpR!L$66 -> 1 | M28: =InpR!M$66 -> 0.5 | N28: =InpR!N$66 -> 0 | O28: =InpR!O$66 -> 0 | P28: =InpR!P$66 -> 0
E29: =Time!E$100 -> Third modelling period flag | F29: =Time!F$100 -> 0 | G29: =Time!G$100 -> flag | H29: =Time!H$100 -> 0 | I29: =Time!I$100 -> 0 | J29: =Time!J$100 -> 0 | K29: =Time!K$100 -> 0 | L29: =Time!L$100 -> 0 | M29: =Time!M$100 -> 1 | N29: =Time!N$100 -> 0 | O29: =Time!O$100 -> 0 | P29: =Time!P$100 -> 0
E30: 1 year real-CPIH average debt cost 2023 | G30: Percentage | J30: =IFERROR(SUMPRODUCT($J28:J28,$J27:J27) / SUM($J28:J28) * J29,0) -> 0 | K30: =IFERROR(SUMPRODUCT($J28:K28,$J27:K27) / SUM($J28:K28) * K29,0) -> 0 | L30: =IFERROR(SUMPRODUCT($J28:L28,$J27:L27) / SUM($J28:L28) * L29,0) -> 0 | M30: =IFERROR(SUMPRODUCT($J28:M28,$J27:M27) / SUM($J28:M28) * M29,0) -> 0.007751590153 | N30: =IFERROR(SUMPRODUCT($J28:N28,$J27:N27) / SUM($J28:N28) * N29,0) -> 0 | O30: =IFERROR(SUMPRODUCT($J28:O28,$J27:O27) / SUM($J28:O28) * O29,0) -> 0 | P30: =IFERROR(SUMPRODUCT($J28:P28,$J27:P27) / SUM($J28:P28) * P29,0) -> 0
E32: =E$14 -> 1 year real-CPIH average debt cost | F32: =F$14 -> 0 | G32: Percentage | H32: 0 | I32: 0 | J32: 0 | K32: 0.001546445042 | L32: 0.004204769212 | M32: 0.02725552226 | N32: 0.03593714908 | O32: 0.03587391104 | P32: 0
E33: =InpR!E$67 -> Average debt cost weighting 2024 | F33: =InpR!F$67 -> 0 | G33: =InpR!G$67 -> Weighting | H33: =InpR!H$67 -> 0 | I33: =InpR!I$67 -> 0 | J33: =InpR!J$67 -> 0 | K33: =InpR!K$67 -> 1 | L33: =InpR!L$67 -> 1 | M33: =InpR!M$67 -> 1 | N33: =InpR!N$67 -> 0.5 | O33: =InpR!O$67 -> 0 | P33: =InpR!P$67 -> 0
E34: =Time!E$104 -> Fourth modelling period flag | F34: =Time!F$104 -> 0 | G34: =Time!G$104 -> flag | H34: =Time!H$104 -> 0 | I34: =Time!I$104 -> 0 | J34: =Time!J$104 -> 0 | K34: =Time!K$104 -> 0 | L34: =Time!L$104 -> 0 | M34: =Time!M$104 -> 0 | N34: =Time!N$104 -> 1 | O34: =Time!O$104 -> 0 | P34: =Time!P$104 -> 0
E35: 1 year real-CPIH average debt cost 2024 | G35: Percentage | J35: =IFERROR(SUMPRODUCT($J33:J33,$J32:J32) / SUM($J33:J33) * J34,0) -> 0 | K35: =IFERROR(SUMPRODUCT($J33:K33,$J32:K32) / SUM($J33:K33) * K34,0) -> 0 | L35: =IFERROR(SUMPRODUCT($J33:L33,$J32:L32) / SUM($J33:L33) * L34,0) -> 0 | M35: =IFERROR(SUMPRODUCT($J33:M33,$J32:M32) / SUM($J33:M33) * M34,0) -> 0 | N35: =IFERROR(SUMPRODUCT($J33:N33,$J32:N32) / SUM($J33:N33) * N34,0) -> 0.01456437459 | O35: =IFERROR(SUMPRODUCT($J33:O33,$J32:O32) / SUM($J33:O33) * O34,0) -> 0 | P35: =IFERROR(SUMPRODUCT($J33:P33,$J32:P32) / SUM($J33:P33) * P34,0) -> 0
E37: =E$14 -> 1 year real-CPIH average debt cost | F37: =F$14 -> 0 | G37: Percentage | H37: 0 | I37: 0 | J37: 0 | K37: 0.001546445042 | L37: 0.004204769212 | M37: 0.02725552226 | N37: 0.03593714908 | O37: 0.03587391104 | P37: 0
E38: =InpR!E$68 -> Average debt cost weighting 2025 | F38: =InpR!F$68 -> 0 | G38: =InpR!G$68 -> Weighting | H38: =InpR!H$68 -> 0 | I38: =InpR!I$68 -> 0 | J38: =InpR!J$68 -> 0 | K38: =InpR!K$68 -> 1 | L38: =InpR!L$68 -> 1 | M38: =InpR!M$68 -> 1 | N38: =InpR!N$68 -> 1 | O38: =InpR!O$68 -> 0.5 | P38: =InpR!P$68 -> 0
E39: =Time!E$108 -> Fifth modelling period flag | F39: =Time!F$108 -> 0 | G39: =Time!G$108 -> flag | H39: =Time!H$108 -> 0 | I39: =Time!I$108 -> 0 | J39: =Time!J$108 -> 0 | K39: =Time!K$108 -> 0 | L39: =Time!L$108 -> 0 | M39: =Time!M$108 -> 0 | N39: =Time!N$108 -> 0 | O39: =Time!O$108 -> 1 | P39: =Time!P$108 -> 0
E40: 1 year real-CPIH average debt cost 2025 | G40: Percentage | J40: =IFERROR(SUMPRODUCT($J38:J38,$J37:J37) / SUM($J38:J38) * J39,0) -> 0 | K40: =IFERROR(SUMPRODUCT($J38:K38,$J37:K37) / SUM($J38:K38) * K39,0) -> 0 | L40: =IFERROR(SUMPRODUCT($J38:L38,$J37:L37) / SUM($J38:L38) * L39,0) -> 0 | M40: =IFERROR(SUMPRODUCT($J38:M38,$J37:M37) / SUM($J38:M38) * M39,0) -> 0 | N40: =IFERROR(SUMPRODUCT($J38:N38,$J37:N37) / SUM($J38:N38) * N39,0) -> 0 | O40: =IFERROR(SUMPRODUCT($J38:O38,$J37:O37) / SUM($J38:O38) * O39,0) -> 0.01930685358 | P40: =IFERROR(SUMPRODUCT($J38:P38,$J37:P37) / SUM($J38:P38) * P39,0) -> 0
E43: =E$20 -> 1 year real-CPIH average debt cost 2021 | F43: =F$20 -> 0 | G43: Percentage | H43: 0 | I43: 0 | J43: 0 | K43: 0.001546445042 | L43: 0 | M43: 0 | N43: 0 | O43: 0 | P43: 0
E44: =E$25 -> 1 year real-CPIH average debt cost 2022 | F44: =F$25 -> 0 | G44: Percentage | H44: 0 | I44: 0 | J44: 0 | K44: 0 | L44: 0.002432553099 | M44: 0 | N44: 0 | O44: 0 | P44: 0
E45: =E$30 -> 1 year real-CPIH average debt cost 2023 | F45: =F$30 -> 0 | G45: Percentage | H45: 0 | I45: 0 | J45: 0 | K45: 0 | L45: 0 | M45: 0.007751590153 | N45: 0 | O45: 0 | P45: 0
E46: =E$35 -> 1 year real-CPIH average debt cost 2024 | F46: =F$35 -> 0 | G46: Percentage | H46: 0 | I46: 0 | J46: 0 | K46: 0 | L46: 0 | M46: 0 | N46: 0.01456437459 | O46: 0 | P46: 0
E47: =E$40 -> 1 year real-CPIH average debt cost 2025 | F47: =F$40 -> 0 | G47: Percentage | H47: 0 | I47: 0 | J47: 0 | K47: 0 | L47: 0 | M47: 0 | N47: 0 | O47: 0.01930685358 | P47: 0
E48: Extending trailing average rate | G48: Percentage | J48: =SUM(J43:J47) -> 0 | K48: =SUM(K43:K47) -> 0.001546445042 | L48: =SUM(L43:L47) -> 0.002432553099 | M48: 0.007751590153 | N48: 0.01456437459 | O48: 0.01930685358 | P48: 0

Sheet Water resources
A1: =RIGHT(CELL("filename", $A$1), LEN(CELL("filename", $A$1)) - SEARCH("]", CELL("filename", $A$1))) -> Water resources
J2: =Time!J$22 -> 2020-03-31 | K2: =Time!K$22 -> 2021-03-31 | L2: =Time!L$22 -> 2022-03-31 | M2: =Time!M$22 -> 2023-03-31 | N2: =Time!N$22 -> 2024-03-31 | O2: =Time!O$22 -> 2025-03-31 | P2: =Time!P$22 -> 2026-03-31
J3: =Time!J$58 -> Pre Fcst | K3: =Time!K$58 -> Forecast | L3: =Time!L$58 -> Forecast | M3: =Time!M$58 -> Forecast | N3: =Time!N$58 -> Forecast | O3: =Time!O$58 -> Forecast | P3: =Time!P$58 -> Post-Fcst
E4: =Time!E$86 -> Financial Year Ending | J4: =Time!J$86 -> 2020 | K4: =Time!K$86 -> 2021 | L4: =Time!L$86 -> 2022 | M4: =Time!M$86 -> 2023 | N4: =Time!N$86 -> 2024 | O4: =Time!O$86 -> 2025 | P4: =Time!P$86 -> 2026
E5: =Time!E$10 -> Model column counter | F5: Constant | G5: Unit | H5: Total | J5: =Time!J$10 -> 1 | K5: =Time!K$10 -> 2 | L5: =Time!L$10 -> 3 | M5: =Time!M$10 -> 4 | N5: =Time!N$10 -> 5 | O5: =Time!O$10 -> 6 | P5: =Time!P$10 -> 7
A7: COST OF DEBT CALCULATION BASED ON INDEX OUTTURN
E8: Company-specific adjustment flag | F8: =IF(InpC!$F$66="YES",1,0) -> 1 | G8: Flag | K8: =$F$8 -> 1 | L8: =$F$8 -> 1 | M8: 1 | N8: 1 | O8: 1
E9: =InpC!E64 -> Company-specific adjustment (new debt) | F9: =InpC!F64 -> 0 | G9: ='Cost of Debt'!G47 -> Percentage | K9: =$F$9 -> 0 | L9: =$F$9 -> 0 | M9: 0 | N9: 0 | O9: 0 | P9: 0
E10: =InpC!E65 -> Company-specific adjustment (embedded debt) | F10: =InpC!$F$65 -> 0.0029 | G10: ='Cost of Debt'!G48 -> Percentage | K10: =$F$10 -> 0.0029 | L10: =$F$10 -> 0.0029 | M10: =$F$10 -> 0.0029 | N10: =$F$10 -> 0.0029 | O10: =$F$10 -> 0.0029
E11: ='Cost of Debt'!E48 -> Extending trailing average rate | F11: ='Cost of Debt'!F48 -> 0 | G11: ='Cost of Debt'!G48 -> Percentage | H11: ='Cost of Debt'!H48 -> 0 | I11: ='Cost of Debt'!I48 -> 0 | J11: ='Cost of Debt'!J48 -> 0 | K11: ='Cost of Debt'!K48 -> 0.001546445042 | L11: ='Cost of Debt'!L48 -> 0.002432553099 | M11: ='Cost of Debt'!M48 -> 0.007751590153 | N11: ='Cost of Debt'!N48 -> 0.01456437459 | O11: ='Cost of Debt'!O48 -> 0.01930685358 | P11: ='Cost of Debt'!P48 -> 0
E12: Extending trailing average rate (after any CSA adjustments) | G12: Percentage | K12: =K11+(K8*K9) -> 0.001546445042 | L12: =L11+(L8*L9) -> 0.002432553099 | M12: 0.007751590153 | N12: 0.01456437459 | O12: 0.01930685358 | P12: 0
E13: ='RCV and post 2020 investment'!E18 -> Water Resources New debt for return | F13: ='RCV and post 2020 investment'!F18 -> 0 | G13: ='RCV and post 2020 investment'!G18 -> £m | H13: ='RCV and post 2020 investment'!H18 -> 61.83882733 | I13: ='RCV and post 2020 investment'!I18 -> 0 | J13: ='RCV and post 2020 investment'!J18 -> 0 | K13: ='RCV and post 2020 investment'!K18 -> 2.38092554 | L13: ='RCV and post 2020 investment'!L18 -> 7.205608573 | M13: ='RCV and post 2020 investment'!M18 -> 12.27015162 | N13: ='RCV and post 2020 investment'!N18 -> 17.48768876 | O13: ='RCV and post 2020 investment'!O18 -> 22.49445283 | P13: ='RCV and post 2020 investment'!P52 -> 0
E14: Water resources extending trailing average interest cost | G14: £m | H14: =SUM(J14:O14) -> 0.8053175394 | J14: =J11 * J13 -> 0 | K14: =K12 * K13 -> 0.003681970497 | L14: =L12 * L13 -> 0.01752802546 | M14: 0.09511318647 | N14: 0.2546972498 | O14: 0.4342971072 | P14: 0
E16: ='RCV and post 2020 investment'!E22 -> Water Resources Embedded debt for return | F16: ='RCV and post 2020 investment'!F22 -> 0 | G16: ='RCV and post 2020 investment'!G22 -> £m | H16: ='RCV and post 2020 investment'!H22 -> 297.9979458 | I16: ='RCV and post 2020 investment'!I22 -> 0 | J16: ='RCV and post 2020 investment'!J22 -> 0 | K16: ='RCV and post 2020 investment'!K22 -> 67.64629622 | L16: ='RCV and post 2020 investment'!L22 -> 63.43761273 | M16: ='RCV and post 2020 investment'!M22 -> 59.90721085 | N16: ='RCV and post 2020 investment'!N22 -> 55.98999511 | O16: ='RCV and post 2020 investment'!O22 -> 51.01683093 | P16: ='RCV and post 2020 investment'!P56 -> 0
E17: =InpR!E$37 -> Allowed sector embedded debt cost (not inc. CSA) - final determination (CPIH real) | F17: =InpR!F$37 -> 0 | G17: =InpR!G$37 -> percentage | H17: =InpR!H$37 -> 0 | I17: =InpR!I$37 -> 0 | J17: =InpR!J$37 -> 0 | K17: =InpR!K$37 -> 0.0247 | L17: =InpR!L$37 -> 0.0247 | M17: =InpR!M$37 -> 0.0247 | N17: =InpR!N$37 -> 0.0247 | O17: =InpR!O$37 -> 0.0247 | P17: =InpR!P$37 -> 0
E18: Allowed sector embedded debt cost (after any CSA adjustments) | K18: =K17+(K8*K10) -> 0.0276 | L18: =L17+(L8*L10) -> 0.0276 | M18: 0.0276 | N18: 0.0276 | O18: 0.0276
E19: Water resources Embedded debt interest cost | G19: £m | H19: =SUM(J19:O19) -> 8.224743305 | J19: =J16 * J17 -> 0 | K19: =K16 * K18 -> 1.867037776 | L19: =L16 * L18 -> 1.750878111 | M19: 1.653439019 | N19: 1.545323865 | O19: 1.408064534 | P19: =P16 * P17 -> 0
E21: Water resources outturn allowed new debt cost (CPIH real) | F21: 0 | G21: Percentage | K21: =K12 -> 0.001546445042 | L21: =L12 -> 0.002432553099 | M21: 0.007751590153 | N21: 0.01456437459 | O21: 0.01930685358
E22: Water resources allowed embedded debt cost (CPIH real) | F22: 0 | G22: Percentage | K22: =K18 -> 0.0276 | L22: =L18 -> 0.0276 | M22: 0.0276 | N22: 0.0276 | O22: 0.0276 | P22: =P17 -> 0
E23: Ratio of new to embedded debt for outturn cost of debt allowance | F23: 0 | G23: Percentage | K23: =InpR!K57 -> 0.034 | L23: =InpR!L57 -> 0.102 | M23: =InpR!M57 -> 0.17 | N23: =InpR!N57 -> 0.238 | O23: =InpR!O57 -> 0.306
E24: Water resources outturn allowed cost of overall debt (CPIH real) | F24: 0 | G24: Percentage | K24: =(K23*K21)+(1-K23)*K22 -> 0.02671417913 | L24: =(L23*L21)+(1-L23)*L22 -> 0.02503292042 | M24: =(M23*M21)+(1-M23)*M22 -> 0.02422577033 | N24: =(N23*N21)+(1-N23)*N22 -> 0.02449752115 | O24: =(O23*O21)+(1-O23)*O22 -> 0.0250622972
E25: CPIH inflation (long-term assumption) | F25: 0 | G25: Percentage | K25: =InpR!K59 -> 0.02 | L25: =InpR!L59 -> 0.02 | M25: =InpR!M59 -> 0.02 | N25: =InpR!N59 -> 0.02 | O25: =InpR!O59 -> 0.02
E26: Issuance and liquidity costs | G26: Percentage | K26: =InpR!K38 -> 0.0015 | L26: =InpR!L38 -> 0.0015 | M26: =InpR!M38 -> 0.0015 | N26: =InpR!N38 -> 0.0015 | O26: =InpR!O38 -> 0.0015
E27: Water resources outturn allowed cost of overall debt (Nominal) | F27: 0 | G27: Percentage | K27: =((1+K24)*(1+K25)-1)+K26 -> 0.04874846271 | L27: 0.04703357882 | M27: =((1+M24)*(1+M25)-1)+M26 -> 0.04621028573 | N27: =((1+N24)*(1+N25)-1)+N26 -> 0.04648747157 | O27: =((1+O24)*(1+O25)-1)+O26 -> 0.04706354314
E29: =E$14 -> Water resources extending trailing average interest cost | F29: =F$14 -> 0 | G29: £m | H29: 0.8053175394 | I29: 0 | J29: 0 | K29: 0.003681970497 | L29: 0.01752802546 | M29: 0.09511318647 | N29: 0.2546972498 | O29: 0.4342971072 | P29: 0
E30: =E$19 -> Water resources Embedded debt interest cost | F30: =F$19 -> 0 | G30: =G$19 -> £m | H30: 8.224743305 | I30: 0 | J30: 0 | K30: 1.867037776 | L30: 1.750878111 | M30: 1.653439019 | N30: 1.545323865 | O30: 1.408064534 | P30: 0
E31: Water resources outturn debt allowance | G31: £m | H31: =SUM(J31:O31) -> 9.030060845 | J31: =SUM(J29:J30) -> 0 | K31: 1.870719746 | L31: 1.768406137 | M31: 1.748552206 | N31: 1.800021115 | O31: 1.842361641 | P31: 0
A33: FD ALLOWANCE
E34: =InpC!E51 -> Notional % of 'new' debt over period | F34: =InpC!F51 -> 0.17 | G34: =InpC!G51 -> percentage | K34: =$F$34 -> 0.17 | L34: =$F$34 -> 0.17 | M34: 0.17 | N34: 0.17 | O34: 0.17 | P34: =InpR!P36 -> 0
E35: =InpR!E36 -> Allowed sector new debt cost (not inc. CSA) - final determination (CPIH real) | F35: =InpR!F36 -> 0 | G35: =InpR!G36 -> percentage | H35: =InpR!H36 -> 0 | I35: =InpR!I36 -> 0 | J35: =InpR!J36 -> 0 | K35: =InpR!K36 -> 0.0019 | L35: =InpR!L36 -> 0.0019 | M35: =InpR!M36 -> 0.0019 | N35: =InpR!N36 -> 0.0019 | O35: =InpR!O36 -> 0.0019 | P35: =P13 -> 0
E36: Allowed sector cost of new debt (after any CSA adjustments) | K36: =K35+(K8*K9) -> 0.0019 | L36: =L35+(L8*L9) -> 0.0019 | M36: =M35+(M8*M9) -> 0.0019 | N36: =N35+(N8*N9) -> 0.0019 | O36: =O35+(O8*O9) -> 0.0019
E37: =InpR!E37 -> Allowed sector embedded debt cost (not inc. CSA) - final determination (CPIH real) | F37: =InpR!F37 -> 0 | G37: =InpR!G37 -> percentage | H37: =InpR!H37 -> 0 | I37: =InpR!I37 -> 0 | J37: =InpR!J37 -> 0 | K37: =InpR!K37 -> 0.0247 | L37: =InpR!L37 -> 0.0247 | M37: =InpR!M37 -> 0.0247 | N37: =InpR!N37 -> 0.0247 | O37: =InpR!O37 -> 0.0247 | P37: =P34*P35 -> 0
E38: Allowed sector cost of embedded debt (after any CSA adjustments) | K38: =K37+(K8*K10) -> 0.0276 | L38: =L37+(L8*L10) -> 0.0276 | M38: =M37+(M8*M10) -> 0.0276 | N38: =N37+(N8*N10) -> 0.0276 | O38: =O37+(O8*O10) -> 0.0276
E39: ='RCV and post 2020 investment'!E14 -> Water Resources Notional debt | F39: ='RCV and post 2020 investment'!F14 -> 0 | G39: ='RCV and post 2020 investment'!G14 -> £m | H39: ='RCV and post 2020 investment'!H14 -> 359.8367732 | I39: ='RCV and post 2020 investment'!I14 -> 0 | J39: ='RCV and post 2020 investment'!J14 -> 0 | K39: ='RCV and post 2020 investment'!K14 -> 70.02722176 | L39: ='RCV and post 2020 investment'!L14 -> 70.6432213 | M39: ='RCV and post 2020 investment'!M14 -> 72.17736247 | N39: ='RCV and post 2020 investment'!N14 -> 73.47768388 | O39: ='RCV and post 2020 investment'!O14 -> 73.51128377
E40: Water resources initial cost of debt allowance | G40: £m | I40: =I$14 -> 0 | K40: =(K39 * K34 * K36) + (K39 * (1-K34) * K38) -> 1.626802389 | L40: =(L39 * L34 * L36) + (L39 * (1-L34) * L38) -> 1.641112674 | M40: 1.676752308 | N40: 1.706960074 | O40: 1.707740633 | P40: =(P39 * $F34 * P35) + (P39 * (1-$F34) * P37) -> 0
P41: =P14 -> 0
A42: RECONCILIATION ADJUSTMENTS | P42: =P40-P41 -> 0
E43: =E$31 -> Water resources outturn debt allowance | F43: =F$31 -> 0 | G43: £m | H43: 9.030060845 | I43: 0 | J43: 0 | K43: 1.870719746 | L43: 1.768406137 | M43: 1.748552206 | N43: 1.800021115 | O43: 1.842361641
E44: =E$40 -> Water resources initial cost of debt allowance | F44: =F$40 -> 0 | G44: £m | H44: 0 | I44: 0 | J44: 0 | K44: 1.626802389 | L44: 1.641112674 | M44: 1.676752308 | N44: 1.706960074 | O44: 1.707740633
E45: Reconciliation (in-year values) - Water resources | G45: £m | H45: =SUM(J45:O45) -> 0.6706927672 | J45: =J43-J44 -> 0 | K45: 0.2439173575 | L45: 0.1272934627 | M45: 0.0717998984 | N45: 0.09306104078 | O45: 0.1346210078
E47: =InpC!E$61 -> PV base date | F47: =InpC!F$61 -> 2025-03-31 | G47: =InpC!G$61 -> date
E48: =InpC!E$62 -> Days in a year | F48: =InpC!F$62 -> 365 | G48: =InpC!G$62 -> days
E49: =Time!E$22 -> Model Period END | F49: =Time!F$22 -> 0 | G49: =Time!G$22 -> date | H49: =Time!H$22 -> 00:00:00 | I49: =Time!I$22 -> 00:00:00 | J49: =Time!J$22 -> 2020-03-31 | K49: =Time!K$22 -> 2021-03-31 | L49: =Time!L$22 -> 2022-03-31 | M49: =Time!M$22 -> 2023-03-31 | N49: =Time!N$22 -> 2024-03-31 | O49: =Time!O$22 -> 2025-03-31 | P49: =Time!P$22 -> 2026-03-31
E50: Years from valuation date - Water resources | G50: years | J50: =( ( J49 - $F47 ) / $F48 ) * -1 -> 5.002739726 | K50: 4.002739726 | L50: 3.002739726 | M50: 2.002739726 | N50: 1 | O50: 0
E52: =InpC!E56 -> PR19 appointee allowed return on capital (CPIH-deflated using long-term assumption) | F52: =InpC!F56 -> 0.0337 | G52: =InpC!G56 -> percentage | K52: =$F$52 -> 0.0337 | L52: =$F$52 -> 0.0337 | M52: 0.0337 | N52: 0.0337 | O52: 0.0337
E53: =E$50 -> Years from valuation date - Water resources | F53: =F$50 -> 0 | G53: years | H53: 0 | I53: 0 | J53: 5.002739726 | K53: 4.002739726 | L53: 3.002739726 | M53: 2.002739726 | N53: 1 | O53: 0
E54: Discount factor - Water resources | G54: Factor | J54: =(1+$F52) ^J53 -> 1.1803533 | K54: 1.141872206 | L54: 1.104645648 | M54: 1.068632725 | N54: 1.0337 | O54: 1
E56: =E$45 -> Reconciliation (in-year values) - Water resources | F56: =F$45 -> 0 | G56: £m | H56: 0.6706927672 | I56: 0 | J56: 0 | K56: 0.2439173575 | L56: 0.1272934627 | M56: 0.0717998984 | N56: 0.09306104078 | O56: 0.1346210078
E57: =E$54 -> Discount factor - Water resources | F57: =F$54 -> 0 | G57: Factor | H57: 0 | I57: 0 | J57: 1.1803533 | K57: 1.141872206 | L57: 1.104645648 | M57: 1.068632725 | N57: 1.0337 | O57: 1
E58: Discounted reconciliation (in-year values) Water resources | G58: £m | K58: =K57*K56 -> 0.2785224511 | L58: =L57*L56 -> 0.1406141696 | M58: =M57*M56 -> 0.07672772108 | N58: =N57*N56 -> 0.09619719786 | O58: =O57*O56 -> 0.1346210078
E60: =E$58 -> Discounted reconciliation (in-year values) Water resources | F60: =F$58 -> 0 | G60: £m | H60: 0 | I60: 0 | J60: 0 | K60: 0.2785224511 | L60: 0.1406141696 | M60: 0.07672772108 | N60: 0.09619719786 | O60: 0.1346210078
E61: Total value of reconciliation (31 March 2025 present values): Water resources | G61: £m | H61: =SUM(K60:O60) -> 0.7266825474

Sheet Water network +
A1: =RIGHT(CELL("filename", $A$1), LEN(CELL("filename", $A$1)) - SEARCH("]", CELL("filename", $A$1))) -> Water network +
J2: =Time!J$22 -> 2020-03-31 | K2: =Time!K$22 -> 2021-03-31 | L2: =Time!L$22 -> 2022-03-31 | M2: =Time!M$22 -> 2023-03-31 | N2: =Time!N$22 -> 2024-03-31 | O2: =Time!O$22 -> 2025-03-31 | P2: =Time!P$22 -> 2026-03-31
J3: =Time!J$58 -> Pre Fcst | K3: =Time!K$58 -> Forecast | L3: =Time!L$58 -> Forecast | M3: =Time!M$58 -> Forecast | N3: =Time!N$58 -> Forecast | O3: =Time!O$58 -> Forecast | P3: =Time!P$58 -> Post-Fcst
E4: =Time!E$86 -> Financial Year Ending | J4: =Time!J$86 -> 2020 | K4: =Time!K$86 -> 2021 | L4: =Time!L$86 -> 2022 | M4: =Time!M$86 -> 2023 | N4: =Time!N$86 -> 2024 | O4: =Time!O$86 -> 2025 | P4: =Time!P$86 -> 2026
E5: =Time!E$10 -> Model column counter | F5: Constant | G5: Unit | H5: Total | J5: =Time!J$10 -> 1 | K5: =Time!K$10 -> 2 | L5: =Time!L$10 -> 3 | M5: =Time!M$10 -> 4 | N5: =Time!N$10 -> 5 | O5: =Time!O$10 -> 6 | P5: =Time!P$10 -> 7
A7: COST OF DEBT CALCULATION BASED ON INDEX OUTTURN
E8: Company-specific adjustment flag | F8: =IF(InpC!$F$67="YES",1,0) -> 1 | G8: Flag | K8: =$F$8 -> 1 | L8: =$F$8 -> 1 | M8: 1 | N8: 1 | O8: 1
E9: =InpC!E64 -> Company-specific adjustment (new debt) | F9: =InpC!F64 -> 0 | G9: ='Cost of Debt'!G47 -> Percentage | K9: =$F$9 -> 0 | L9: =$F$9 -> 0 | M9: 0 | N9: 0 | O9: 0
E10: =InpC!E65 -> Company-specific adjustment (embedded debt) | F10: =InpC!$F$65 -> 0.0029 | G10: ='Cost of Debt'!G48 -> Percentage | K10: =$F$10 -> 0.0029 | L10: =$F$10 -> 0.0029 | M10: =$F$10 -> 0.0029 | N10: =$F$10 -> 0.0029 | O10: =$F$10 -> 0.0029
E11: ='Cost of Debt'!E48 -> Extending trailing average rate | F11: ='Cost of Debt'!F48 -> 0 | G11: ='Cost of Debt'!G48 -> Percentage | H11: ='Cost of Debt'!H48 -> 0 | I11: ='Cost of Debt'!I48 -> 0 | J11: ='Cost of Debt'!J48 -> 0 | K11: ='Cost of Debt'!K48 -> 0.001546445042 | L11: ='Cost of Debt'!L48 -> 0.002432553099 | M11: ='Cost of Debt'!M48 -> 0.007751590153 | N11: ='Cost of Debt'!N48 -> 0.01456437459 | O11: ='Cost of Debt'!O48 -> 0.01930685358 | P11: ='Cost of Debt'!P48 -> 0
E12: Extending trailing average rate (after any CSA adjustments) | G12: Percentage | K12: =K11+(K8*K9) -> 0.001546445042 | L12: =L11+(L8*L9) -> 0.002432553099 | M12: 0.007751590153 | N12: 0.01456437459 | O12: 0.01930685358 | P12: 0
E13: ='RCV and post 2020 investment'!E35 -> Water Network Plus New debt for return | F13: ='RCV and post 2020 investment'!F35 -> 0 | G13: ='RCV and post 2020 investment'!G35 -> £m | H13: ='RCV and post 2020 investment'!H35 -> 204.3220521 | I13: ='RCV and post 2020 investment'!I35 -> 0 | J13: ='RCV and post 2020 investment'!J35 -> 0 | K13: ='RCV and post 2020 investment'!K35 -> 8.334450702 | L13: ='RCV and post 2020 investment'!L35 -> 24.88625085 | M13: ='RCV and post 2020 investment'!M35 -> 41.12487905 | N13: ='RCV and post 2020 investment'!N35 -> 57.04927806 | O13: ='RCV and post 2020 investment'!O35 -> 72.92719344 | P13: ='RCV and post 2020 investment'!P35 -> 0
E14: Water network + extending trailing average interest cost | G14: £m | H14: =SUM(J14:O14) -> 2.631090805 | J14: =J11 * J13 -> 0 | K14: =K12 * K13 -> 0.01288876997 | L14: =L12 * L13 -> 0.06053712662 | M14: 0.3187832075 | N14: 0.8308870556 | O14: 1.407994646 | P14: 0
E16: ='RCV and post 2020 investment'!E39 -> Water Network Plus Embedded debt for return | F16: ='RCV and post 2020 investment'!F39 -> 0 | G16: ='RCV and post 2020 investment'!G39 -> £m | H16: ='RCV and post 2020 investment'!H39 -> 1004.729766 | I16: ='RCV and post 2020 investment'!I39 -> 0 | J16: ='RCV and post 2020 investment'!J39 -> 0 | K16: ='RCV and post 2020 investment'!K39 -> 236.7964523 | L16: ='RCV and post 2020 investment'!L39 -> 219.0966006 | M16: ='RCV and post 2020 investment'!M39 -> 200.7861742 | N16: ='RCV and post 2020 investment'!N39 -> 182.6535709 | O16: ='RCV and post 2020 investment'!O39 -> 165.3969681 | P16: ='RCV and post 2020 investment'!P56 -> 0
E17: =InpR!E$37 -> Allowed sector embedded debt cost (not inc. CSA) - final determination (CPIH real) | F17: =InpR!F$37 -> 0 | G17: =InpR!G$37 -> percentage | H17: =InpR!H$37 -> 0 | I17: =InpR!I$37 -> 0 | J17: =InpR!J$37 -> 0 | K17: =InpR!K$37 -> 0.0247 | L17: =InpR!L$37 -> 0.0247 | M17: =InpR!M$37 -> 0.0247 | N17: =InpR!N$37 -> 0.0247 | O17: =InpR!O$37 -> 0.0247 | P17: =InpR!P$37 -> 0
E18: Allowed sector embedded debt cost (after any CSA adjustments) | K18: =K17+(K8*K10) -> 0.0276 | L18: =L17+(L8*L10) -> 0.0276 | M18: 0.0276 | N18: 0.0276 | O18: 0.0276
E19: Water network + Embedded debt interest cost | G19: £m | H19: =SUM(J19:O19) -> 27.73054155 | J19: =J16 * J17 -> 0 | K19: =K16 * K18 -> 6.535582083 | L19: =L16 * L18 -> 6.047066177 | M19: 5.541698408 | N19: 5.041238558 | O19: 4.56495632 | P19: =P16 * P17 -> 0
E21: Water network + outturn allowed new debt cost (CPIH real) | F21: 0 | G21: Percentage | K21: =K12 -> 0.001546445042 | L21: =L12 -> 0.002432553099 | M21: 0.007751590153 | N21: 0.01456437459 | O21: 0.01930685358
E22: Water network + allowed embedded debt cost (CPIH real) | F22: 0 | G22: Percentage | K22: =K18 -> 0.0276 | L22: =L18 -> 0.0276 | M22: 0.0276 | N22: 0.0276 | O22: 0.0276 | P22: =P17 -> 0
E23: Ratio of new to embedded debt for outturn cost of debt allowance | F23: 0 | G23: Percentage | K23: =InpR!K57 -> 0.034 | L23: =InpR!L57 -> 0.102 | M23: =InpR!M57 -> 0.17 | N23: =InpR!N57 -> 0.238 | O23: =InpR!O57 -> 0.306
E24: Water network + outturn allowed cost of overall debt (CPIH real) | F24: 0 | G24: Percentage | K24: =(K23*K21)+(1-K23)*K22 -> 0.02671417913 | L24: =(L23*L21)+(1-L23)*L22 -> 0.02503292042 | M24: =(M23*M21)+(1-M23)*M22 -> 0.02422577033 | N24: =(N23*N21)+(1-N23)*N22 -> 0.02449752115 | O24: =(O23*O21)+(1-O23)*O22 -> 0.0250622972
E25: CPIH inflation (long-term assumption) | F25: 0 | G25: Percentage | K25: =InpR!K59 -> 0.02 | L25: =InpR!L59 -> 0.02 | M25: =InpR!M59 -> 0.02 | N25: =InpR!N59 -> 0.02 | O25: =InpR!O59 -> 0.02
E26: Issuance and liquidity costs | G26: Percentage | K26: =InpR!K38 -> 0.0015 | L26: =InpR!L38 -> 0.0015 | M26: =InpR!M38 -> 0.0015 | N26: =InpR!N38 -> 0.0015 | O26: =InpR!O38 -> 0.0015
E27: Water network + outturn allowed cost of overall debt (Nominal) | F27: 0 | G27: Percentage | K27: =((1+K24)*(1+K25)-1)+K26 -> 0.04874846271 | L27: 0.04703357882 | M27: =((1+M24)*(1+M25)-1)+M26 -> 0.04621028573 | N27: =((1+N24)*(1+N25)-1)+N26 -> 0.04648747157 | O27: 0.04706354314
E29: =E$14 -> Water network + extending trailing average interest cost | F29: 0 | G29: £m | H29: 2.631090805 | I29: 0 | J29: 0 | K29: 0.01288876997 | L29: 0.06053712662 | M29: 0.3187832075 | N29: 0.8308870556 | O29: 1.407994646 | P29: 0
E30: =E$19 -> Water network + Embedded debt interest cost | F30: =F$19 -> 0 | G30: =G$19 -> £m | H30: 27.73054155 | I30: 0 | J30: 0 | K30: 6.535582083 | L30: 6.047066177 | M30: 5.541698408 | N30: 5.041238558 | O30: 4.56495632 | P30: 0
E31: Water network + outturn debt allowance | G31: £m | H31: =SUM(J31:O31) -> 30.36163235 | J31: =SUM(J29:J30) -> 0 | K31: 6.548470853 | L31: 6.107603304 | M31: 5.860481616 | N31: 5.872125614 | O31: 5.972950966 | P31: 0
A33: FD ALLOWANCE
E34: =InpC!E51 -> Notional % of 'new' debt over period | F34: =InpC!F51 -> 0.17 | G34: =InpC!G51 -> percentage | K34: =$F$34 -> 0.17 | L34: =$F$34 -> 0.17 | M34: 0.17 | N34: 0.17 | O34: 0.17 | P34: =InpR!P36 -> 0
E35: =InpR!E36 -> Allowed sector new debt cost (not inc. CSA) - final determination (CPIH real) | F35: =InpR!F36 -> 0 | G35: =InpR!G36 -> percentage | H35: =InpR!H36 -> 0 | I35: =InpR!I36 -> 0 | J35: =InpR!J36 -> 0 | K35: =InpR!K36 -> 0.0019 | L35: =InpR!L36 -> 0.0019 | M35: =InpR!M36 -> 0.0019 | N35: =InpR!N36 -> 0.0019 | O35: =InpR!O36 -> 0.0019 | P35: =P13 -> 0
E36: Allowed sector cost of new debt (after any CSA adjustments) | K36: =K35+(K8*K9) -> 0.0019 | L36: =L35+(L8*L9) -> 0.0019 | M36: =M35+(M8*M9) -> 0.0019 | N36: =N35+(N8*N9) -> 0.0019 | O36: =O35+(O8*O9) -> 0.0019
E37: =InpR!E37 -> Allowed sector embedded debt cost (not inc. CSA) - final determination (CPIH real) | F37: =InpR!F37 -> 0 | G37: =InpR!G37 -> percentage | H37: =InpR!H37 -> 0 | I37: =InpR!I37 -> 0 | J37: =InpR!J37 -> 0 | K37: =InpR!K37 -> 0.0247 | L37: =InpR!L37 -> 0.0247 | M37: =InpR!M37 -> 0.0247 | N37: =InpR!N37 -> 0.0247 | O37: =InpR!O37 -> 0.0247 | P37: =P34*P35 -> 0
E38: Allowed sector cost of embedded debt (after any CSA adjustments) | K38: =K37+(K8*K10) -> 0.0276 | L38: =L37+(L8*L10) -> 0.0276 | M38: =M37+(M8*M10) -> 0.0276 | N38: =N37+(N8*N10) -> 0.0276 | O38: =O37+(O8*O10) -> 0.0276
E39: ='RCV and post 2020 investment'!E31 -> Water Network Plus Notional debt | F39: ='RCV and post 2020 investment'!F31 -> 0 | G39: ='RCV and post 2020 investment'!G31 -> £m | H39: ='RCV and post 2020 investment'!H31 -> 1209.051818 | I39: ='RCV and post 2020 investment'!I31 -> 0 | J39: ='RCV and post 2020 investment'!J31 -> 0 | K39: ='RCV and post 2020 investment'!K31 -> 245.130903 | L39: ='RCV and post 2020 investment'!L31 -> 243.9828515 | M39: ='RCV and post 2020 investment'!M31 -> 241.9110533 | N39: ='RCV and post 2020 investment'!N31 -> 239.702849 | O39: ='RCV and post 2020 investment'!O31 -> 238.3241616
E40: Water network + initial cost of debt allowance | G40: £m | I40: =I$14 -> 0 | K40: =(K39 * $K34 * K36) + (K39 * (1-$K34) * K38) -> 5.694636007 | L40: =(L39 * $K34 * L36) + (L39 * (1-$K34) * L38) -> 5.667965623 | M40: 5.619835678 | N40: 5.568536885 | O40: 5.536508597 | P40: =(P39 * $F34 * P35) + (P39 * (1-$F34) * P37) -> 0
P41: =P14 -> 0
A42: RECONCILIATION ADJUSTMENTS | P42: =P40-P41 -> 0
E43: =E$31 -> Water network + outturn debt allowance | F43: =F$31 -> 0 | G43: £m | H43: 30.36163235 | I43: 0 | J43: 0 | K43: 6.548470853 | L43: 6.107603304 | M43: 5.860481616 | N43: 5.872125614 | O43: 5.972950966
E44: =E$40 -> Water network + initial cost of debt allowance | F44: =F$40 -> 0 | G44: £m | H44: 0 | I44: 0 | J44: 0 | K44: 5.694636007 | L44: 5.667965623 | M44: 5.619835678 | N44: 5.568536885 | O44: 5.536508597
E45: Reconciliation (in-year values) - Water network + | G45: £m | H45: =SUM(J45:O45) -> 2.274149561 | J45: =J43-J44 -> 0 | K45: 0.8538348458 | L45: 0.4396376813 | M45: 0.2406459373 | N45: 0.3035887283 | O45: 0.4364423686
E47: =InpC!E$61 -> PV base date | F47: =InpC!F$61 -> 2025-03-31 | G47: =InpC!G$61 -> date
E48: =InpC!E$62 -> Days in a year | F48: =InpC!F$62 -> 365 | G48: =InpC!G$62 -> days
E49: =Time!E$22 -> Model Period END | F49: =Time!F$22 -> 0 | G49: =Time!G$22 -> date | H49: =Time!H$22 -> 00:00:00 | I49: =Time!I$22 -> 00:00:00 | J49: =Time!J$22 -> 2020-03-31 | K49: =Time!K$22 -> 2021-03-31 | L49: =Time!L$22 -> 2022-03-31 | M49: =Time!M$22 -> 2023-03-31 | N49: =Time!N$22 -> 2024-03-31 | O49: =Time!O$22 -> 2025-03-31 | P49: =Time!P$22 -> 2026-03-31
E50: Years from valuation date - Water network + | G50: years | J50: =( ( J49 - $F47 ) / $F48 ) * -1 -> 5.002739726 | K50: 4.002739726 | L50: 3.002739726 | M50: 2.002739726 | N50: 1 | O50: 0
E52: =InpC!E56 -> PR19 appointee allowed return on capital (CPIH-deflated using long-term assumption) | F52: =InpC!F56 -> 0.0337 | G52: =InpC!G56 -> percentage | K52: =$F$52 -> 0.0337 | L52: =$F$52 -> 0.0337 | M52: 0.0337 | N52: 0.0337 | O52: 0.0337
E53: =E$50 -> Years from valuation date - Water network + | F53: =F$50 -> 0 | G53: years | H53: 0 | I53: 0 | J53: 5.002739726 | K53: 4.002739726 | L53: 3.002739726 | M53: 2.002739726 | N53: 1 | O53: 0
E54: Discount factor - Water network + | G54: Factor | J54: =(1+$F52) ^J53 -> 1.1803533 | K54: 1.141872206 | L54: 1.104645648 | M54: 1.068632725 | N54: 1.0337 | O54: 1
E56: =E$45 -> Reconciliation (in-year values) - Water network + | F56: =F$45 -> 0 | G56: £m | H56: 2.274149561 | I56: 0 | J56: 0 | K56: 0.8538348458 | L56: 0.4396376813 | M56: 0.2406459373 | N56: 0.3035887283 | O56: 0.4364423686
E57: =E$54 -> Discount factor - Water network + | F57: =F$54 -> 0 | G57: Factor | H57: 0 | I57: 0 | J57: 1.1803533 | K57: 1.141872206 | L57: 1.104645648 | M57: 1.068632725 | N57: 1.0337 | O57: 1
E58: Discounted reconciliation (in-year values) Water network + | G58: £m | K58: =K57*K56 -> 0.9749702791 | L58: =L57*L56 -> 0.4856438512 | M58: =M57*M56 -> 0.2571621238 | N58: =N57*N56 -> 0.3138196685 | O58: =O57*O56 -> 0.4364423686
E60: =E$58 -> Discounted reconciliation (in-year values) Water network + | F60: =F$58 -> 0 | G60: £m | H60: 0 | I60: 0 | J60: 0 | K60: 0.9749702791 | L60: 0.4856438512 | M60: 0.2571621238 | N60: 0.3138196685 | O60: 0.4364423686
E61: Total value of reconciliation (31 March 2025 present values): Water network + | G61: £m | H61: =SUM(K60:O60) -> 2.468038291

Sheet Wastewater network +
A1: =RIGHT(CELL("filename", $A$1), LEN(CELL("filename", $A$1)) - SEARCH("]", CELL("filename", $A$1))) -> Wastewater network +
J2: =Time!J$22 -> 2020-03-31 | K2: =Time!K$22 -> 2021-03-31 | L2: =Time!L$22 -> 2022-03-31 | M2: =Time!M$22 -> 2023-03-31 | N2: =Time!N$22 -> 2024-03-31 | O2: =Time!O$22 -> 2025-03-31 | P2: =Time!P$22 -> 2026-03-31
J3: =Time!J$58 -> Pre Fcst | K3: =Time!K$58 -> Forecast | L3: =Time!L$58 -> Forecast | M3: =Time!M$58 -> Forecast | N3: =Time!N$58 -> Forecast | O3: =Time!O$58 -> Forecast | P3: =Time!P$58 -> Post-Fcst
E4: =Time!E$86 -> Financial Year Ending | J4: =Time!J$86 -> 2020 | K4: =Time!K$86 -> 2021 | L4: =Time!L$86 -> 2022 | M4: =Time!M$86 -> 2023 | N4: =Time!N$86 -> 2024 | O4: =Time!O$86 -> 2025 | P4: =Time!P$86 -> 2026
E5: =Time!E$10 -> Model column counter | F5: Constant | G5: Unit | H5: Total | J5: =Time!J$10 -> 1 | K5: =Time!K$10 -> 2 | L5: =Time!L$10 -> 3 | M5: =Time!M$10 -> 4 | N5: =Time!N$10 -> 5 | O5: =Time!O$10 -> 6 | P5: =Time!P$10 -> 7
A7: COST OF DEBT CALCULATION BASED ON INDEX OUTTURN
E8: Company-specific adjustment flag | F8: =IF(InpC!$F$68="YES",1,0) -> 0 | G8: Flag | K8: =$F$8 -> 0 | L8: =$F$8 -> 0 | M8: 0 | N8: 0 | O8: 0
E9: =InpC!E64 -> Company-specific adjustment (new debt) | F9: =InpC!F64 -> 0 | G9: ='Cost of Debt'!G47 -> Percentage | K9: =$F$9 -> 0 | L9: =$F$9 -> 0 | M9: 0 | N9: 0 | O9: 0
E10: =InpC!E65 -> Company-specific adjustment (embedded debt) | F10: =InpC!$F$65 -> 0.0029 | G10: ='Cost of Debt'!G48 -> Percentage | K10: =$F$10 -> 0.0029 | L10: =$F$10 -> 0.0029 | M10: =$F$10 -> 0.0029 | N10: =$F$10 -> 0.0029 | O10: =$F$10 -> 0.0029
E11: ='Cost of Debt'!E48 -> Extending trailing average rate | F11: ='Cost of Debt'!F48 -> 0 | G11: ='Cost of Debt'!G48 -> Percentage | H11: ='Cost of Debt'!H48 -> 0 | I11: ='Cost of Debt'!I48 -> 0 | J11: ='Cost of Debt'!J48 -> 0 | K11: ='Cost of Debt'!K48 -> 0.001546445042 | L11: ='Cost of Debt'!L48 -> 0.002432553099 | M11: ='Cost of Debt'!M48 -> 0.007751590153 | N11: ='Cost of Debt'!N48 -> 0.01456437459 | O11: ='Cost of Debt'!O48 -> 0.01930685358 | P11: ='Cost of Debt'!P48 -> 0
E12: Extending trailing average rate (after any CSA adjustments) | G12: Percentage | K12: =K11+(K8*K9) -> 0.001546445042 | L12: =L11+(L8*L9) -> 0.002432553099 | M12: 0.007751590153 | N12: 0.01456437459 | O12: 0.01930685358 | P12: 0
E13: ='RCV and post 2020 investment'!E52 -> Wastewater Network Plus New debt for return | F13: ='RCV and post 2020 investment'!F52 -> 0 | G13: ='RCV and post 2020 investment'!G52 -> £m | H13: ='RCV and post 2020 investment'!H52 -> 0 | I13: ='RCV and post 2020 investment'!I52 -> 0 | J13: ='RCV and post 2020 investment'!J52 -> 0 | K13: ='RCV and post 2020 investment'!K52 -> 0 | L13: ='RCV and post 2020 investment'!L52 -> 0 | M13: ='RCV and post 2020 investment'!M52 -> 0 | N13: ='RCV and post 2020 investment'!N52 -> 0 | O13: ='RCV and post 2020 investment'!O52 -> 0 | P13: ='RCV and post 2020 investment'!P52 -> 0
E14: Wastewater network + extending trailing average interest cost | G14: £m | H14: =SUM(J14:O14) -> 0 | J14: =J11 * J13 -> 0 | K14: =K12 * K13 -> 0 | L14: =L12 * L13 -> 0 | M14: 0 | N14: 0 | O14: 0 | P14: 0
E16: ='RCV and post 2020 investment'!E56 -> Wastewater Network Plus Embedded debt for return | F16: ='RCV and post 2020 investment'!F56 -> 0 | G16: ='RCV and post 2020 investment'!G56 -> £m | H16: ='RCV and post 2020 investment'!H56 -> 0 | I16: ='RCV and post 2020 investment'!I56 -> 0 | J16: ='RCV and post 2020 investment'!J56 -> 0 | K16: ='RCV and post 2020 investment'!K56 -> 0 | L16: ='RCV and post 2020 investment'!L56 -> 0 | M16: ='RCV and post 2020 investment'!M56 -> 0 | N16: ='RCV and post 2020 investment'!N56 -> 0 | O16: ='RCV and post 2020 investment'!O56 -> 0 | P16: ='RCV and post 2020 investment'!P56 -> 0
E17: =InpR!E$37 -> Allowed sector embedded debt cost (not inc. CSA) - final determination (CPIH real) | F17: =InpR!F$37 -> 0 | G17: =InpR!G$37 -> percentage | H17: =InpR!H$37 -> 0 | I17: =InpR!I$37 -> 0 | J17: =InpR!J$37 -> 0 | K17: =InpR!K$37 -> 0.0247 | L17: =InpR!L$37 -> 0.0247 | M17: =InpR!M$37 -> 0.0247 | N17: =InpR!N$37 -> 0.0247 | O17: =InpR!O$37 -> 0.0247 | P17: =InpR!P$37 -> 0
E18: Allowed sector embedded debt cost (after any CSA adjustments) | K18: =K17+(K8*K10) -> 0.0247 | L18: =L17+(L8*L10) -> 0.0247 | M18: 0.0247 | N18: 0.0247 | O18: 0.0247
E19: Wastewater network + Embedded debt interest cost | G19: £m | H19: =SUM(J19:O19) -> 0 | J19: =J16 * J17 -> 0 | K19: =K16 * K18 -> 0 | L19: =L16 * L18 -> 0 | M19: 0 | N19: 0 | O19: 0 | P19: =P16 * P17 -> 0
E21: Wastewater network + outturn allowed new debt cost (CPIH real) | F21: 0 | G21: Percentage | K21: =K12 -> 0.001546445042 | L21: =L12 -> 0.002432553099 | M21: 0.007751590153 | N21: 0.01456437459 | O21: 0.01930685358
E22: Wastewater network + allowed embedded debt cost (CPIH real) | F22: 0 | G22: Percentage | K22: =K18 -> 0.0247 | L22: =L18 -> 0.0247 | M22: 0.0247 | N22: 0.0247 | O22: 0.0247 | P22: =P17 -> 0
E23: Ratio of new to embedded debt for outturn cost of debt allowance | F23: 0 | G23: Percentage | K23: =InpR!K57 -> 0.034 | L23: =InpR!L57 -> 0.102 | M23: =InpR!M57 -> 0.17 | N23: =InpR!N57 -> 0.238 | O23: =InpR!O57 -> 0.306
E24: Wastewater network + outturn allowed cost of overall debt (CPIH real) | F24: 0 | G24: Percentage | K24: =(K23*K21)+(1-K23)*K22 -> 0.02391277913 | L24: =(L23*L21)+(1-L23)*L22 -> 0.02242872042 | M24: =(M23*M21)+(1-M23)*M22 -> 0.02181877033 | N24: =(N23*N21)+(1-N23)*N22 -> 0.02228772115 | O24: =(O23*O21)+(1-O23)*O22 -> 0.0230496972
E25: CPIH inflation (long-term assumption) | F25: 0 | G25: Percentage | K25: =InpR!K59 -> 0.02 | L25: =InpR!L59 -> 0.02 | M25: =InpR!M59 -> 0.02 | N25: =InpR!N59 -> 0.02 | O25: =InpR!O59 -> 0.02
E26: Issuance and liquidity costs | G26: Percentage | K26: =InpR!K38 -> 0.0015 | L26: =InpR!L38 -> 0.0015 | M26: =InpR!M38 -> 0.0015 | N26: =InpR!N38 -> 0.0015 | O26: =InpR!O38 -> 0.0015
E27: Wastewater network + outturn allowed cost of overall debt (Nominal) | F27: 0 | G27: Percentage | K27: =((1+K24)*(1+K25)-1)+K26 -> 0.04589103471 | L27: 0.04437729482 | M27: =((1+M24)*(1+M25)-1)+M26 -> 0.04375514573 | N27: =((1+N24)*(1+N25)-1)+N26 -> 0.04423347557 | O27: 0.04501069114
E29: =E$14 -> Wastewater network + extending trailing average interest cost | F29: 0 | G29: £m | H29: 0 | I29: 0 | J29: 0 | K29: 0 | L29: 0 | M29: 0 | N29: 0 | O29: 0 | P29: 0
E30: =E$19 -> Wastewater network + Embedded debt interest cost | F30: =F$19 -> 0 | G30: =G$19 -> £m | H30: 0 | I30: 0 | J30: 0 | K30: 0 | L30: 0 | M30: 0 | N30: 0 | O30: 0 | P30: 0
E31: Wastewater network + outturn debt allowance | G31: £m | H31: =SUM(J31:O31) -> 0 | J31: =SUM(J29:J30) -> 0 | K31: 0 | L31: 0 | M31: 0 | N31: 0 | O31: 0 | P31: 0
A33: FD ALLOWANCE
E34: =InpC!E51 -> Notional % of 'new' debt over period | F34: =InpC!F51 -> 0.17 | G34: =InpC!G51 -> percentage | K34: =$F$34 -> 0.17 | L34: =$F$34 -> 0.17 | M34: 0.17 | N34: 0.17 | O34: 0.17 | P34: =InpR!P36 -> 0
E35: =InpR!E36 -> Allowed sector new debt cost (not inc. CSA) - final determination (CPIH real) | F35: =InpR!F36 -> 0 | G35: =InpR!G36 -> percentage | H35: =InpR!H36 -> 0 | I35: =InpR!I36 -> 0 | J35: =InpR!J36 -> 0 | K35: =InpR!K36 -> 0.0019 | L35: =InpR!L36 -> 0.0019 | M35: =InpR!M36 -> 0.0019 | N35: =InpR!N36 -> 0.0019 | O35: =InpR!O36 -> 0.0019 | P35: =P13 -> 0
E36: Allowed sector cost of new debt (after any CSA adjustments) | K36: =K35+(K8*K9) -> 0.0019 | L36: =L35+(L8*L9) -> 0.0019 | M36: =M35+(M8*M9) -> 0.0019 | N36: =N35+(N8*N9) -> 0.0019 | O36: =O35+(O8*O9) -> 0.0019
E37: =InpR!E37 -> Allowed sector embedded debt cost (not inc. CSA) - final determination (CPIH real) | F37: =InpR!F37 -> 0 | G37: =InpR!G37 -> percentage | H37: =InpR!H37 -> 0 | I37: =InpR!I37 -> 0 | J37: =InpR!J37 -> 0 | K37: =InpR!K37 -> 0.0247 | L37: =InpR!L37 -> 0.0247 | M37: =InpR!M37 -> 0.0247 | N37: =InpR!N37 -> 0.0247 | O37: =InpR!O37 -> 0.0247 | P37: =P34*P35 -> 0
E38: Allowed sector cost of embedded debt (after any CSA adjustments) | K38: =K37+(K8*K10) -> 0.0247 | L38: =L37+(L8*L10) -> 0.0247 | M38: =M37+(M8*M10) -> 0.0247 | N38: =N37+(N8*N10) -> 0.0247 | O38: =O37+(O8*O10) -> 0.0247
E39: ='RCV and post 2020 investment'!E48 -> Wastewater Network Plus Notional debt | F39: ='RCV and post 2020 investment'!F48 -> 0 | G39: ='RCV and post 2020 investment'!G48 -> £m | H39: ='RCV and post 2020 investment'!H48 -> 0 | I39: ='RCV and post 2020 investment'!I48 -> 0 | J39: ='RCV and post 2020 investment'!J48 -> 0 | K39: ='RCV and post 2020 investment'!K48 -> 0 | L39: ='RCV and post 2020 investment'!L48 -> 0 | M39: ='RCV and post 2020 investment'!M48 -> 0 | N39: ='RCV and post 2020 investment'!N48 -> 0 | O39: ='RCV and post 2020 investment'!O48 -> 0
E40: Wastewater network + initial cost of debt allowance | G40: £m | I40: =I$14 -> 0 | K40: =(K39 * $K34 * K36) + (K39 * (1-$K34) * K38) -> 0 | L40: =(L39 * $K34 * L36) + (L39 * (1-$K34) * L38) -> 0 | M40: 0 | N40: 0 | O40: 0 | P40: =(P39 * $F34 * P35) + (P39 * (1-$F34) * P37) -> 0
P41: =P14 -> 0
A42: RECONCILIATION ADJUSTMENTS | P42: =P40-P41 -> 0
E43: =E$31 -> Wastewater network + outturn debt allowance | F43: =F$31 -> 0 | G43: £m | H43: 0 | I43: 0 | J43: 0 | K43: 0 | L43: 0 | M43: 0 | N43: 0 | O43: 0
E44: =E$40 -> Wastewater network + initial cost of debt allowance | F44: =F$40 -> 0 | G44: £m | H44: 0 | I44: 0 | J44: 0 | K44: 0 | L44: 0 | M44: 0 | N44: 0 | O44: 0
E45: Reconciliation (in-year values) - Wastewater network + | G45: £m | H45: =SUM(J45:O45) -> 0 | J45: =J43-J44 -> 0 | K45: 0 | L45: 0 | M45: 0 | N45: 0 | O45: 0
E47: =InpC!E$61 -> PV base date | F47: =InpC!F$61 -> 2025-03-31 | G47: =InpC!G$61 -> date
E48: =InpC!E$62 -> Days in a year | F48: =InpC!F$62 -> 365 | G48: =InpC!G$62 -> days
E49: =Time!E$22 -> Model Period END | F49: =Time!F$22 -> 0 | G49: =Time!G$22 -> date | H49: =Time!H$22 -> 00:00:00 | I49: =Time!I$22 -> 00:00:00 | J49: =Time!J$22 -> 2020-03-31 | K49: =Time!K$22 -> 2021-03-31 | L49: =Time!L$22 -> 2022-03-31 | M49: =Time!M$22 -> 2023-03-31 | N49: =Time!N$22 -> 2024-03-31 | O49: =Time!O$22 -> 2025-03-31 | P49: =Time!P$22 -> 2026-03-31
E50: Years from valuation date - Wastewater network + | G50: years | J50: =( ( J49 - $F47 ) / $F48 ) * -1 -> 5.002739726 | K50: 4.002739726 | L50: 3.002739726 | M50: 2.002739726 | N50: 1 | O50: 0
E52: =InpC!E56 -> PR19 appointee allowed return on capital (CPIH-deflated using long-term assumption) | F52: =InpC!F56 -> 0.0337 | G52: =InpC!G56 -> percentage | K52: =$F$52 -> 0.0337 | L52: =$F$52 -> 0.0337 | M52: 0.0337 | N52: 0.0337 | O52: 0.0337
E53: =E$50 -> Years from valuation date - Wastewater network + | F53: =F$50 -> 0 | G53: years | H53: 0 | I53: 0 | J53: 5.002739726 | K53: 4.002739726 | L53: 3.002739726 | M53: 2.002739726 | N53: 1 | O53: 0
E54: Discount factor - Wastewater network + | G54: Factor | J54: =(1+$F52) ^J53 -> 1.1803533 | K54: 1.141872206 | L54: 1.104645648 | M54: 1.068632725 | N54: 1.0337 | O54: 1
E56: =E$45 -> Reconciliation (in-year values) - Wastewater network + | F56: =F$45 -> 0 | G56: £m | H56: 0 | I56: 0 | J56: 0 | K56: 0 | L56: 0 | M56: 0 | N56: 0 | O56: 0
E57: =E$54 -> Discount factor - Wastewater network + | F57: =F$54 -> 0 | G57: Factor | H57: 0 | I57: 0 | J57: 1.1803533 | K57: 1.141872206 | L57: 1.104645648 | M57: 1.068632725 | N57: 1.0337 | O57: 1
E58: Discounted reconciliation (in-year values) Wastewater network + | G58: £m | K58: =K57*K56 -> 0 | L58: =L57*L56 -> 0 | M58: =M57*M56 -> 0 | N58: =N57*N56 -> 0 | O58: =O57*O56 -> 0
E60: =E$58 -> Discounted reconciliation (in-year values) Wastewater network + | F60: =F$58 -> 0 | G60: £m | H60: 0 | I60: 0 | J60: 0 | K60: 0 | L60: 0 | M60: 0 | N60: 0 | O60: 0
E61: Total value of reconciliation (31 March 2025 present values): Wastewater network + | G61: £m | H61: =SUM(K60:O60) -> 0

Sheet Bioresources
A1: =RIGHT(CELL("filename", $A$1), LEN(CELL("filename", $A$1)) - SEARCH("]", CELL("filename", $A$1))) -> Bioresources
J2: =Time!J$22 -> 2020-03-31 | K2: =Time!K$22 -> 2021-03-31 | L2: =Time!L$22 -> 2022-03-31 | M2: =Time!M$22 -> 2023-03-31 | N2: =Time!N$22 -> 2024-03-31 | O2: =Time!O$22 -> 2025-03-31 | P2: =Time!P$22 -> 2026-03-31
J3: =Time!J$58 -> Pre Fcst | K3: =Time!K$58 -> Forecast | L3: =Time!L$58 -> Forecast | M3: =Time!M$58 -> Forecast | N3: =Time!N$58 -> Forecast | O3: =Time!O$58 -> Forecast | P3: =Time!P$58 -> Post-Fcst
E4: =Time!E$86 -> Financial Year Ending | J4: =Time!J$86 -> 2020 | K4: =Time!K$86 -> 2021 | L4: =Time!L$86 -> 2022 | M4: =Time!M$86 -> 2023 | N4: =Time!N$86 -> 2024 | O4: =Time!O$86 -> 2025 | P4: =Time!P$86 -> 2026
E5: =Time!E$10 -> Model column counter | F5: Constant | G5: Unit | H5: Total | J5: =Time!J$10 -> 1 | K5: =Time!K$10 -> 2 | L5: =Time!L$10 -> 3 | M5: =Time!M$10 -> 4 | N5: =Time!N$10 -> 5 | O5: =Time!O$10 -> 6 | P5: =Time!P$10 -> 7
A7: COST OF DEBT CALCULATION BASED ON INDEX OUTTURN
E8: Company-specific adjustment flag | F8: =IF(InpC!$F$69="YES",1,0) -> 0 | G8: Flag | K8: =$F$8 -> 0 | L8: =$F$8 -> 0 | M8: 0 | N8: 0 | O8: 0
E9: =InpC!E64 -> Company-specific adjustment (new debt) | F9: =InpC!F64 -> 0 | G9: ='Cost of Debt'!G47 -> Percentage | K9: =$F$9 -> 0 | L9: =$F$9 -> 0 | M9: 0 | N9: 0 | O9: 0
E10: =InpC!E65 -> Company-specific adjustment (embedded debt) | F10: =InpC!$F$65 -> 0.0029 | G10: ='Cost of Debt'!G48 -> Percentage | K10: =$F$10 -> 0.0029 | L10: =$F$10 -> 0.0029 | M10: =$F$10 -> 0.0029 | N10: =$F$10 -> 0.0029 | O10: =$F$10 -> 0.0029
E11: ='Cost of Debt'!E48 -> Extending trailing average rate | F11: ='Cost of Debt'!F48 -> 0 | G11: ='Cost of Debt'!G48 -> Percentage | H11: ='Cost of Debt'!H48 -> 0 | I11: ='Cost of Debt'!I48 -> 0 | J11: ='Cost of Debt'!J48 -> 0 | K11: ='Cost of Debt'!K48 -> 0.001546445042 | L11: ='Cost of Debt'!L48 -> 0.002432553099 | M11: ='Cost of Debt'!M48 -> 0.007751590153 | N11: ='Cost of Debt'!N48 -> 0.01456437459 | O11: ='Cost of Debt'!O48 -> 0.01930685358 | P11: ='Cost of Debt'!P48 -> 0
E12: Extending trailing average rate (after any CSA adjustments) | G12: Percentage | K12: =K11+(K8*K9) -> 0.001546445042 | L12: =L11+(L8*L9) -> 0.002432553099 | M12: 0.007751590153 | N12: 0.01456437459 | O12: 0.01930685358 | P12: 0
E13: ='RCV and post 2020 investment'!E69 -> Bioresources New debt for return | F13: ='RCV and post 2020 investment'!F69 -> 0 | G13: ='RCV and post 2020 investment'!G69 -> £m | H13: ='RCV and post 2020 investment'!H69 -> 0 | I13: ='RCV and post 2020 investment'!I69 -> 0 | J13: ='RCV and post 2020 investment'!J69 -> 0 | K13: ='RCV and post 2020 investment'!K69 -> 0 | L13: ='RCV and post 2020 investment'!L69 -> 0 | M13: ='RCV and post 2020 investment'!M69 -> 0 | N13: ='RCV and post 2020 investment'!N69 -> 0 | O13: ='RCV and post 2020 investment'!O69 -> 0 | P13: ='RCV and post 2020 investment'!P69 -> 0
E14: Bioresources extending trailing average interest cost | G14: £m | H14: =SUM(J14:O14) -> 0 | J14: =J11 * J13 -> 0 | K14: =K12 * K13 -> 0 | L14: =L12 * L13 -> 0 | M14: 0 | N14: 0 | O14: 0 | P14: 0
E16: ='RCV and post 2020 investment'!E73 -> Bioresources Embedded debt for return | F16: ='RCV and post 2020 investment'!F73 -> 0 | G16: ='RCV and post 2020 investment'!G73 -> £m | H16: ='RCV and post 2020 investment'!H73 -> 0 | I16: ='RCV and post 2020 investment'!I73 -> 0 | J16: ='RCV and post 2020 investment'!J73 -> 0 | K16: ='RCV and post 2020 investment'!K73 -> 0 | L16: ='RCV and post 2020 investment'!L73 -> 0 | M16: ='RCV and post 2020 investment'!M73 -> 0 | N16: ='RCV and post 2020 investment'!N73 -> 0 | O16: ='RCV and post 2020 investment'!O73 -> 0 | P16: ='RCV and post 2020 investment'!P73 -> 0
E17: =InpR!E$37 -> Allowed sector embedded debt cost (not inc. CSA) - final determination (CPIH real) | F17: =InpR!F$37 -> 0 | G17: =InpR!G$37 -> percentage | H17: =InpR!H$37 -> 0 | I17: =InpR!I$37 -> 0 | J17: =InpR!J$37 -> 0 | K17: =InpR!K$37 -> 0.0247 | L17: =InpR!L$37 -> 0.0247 | M17: =InpR!M$37 -> 0.0247 | N17: =InpR!N$37 -> 0.0247 | O17: =InpR!O$37 -> 0.0247 | P17: =InpR!P$37 -> 0
E18: Allowed sector embedded debt cost (after any CSA adjustments) | K18: =K17+(K8*K10) -> 0.0247 | L18: =L17+(L8*L10) -> 0.0247 | M18: 0.0247 | N18: 0.0247 | O18: 0.0247
E19: Bioresources Embedded debt interest cost | G19: £m | H19: =SUM(J19:O19) -> 0 | J19: =J16 * J17 -> 0 | K19: =K16 * K18 -> 0 | L19: =L16 * L18 -> 0 | M19: 0 | N19: 0 | O19: 0 | P19: =P16 * P17 -> 0
E21: Bioresources outturn allowed new debt cost (CPIH real) | F21: 0 | G21: Percentage | K21: =K12 -> 0.001546445042 | L21: =L12 -> 0.002432553099 | M21: 0.007751590153 | N21: 0.01456437459 | O21: 0.01930685358
E22: Bioresources allowed embedded debt cost (CPIH real) | F22: 0 | G22: Percentage | K22: =K18 -> 0.0247 | L22: =L18 -> 0.0247 | M22: 0.0247 | N22: 0.0247 | O22: 0.0247 | P22: =P17 -> 0
E23: Ratio of new to embedded debt for outturn cost of debt allowance | F23: 0 | G23: Percentage | K23: =InpR!K57 -> 0.034 | L23: =InpR!L57 -> 0.102 | M23: =InpR!M57 -> 0.17 | N23: =InpR!N57 -> 0.238 | O23: =InpR!O57 -> 0.306
E24: Bioresources outturn allowed cost of overall debt (CPIH real) | F24: 0 | G24: Percentage | K24: =(K23*K21)+(1-K23)*K22 -> 0.02391277913 | L24: =(L23*L21)+(1-L23)*L22 -> 0.02242872042 | M24: =(M23*M21)+(1-M23)*M22 -> 0.02181877033 | N24: =(N23*N21)+(1-N23)*N22 -> 0.02228772115 | O24: =(O23*O21)+(1-O23)*O22 -> 0.0230496972
E25: CPIH inflation (long-term assumption) | F25: 0 | G25: Percentage | K25: =InpR!K59 -> 0.02 | L25: =InpR!L59 -> 0.02 | M25: =InpR!M59 -> 0.02 | N25: =InpR!N59 -> 0.02 | O25: =InpR!O59 -> 0.02
E26: Issuance and liquidity costs | G26: Percentage | K26: =InpR!K38 -> 0.0015 | L26: =InpR!L38 -> 0.0015 | M26: =InpR!M38 -> 0.0015 | N26: =InpR!N38 -> 0.0015 | O26: =InpR!O38 -> 0.0015
E27: Bioresources outturn allowed cost of overall debt (Nominal) | F27: 0 | G27: Percentage | K27: =((1+K24)*(1+K25)-1)+K26 -> 0.04589103471 | L27: 0.04437729482 | M27: =((1+M24)*(1+M25)-1)+M26 -> 0.04375514573 | N27: =((1+N24)*(1+N25)-1)+N26 -> 0.04423347557 | O27: 0.04501069114
E29: =E$14 -> Bioresources extending trailing average interest cost | F29: 0 | G29: £m | H29: 0 | I29: 0 | J29: 0 | K29: 0 | L29: 0 | M29: 0 | N29: 0 | O29: 0 | P29: 0
E30: =E$19 -> Bioresources Embedded debt interest cost | F30: =F$19 -> 0 | G30: =G$19 -> £m | H30: 0 | I30: 0 | J30: 0 | K30: 0 | L30: 0 | M30: 0 | N30: 0 | O30: 0 | P30: 0
E31: Bioresources outturn debt allowance | G31: £m | H31: =SUM(J31:O31) -> 0 | J31: =SUM(J29:J30) -> 0 | K31: 0 | L31: 0 | M31: 0 | N31: 0 | O31: 0 | P31: 0
A33: FD ALLOWANCE
E34: =InpC!E51 -> Notional % of 'new' debt over period | F34: =InpC!F51 -> 0.17 | G34: =InpC!G51 -> percentage | K34: =$F$34 -> 0.17 | L34: =$F$34 -> 0.17 | M34: 0.17 | N34: 0.17 | O34: 0.17 | P34: =InpR!P36 -> 0
E35: =InpR!E36 -> Allowed sector new debt cost (not inc. CSA) - final determination (CPIH real) | F35: =InpR!F36 -> 0 | G35: =InpR!G36 -> percentage | H35: =InpR!H36 -> 0 | I35: =InpR!I36 -> 0 | J35: =InpR!J36 -> 0 | K35: =InpR!K36 -> 0.0019 | L35: =InpR!L36 -> 0.0019 | M35: =InpR!M36 -> 0.0019 | N35: =InpR!N36 -> 0.0019 | O35: =InpR!O36 -> 0.0019 | P35: =P13 -> 0
E36: Allowed sector cost of new debt (after any CSA adjustments) | K36: =K35+(K8*K9) -> 0.0019 | L36: =L35+(L8*L9) -> 0.0019 | M36: =M35+(M8*M9) -> 0.0019 | N36: =N35+(N8*N9) -> 0.0019 | O36: =O35+(O8*O9) -> 0.0019
E37: =InpR!E37 -> Allowed sector embedded debt cost (not inc. CSA) - final determination (CPIH real) | F37: =InpR!F37 -> 0 | G37: =InpR!G37 -> percentage | H37: =InpR!H37 -> 0 | I37: =InpR!I37 -> 0 | J37: =InpR!J37 -> 0 | K37: =InpR!K37 -> 0.0247 | L37: =InpR!L37 -> 0.0247 | M37: =InpR!M37 -> 0.0247 | N37: =InpR!N37 -> 0.0247 | O37: =InpR!O37 -> 0.0247 | P37: =P34*P35 -> 0
E38: Allowed sector cost of embedded debt (after any CSA adjustments) | K38: =K37+(K8*K10) -> 0.0247 | L38: =L37+(L8*L10) -> 0.0247 | M38: =M37+(M8*M10) -> 0.0247 | N38: =N37+(N8*N10) -> 0.0247 | O38: =O37+(O8*O10) -> 0.0247
E39: ='RCV and post 2020 investment'!E65 -> Bioresources Notional debt | F39: ='RCV and post 2020 investment'!F65 -> 0 | G39: ='RCV and post 2020 investment'!G65 -> £m | H39: ='RCV and post 2020 investment'!H65 -> 0 | I39: ='RCV and post 2020 investment'!I65 -> 0 | J39: ='RCV and post 2020 investment'!J65 -> 0 | K39: ='RCV and post 2020 investment'!K65 -> 0 | L39: ='RCV and post 2020 investment'!L65 -> 0 | M39: ='RCV and post 2020 investment'!M65 -> 0 | N39: ='RCV and post 2020 investment'!N65 -> 0 | O39: ='RCV and post 2020 investment'!O65 -> 0
E40: Bioresources initial cost of debt allowance | G40: £m | I40: =I$14 -> 0 | K40: =(K39 * $K34 * K36) + (K39 * (1-$K34) * K38) -> 0 | L40: =(L39 * $K34 * L36) + (L39 * (1-$K34) * L38) -> 0 | M40: 0 | N40: 0 | O40: 0 | P40: =(P39 * $F34 * P35) + (P39 * (1-$F34) * P37) -> 0
P41: =P14 -> 0
A42: RECONCILIATION ADJUSTMENTS | P42: =P40-P41 -> 0
E43: =E$31 -> Bioresources outturn debt allowance | F43: =F$31 -> 0 | G43: £m | H43: 0 | I43: 0 | J43: 0 | K43: 0 | L43: 0 | M43: 0 | N43: 0 | O43: 0
E44: =E$40 -> Bioresources initial cost of debt allowance | F44: =F$40 -> 0 | G44: £m | H44: 0 | I44: 0 | J44: 0 | K44: 0 | L44: 0 | M44: 0 | N44: 0 | O44: 0
E45: Reconciliation (in-year values) - Bioresources | G45: £m | H45: =SUM(J45:O45) -> 0 | J45: =J43-J44 -> 0 | K45: 0 | L45: 0 | M45: 0 | N45: 0 | O45: 0
E47: =InpC!E$61 -> PV base date | F47: =InpC!F$61 -> 2025-03-31 | G47: =InpC!G$61 -> date
E48: =InpC!E$62 -> Days in a year | F48: =InpC!F$62 -> 365 | G48: =InpC!G$62 -> days
E49: =Time!E$22 -> Model Period END | F49: =Time!F$22 -> 0 | G49: =Time!G$22 -> date | H49: =Time!H$22 -> 00:00:00 | I49: =Time!I$22 -> 00:00:00 | J49: =Time!J$22 -> 2020-03-31 | K49: =Time!K$22 -> 2021-03-31 | L49: =Time!L$22 -> 2022-03-31 | M49: =Time!M$22 -> 2023-03-31 | N49: =Time!N$22 -> 2024-03-31 | O49: =Time!O$22 -> 2025-03-31 | P49: =Time!P$22 -> 2026-03-31
E50: Years from valuation date - Bioresources | G50: years | J50: =( ( J49 - $F47 ) / $F48 ) * -1 -> 5.002739726 | K50: 4.002739726 | L50: 3.002739726 | M50: 2.002739726 | N50: 1 | O50: 0
E52: =InpC!E56 -> PR19 appointee allowed return on capital (CPIH-deflated using long-term assumption) | F52: =InpC!F56 -> 0.0337 | G52: =InpC!G56 -> percentage | K52: =$F$52 -> 0.0337 | L52: =$F$52 -> 0.0337 | M52: 0.0337 | N52: 0.0337 | O52: 0.0337
E53: =E$50 -> Years from valuation date - Bioresources | F53: =F$50 -> 0 | G53: years | H53: 0 | I53: 0 | J53: 5.002739726 | K53: 4.002739726 | L53: 3.002739726 | M53: 2.002739726 | N53: 1 | O53: 0
E54: Discount factor - Bioresources | G54: Factor | J54: =(1+$F52) ^J53 -> 1.1803533 | K54: 1.141872206 | L54: 1.104645648 | M54: 1.068632725 | N54: 1.0337 | O54: 1
E56: =E$45 -> Reconciliation (in-year values) - Bioresources | F56: =F$45 -> 0 | G56: £m | H56: 0 | I56: 0 | J56: 0 | K56: 0 | L56: 0 | M56: 0 | N56: 0 | O56: 0
E57: =E$54 -> Discount factor - Bioresources | F57: =F$54 -> 0 | G57: Factor | H57: 0 | I57: 0 | J57: 1.1803533 | K57: 1.141872206 | L57: 1.104645648 | M57: 1.068632725 | N57: 1.0337 | O57: 1
E58: Discounted reconciliation (in-year values) Bioresources | G58: £m | K58: =K57*K56 -> 0 | L58: =L57*L56 -> 0 | M58: =M57*M56 -> 0 | N58: =N57*N56 -> 0 | O58: =O57*O56 -> 0
E60: =E$58 -> Discounted reconciliation (in-year values) Bioresources | F60: =F$58 -> 0 | G60: £m | H60: 0 | I60: 0 | J60: 0 | K60: 0 | L60: 0 | M60: 0 | N60: 0 | O60: 0
E61: Total value of reconciliation (31 March 2025 present values): Bioresources | G61: £m | H61: =SUM(K60:O60) -> 0

Sheet Dummy
A1: =RIGHT(CELL("filename", $A$1), LEN(CELL("filename", $A$1)) - SEARCH("]", CELL("filename", $A$1))) -> Dummy
J2: =Time!J$22 -> 2020-03-31 | K2: =Time!K$22 -> 2021-03-31 | L2: =Time!L$22 -> 2022-03-31 | M2: =Time!M$22 -> 2023-03-31 | N2: =Time!N$22 -> 2024-03-31 | O2: =Time!O$22 -> 2025-03-31 | P2: =Time!P$22 -> 2026-03-31
J3: =Time!J$58 -> Pre Fcst | K3: =Time!K$58 -> Forecast | L3: =Time!L$58 -> Forecast | M3: =Time!M$58 -> Forecast | N3: =Time!N$58 -> Forecast | O3: =Time!O$58 -> Forecast | P3: =Time!P$58 -> Post-Fcst
E4: =Time!E$86 -> Financial Year Ending | J4: =Time!J$86 -> 2020 | K4: =Time!K$86 -> 2021 | L4: =Time!L$86 -> 2022 | M4: =Time!M$86 -> 2023 | N4: =Time!N$86 -> 2024 | O4: =Time!O$86 -> 2025 | P4: =Time!P$86 -> 2026
E5: =Time!E$10 -> Model column counter | F5: Constant | G5: Unit | H5: Total | J5: =Time!J$10 -> 1 | K5: =Time!K$10 -> 2 | L5: =Time!L$10 -> 3 | M5: =Time!M$10 -> 4 | N5: =Time!N$10 -> 5 | O5: =Time!O$10 -> 6 | P5: =Time!P$10 -> 7
A7: COST OF DEBT CALCULATION BASED ON INDEX OUTTURN
E8: Company-specific adjustment flag | F8: =IF(InpC!$F$70="YES",1,0) -> 0 | G8: Flag | K8: =$F$8 -> 0 | L8: =$F$8 -> 0 | M8: 0 | N8: 0 | O8: 0
E9: =InpC!E64 -> Company-specific adjustment (new debt) | F9: =InpC!F64 -> 0 | G9: ='Cost of Debt'!G47 -> Percentage | K9: =$F$9 -> 0 | L9: =$F$9 -> 0 | M9: 0 | N9: 0 | O9: 0
E10: =InpC!E65 -> Company-specific adjustment (embedded debt) | F10: =InpC!$F$65 -> 0.0029 | G10: ='Cost of Debt'!G48 -> Percentage | K10: =$F$10 -> 0.0029 | L10: =$F$10 -> 0.0029 | M10: =$F$10 -> 0.0029 | N10: =$F$10 -> 0.0029 | O10: =$F$10 -> 0.0029
E11: ='Cost of Debt'!E48 -> Extending trailing average rate | F11: ='Cost of Debt'!F48 -> 0 | G11: ='Cost of Debt'!G48 -> Percentage | H11: ='Cost of Debt'!H48 -> 0 | I11: ='Cost of Debt'!I48 -> 0 | J11: ='Cost of Debt'!J48 -> 0 | K11: ='Cost of Debt'!K48 -> 0.001546445042 | L11: ='Cost of Debt'!L48 -> 0.002432553099 | M11: ='Cost of Debt'!M48 -> 0.007751590153 | N11: ='Cost of Debt'!N48 -> 0.01456437459 | O11: ='Cost of Debt'!O48 -> 0.01930685358 | P11: ='Cost of Debt'!P48 -> 0
E12: Extending trailing average rate (after any CSA adjustments) | G12: Percentage | K12: =K11+(K8*K9) -> 0.001546445042 | L12: =L11+(L8*L9) -> 0.002432553099 | M12: 0.007751590153 | N12: 0.01456437459 | O12: 0.01930685358 | P12: 0
E13: ='RCV and post 2020 investment'!E86 -> Dummy New debt for return | F13: ='RCV and post 2020 investment'!F86 -> 0 | G13: ='RCV and post 2020 investment'!G86 -> £m | H13: ='RCV and post 2020 investment'!H86 -> 0 | I13: ='RCV and post 2020 investment'!I86 -> 0 | J13: ='RCV and post 2020 investment'!J86 -> 0 | K13: ='RCV and post 2020 investment'!K86 -> 0 | L13: ='RCV and post 2020 investment'!L86 -> 0 | M13: ='RCV and post 2020 investment'!M86 -> 0 | N13: ='RCV and post 2020 investment'!N86 -> 0 | O13: ='RCV and post 2020 investment'!O86 -> 0 | P13: ='RCV and post 2020 investment'!P52 -> 0
E14: Dummy extending trailing average interest cost | G14: £m | H14: =SUM(J14:O14) -> 0 | J14: =J11 * J13 -> 0 | K14: =K12 * K13 -> 0 | L14: =L12 * L13 -> 0 | M14: 0 | N14: 0 | O14: 0 | P14: 0
E16: ='RCV and post 2020 investment'!E90 -> Dummy Embedded debt for return | F16: ='RCV and post 2020 investment'!F56 -> 0 | G16: ='RCV and post 2020 investment'!G56 -> £m | H16: ='RCV and post 2020 investment'!H90 -> 0 | I16: ='RCV and post 2020 investment'!I56 -> 0 | J16: ='RCV and post 2020 investment'!J56 -> 0 | K16: ='RCV and post 2020 investment'!K90 -> 0 | L16: ='RCV and post 2020 investment'!L90 -> 0 | M16: ='RCV and post 2020 investment'!M90 -> 0 | N16: ='RCV and post 2020 investment'!N90 -> 0 | O16: ='RCV and post 2020 investment'!O90 -> 0 | P16: ='RCV and post 2020 investment'!P56 -> 0
E17: =InpR!E$37 -> Allowed sector embedded debt cost (not inc. CSA) - final determination (CPIH real) | F17: =InpR!F$37 -> 0 | G17: =InpR!G$37 -> percentage | H17: =InpR!H$37 -> 0 | I17: =InpR!I$37 -> 0 | J17: =InpR!J$37 -> 0 | K17: =InpR!K$37 -> 0.0247 | L17: =InpR!L$37 -> 0.0247 | M17: =InpR!M$37 -> 0.0247 | N17: =InpR!N$37 -> 0.0247 | O17: =InpR!O$37 -> 0.0247 | P17: =InpR!P$37 -> 0
E18: Allowed sector embedded debt cost (after any CSA adjustments) | K18: =K17+(K8*K10) -> 0.0247 | L18: =L17+(L8*L10) -> 0.0247 | M18: 0.0247 | N18: 0.0247 | O18: 0.0247
E19: Dummy Embedded debt interest cost | G19: £m | H19: =SUM(J19:O19) -> 0 | J19: =J16 * J17 -> 0 | K19: =K16 * K18 -> 0 | L19: =L16 * L18 -> 0 | M19: 0 | N19: 0 | O19: 0 | P19: =P16 * P17 -> 0
E21: Dummy outturn allowed new debt cost (CPIH real) | F21: 0 | G21: Percentage | K21: =K12 -> 0.001546445042 | L21: =L12 -> 0.002432553099 | M21: 0.007751590153 | N21: 0.01456437459 | O21: 0.01930685358
E22: Dummy allowed embedded debt cost (CPIH real) | F22: 0 | G22: Percentage | K22: =K18 -> 0.0247 | L22: =L18 -> 0.0247 | M22: 0.0247 | N22: 0.0247 | O22: 0.0247 | P22: =P17 -> 0
E23: Ratio of new to embedded debt for outturn cost of debt allowance | F23: 0 | G23: Percentage | K23: =InpR!K57 -> 0.034 | L23: =InpR!L57 -> 0.102 | M23: =InpR!M57 -> 0.17 | N23: =InpR!N57 -> 0.238 | O23: =InpR!O57 -> 0.306
E24: Dummy outturn allowed cost of overall debt (CPIH real) | F24: 0 | G24: Percentage | K24: =(K23*K21)+(1-K23)*K22 -> 0.02391277913 | L24: =(L23*L21)+(1-L23)*L22 -> 0.02242872042 | M24: =(M23*M21)+(1-M23)*M22 -> 0.02181877033 | N24: =(N23*N21)+(1-N23)*N22 -> 0.02228772115 | O24: =(O23*O21)+(1-O23)*O22 -> 0.0230496972
E25: CPIH inflation (long-term assumption) | F25: 0 | G25: Percentage | K25: =InpR!K59 -> 0.02 | L25: =InpR!L59 -> 0.02 | M25: =InpR!M59 -> 0.02 | N25: =InpR!N59 -> 0.02 | O25: =InpR!O59 -> 0.02
E26: Issuance and liquidity costs | G26: Percentage | K26: =InpR!K38 -> 0.0015 | L26: =InpR!L38 -> 0.0015 | M26: =InpR!M38 -> 0.0015 | N26: =InpR!N38 -> 0.0015 | O26: =InpR!O38 -> 0.0015
E27: Dummy outturn allowed cost of overall debt (Nominal) | F27: 0 | G27: Percentage | K27: =((1+K24)*(1+K25)-1)+K26 -> 0.04589103471 | L27: 0.04437729482 | M27: =((1+M24)*(1+M25)-1)+M26 -> 0.04375514573 | N27: =((1+N24)*(1+N25)-1)+N26 -> 0.04423347557 | O27: 0.04501069114
E29: =E$14 -> Dummy extending trailing average interest cost | F29: 0 | G29: £m | H29: 0 | I29: 0 | J29: 0 | K29: 0 | L29: 0 | M29: 0 | N29: 0 | O29: 0 | P29: 0
E30: =E$19 -> Dummy Embedded debt interest cost | F30: =F$19 -> 0 | G30: =G$19 -> £m | H30: 0 | I30: 0 | J30: 0 | K30: 0 | L30: 0 | M30: 0 | N30: 0 | O30: 0 | P30: 0
E31: Dummy outturn debt allowance | G31: £m | H31: =SUM(J31:O31) -> 0 | J31: =SUM(J29:J30) -> 0 | K31: 0 | L31: 0 | M31: 0 | N31: 0 | O31: 0 | P31: 0
A33: FD ALLOWANCE
E34: =InpC!E51 -> Notional % of 'new' debt over period | F34: =InpC!F51 -> 0.17 | G34: =InpC!G51 -> percentage | K34: =$F$34 -> 0.17 | L34: =$F$34 -> 0.17 | M34: 0.17 | N34: 0.17 | O34: 0.17 | P34: =InpR!P36 -> 0
E35: =InpR!E36 -> Allowed sector new debt cost (not inc. CSA) - final determination (CPIH real) | F35: =InpR!F36 -> 0 | G35: =InpR!G36 -> percentage | H35: =InpR!H36 -> 0 | I35: =InpR!I36 -> 0 | J35: =InpR!J36 -> 0 | K35: =InpR!K36 -> 0.0019 | L35: =InpR!L36 -> 0.0019 | M35: =InpR!M36 -> 0.0019 | N35: =InpR!N36 -> 0.0019 | O35: =InpR!O36 -> 0.0019 | P35: =P13 -> 0
E36: Allowed sector cost of new debt (after any CSA adjustments) | K36: =K35+(K8*K9) -> 0.0019 | L36: =L35+(L8*L9) -> 0.0019 | M36: =M35+(M8*M9) -> 0.0019 | N36: =N35+(N8*N9) -> 0.0019 | O36: =O35+(O8*O9) -> 0.0019
E37: =InpR!E37 -> Allowed sector embedded debt cost (not inc. CSA) - final determination (CPIH real) | F37: =InpR!F37 -> 0 | G37: =InpR!G37 -> percentage | H37: =InpR!H37 -> 0 | I37: =InpR!I37 -> 0 | J37: =InpR!J37 -> 0 | K37: =InpR!K37 -> 0.0247 | L37: =InpR!L37 -> 0.0247 | M37: =InpR!M37 -> 0.0247 | N37: =InpR!N37 -> 0.0247 | O37: =InpR!O37 -> 0.0247 | P37: =P34*P35 -> 0
E38: Allowed sector cost of embedded debt (after any CSA adjustments) | K38: =K37+(K8*K10) -> 0.0247 | L38: =L37+(L8*L10) -> 0.0247 | M38: =M37+(M8*M10) -> 0.0247 | N38: =N37+(N8*N10) -> 0.0247 | O38: =O37+(O8*O10) -> 0.0247
E39: ='RCV and post 2020 investment'!E82 -> Dummy Notional debt | F39: ='RCV and post 2020 investment'!F82 -> 0 | G39: ='RCV and post 2020 investment'!G82 -> £m | H39: ='RCV and post 2020 investment'!H82 -> 0 | I39: ='RCV and post 2020 investment'!I82 -> 0 | J39: ='RCV and post 2020 investment'!J82 -> 0 | K39: ='RCV and post 2020 investment'!K82 -> 0 | L39: ='RCV and post 2020 investment'!L82 -> 0 | M39: ='RCV and post 2020 investment'!M82 -> 0 | N39: ='RCV and post 2020 investment'!N82 -> 0 | O39: ='RCV and post 2020 investment'!O82 -> 0
E40: Dummy initial cost of debt allowance | G40: £m | I40: =I$14 -> 0 | K40: =(K39 * $K34 * K36) + (K39 * (1-$K34) * K38) -> 0 | L40: =(L39 * $K34 * L36) + (L39 * (1-$K34) * L38) -> 0 | M40: 0 | N40: 0 | O40: 0 | P40: =(P39 * $F34 * P35) + (P39 * (1-$F34) * P37) -> 0
P41: =P14 -> 0
A42: RECONCILIATION ADJUSTMENTS | P42: =P40-P41 -> 0
E43: =E$31 -> Dummy outturn debt allowance | F43: =F$31 -> 0 | G43: £m | H43: 0 | I43: 0 | J43: 0 | K43: 0 | L43: 0 | M43: 0 | N43: 0 | O43: 0
E44: =E$40 -> Dummy initial cost of debt allowance | F44: =F$40 -> 0 | G44: £m | H44: 0 | I44: 0 | J44: 0 | K44: 0 | L44: 0 | M44: 0 | N44: 0 | O44: 0
E45: Reconciliation (in-year values) - Dummy | G45: £m | H45: =SUM(J45:O45) -> 0 | J45: =J43-J44 -> 0 | K45: 0 | L45: 0 | M45: 0 | N45: 0 | O45: 0
E47: =InpC!E$61 -> PV base date | F47: =InpC!F$61 -> 2025-03-31 | G47: =InpC!G$61 -> date
E48: =InpC!E$62 -> Days in a year | F48: =InpC!F$62 -> 365 | G48: =InpC!G$62 -> days
E49: =Time!E$22 -> Model Period END | F49: =Time!F$22 -> 0 | G49: =Time!G$22 -> date | H49: =Time!H$22 -> 00:00:00 | I49: =Time!I$22 -> 00:00:00 | J49: =Time!J$22 -> 2020-03-31 | K49: =Time!K$22 -> 2021-03-31 | L49: =Time!L$22 -> 2022-03-31 | M49: =Time!M$22 -> 2023-03-31 | N49: =Time!N$22 -> 2024-03-31 | O49: =Time!O$22 -> 2025-03-31 | P49: =Time!P$22 -> 2026-03-31
E50: Years from valuation date - Dummy | G50: years | J50: =( ( J49 - $F47 ) / $F48 ) * -1 -> 5.002739726 | K50: 4.002739726 | L50: 3.002739726 | M50: 2.002739726 | N50: 1 | O50: 0
E52: =InpC!E56 -> PR19 appointee allowed return on capital (CPIH-deflated using long-term assumption) | F52: =InpC!F56 -> 0.0337 | G52: =InpC!G56 -> percentage | K52: =$F$52 -> 0.0337 | L52: =$F$52 -> 0.0337 | M52: 0.0337 | N52: 0.0337 | O52: 0.0337
E53: =E$50 -> Years from valuation date - Dummy | F53: =F$50 -> 0 | G53: years | H53: 0 | I53: 0 | J53: 5.002739726 | K53: 4.002739726 | L53: 3.002739726 | M53: 2.002739726 | N53: 1 | O53: 0
E54: Discount factor - Dummy | G54: Factor | J54: =(1+$F52) ^J53 -> 1.1803533 | K54: 1.141872206 | L54: 1.104645648 | M54: 1.068632725 | N54: 1.0337 | O54: 1
E56: =E$45 -> Reconciliation (in-year values) - Dummy | F56: =F$45 -> 0 | G56: £m | H56: 0 | I56: 0 | J56: 0 | K56: 0 | L56: 0 | M56: 0 | N56: 0 | O56: 0
E57: =E$54 -> Discount factor - Dummy | F57: =F$54 -> 0 | G57: Factor | H57: 0 | I57: 0 | J57: 1.1803533 | K57: 1.141872206 | L57: 1.104645648 | M57: 1.068632725 | N57: 1.0337 | O57: 1
E58: Discounted reconciliation (in-year values) Dummy | G58: £m | K58: =K57*K56 -> 0 | L58: =L57*L56 -> 0 | M58: =M57*M56 -> 0 | N58: =N57*N56 -> 0 | O58: =O57*O56 -> 0
E60: =E$58 -> Discounted reconciliation (in-year values) Dummy | F60: =F$58 -> 0 | G60: £m | H60: 0 | I60: 0 | J60: 0 | K60: 0 | L60: 0 | M60: 0 | N60: 0 | O60: 0
E61: Total value of reconciliation (31 March 2025 present values): Dummy | G61: £m | H61: =SUM(K60:O60) -> 0

Sheet Output
A1: =RIGHT(CELL("filename", $A$1), LEN(CELL("filename", $A$1)) - SEARCH("]", CELL("filename", $A$1))) -> Output
J2: =Time!J22 -> 2020-03-31 | K2: =Time!K22 -> 2021-03-31 | L2: =Time!L22 -> 2022-03-31 | M2: =Time!M22 -> 2023-03-31 | N2: =Time!N22 -> 2024-03-31 | O2: =Time!O22 -> 2025-03-31 | P2: =Time!P22 -> 2026-03-31
J3: =Time!J58 -> Pre Fcst | K3: =Time!K58 -> Forecast | L3: =Time!L58 -> Forecast | M3: =Time!M58 -> Forecast | N3: =Time!N58 -> Forecast | O3: =Time!O58 -> Forecast | P3: =Time!P58 -> Post-Fcst
J4: =Time!J86 -> 2020 | K4: =Time!K86 -> 2021 | L4: =Time!L86 -> 2022 | M4: =Time!M86 -> 2023 | N4: =Time!N86 -> 2024 | O4: =Time!O86 -> 2025 | P4: =Time!P86 -> 2026
F5: Constant | G5: Unit | H5: Total | J5: =Time!J5 -> 1 | K5: =Time!K5 -> 2 | L5: =Time!L5 -> 3 | M5: =Time!M5 -> 4 | N5: =Time!N5 -> 5 | O5: =Time!O5 -> 6 | P5: =Time!P5 -> 7
A7: Total revenue adjustments applied as part of PR24
E9: Outturn nominal weighted average cost of debt - Water resources | G9: % | K9: ='Water resources'!K27 -> 0.04874846271 | L9: ='Water resources'!L27 -> 0.04703357882 | M9: ='Water resources'!M27 -> 0.04621028573 | N9: ='Water resources'!N27 -> 0.04648747157 | O9: ='Water resources'!O27 -> 0.04706354314
E10: Outturn nominal weighted average cost of debt - Water network plus | G10: % | K10: ='Water network +'!K27 -> 0.04874846271 | L10: ='Water network +'!L27 -> 0.04703357882 | M10: ='Water network +'!M27 -> 0.04621028573 | N10: ='Water network +'!N27 -> 0.04648747157 | O10: ='Water network +'!O27 -> 0.04706354314
E11: Outturn nominal weighted average cost of debt - Wastewater network plus | G11: % | K11: ='Wastewater network +'!K27 -> 0.04589103471 | L11: ='Wastewater network +'!L27 -> 0.04437729482 | M11: ='Wastewater network +'!M27 -> 0.04375514573 | N11: ='Wastewater network +'!N27 -> 0.04423347557 | O11: ='Wastewater network +'!O27 -> 0.04501069114
E12: Outturn nominal weighted average cost of debt - Bioresources | G12: % | K12: =Bioresources!K27 -> 0.04589103471 | L12: =Bioresources!L27 -> 0.04437729482 | M12: =Bioresources!M27 -> 0.04375514573 | N12: =Bioresources!N27 -> 0.04423347557 | O12: =Bioresources!O27 -> 0.04501069114
E13: Outturn nominal weighted average cost of debt - Dummy | G13: % | K13: =Dummy!K27 -> 0.04589103471 | L13: =Dummy!L27 -> 0.04437729482 | M13: =Dummy!M27 -> 0.04375514573 | N13: =Dummy!N27 -> 0.04423347557 | O13: =Dummy!O27 -> 0.04501069114
E15: Revenue adjustment from new debt reconciliation - Water resources | F15: =SUM(K15:O15) -> 0.7266825474 | G15: £m, CPIH-deflated 2017/18 prices, 2024/25 present values | K15: ='Water resources'!K60 -> 0.2785224511 | L15: ='Water resources'!L60 -> 0.1406141696 | M15: ='Water resources'!M60 -> 0.07672772108 | N15: ='Water resources'!N60 -> 0.09619719786 | O15: ='Water resources'!O60 -> 0.1346210078
E16: Revenue adjustment from new debt reconciliation - Water network plus | F16: =SUM(K16:O16) -> 2.468038291 | G16: £m, CPIH-deflated 2017/18 prices, 2024/25 present values | K16: ='Water network +'!K60 -> 0.9749702791 | L16: ='Water network +'!L60 -> 0.4856438512 | M16: ='Water network +'!M60 -> 0.2571621238 | N16: ='Water network +'!N60 -> 0.3138196685 | O16: ='Water network +'!O60 -> 0.4364423686
E17: Revenue adjustment from new debt reconciliation - Wastewater network plus | G17: £m, CPIH-deflated 2017/18 prices, 2024/25 present values | K17: ='Wastewater network +'!K60 -> 0 | L17: ='Wastewater network +'!L60 -> 0 | M17: ='Wastewater network +'!M60 -> 0 | N17: ='Wastewater network +'!N60 -> 0 | O17: ='Wastewater network +'!O60 -> 0
E18: Revenue adjustment from new debt reconciliation - Bioresources | G18: £m, CPIH-deflated 2017/18 prices, 2024/25 present values | K18: =Bioresources!K60 -> 0 | L18: =Bioresources!L60 -> 0 | M18: =Bioresources!M60 -> 0 | N18: =Bioresources!N60 -> 0 | O18: =Bioresources!O60 -> 0
E19: Revenue adjustment from new debt reconciliation - Dummy | G19: £m, CPIH-deflated 2017/18 prices, 2024/25 present values | K19: =Dummy!K60 -> 0 | L19: =Dummy!L60 -> 0 | M19: =Dummy!M60 -> 0 | N19: =Dummy!N60 -> 0 | O19: =Dummy!O60 -> 0
